Col. Code,Agency,Check No.,Payee,Month,Day,Year,Purpose,Source,Amount
48,J.F. Drake State,10002966,AL Board of Electrical Contractors,Oct,2,2014,Other Contractual Services,General Operating Fund,$250.00
48,J.F. Drake State,10002967,Alabama Lawnmaster Inc,Oct,2,2014,Other Contractual Services,General Operating Fund,"$1,700.00"
48,J.F. Drake State,10002967,Alabama Lawnmaster Inc,Oct,2,2014,Other Contractual Services,General Operating Fund,"$3,045.00"
48,J.F. Drake State,10002968,Berney Office Solutions,Oct,2,2014,Other Contractual Services,General Operating Fund,$161.58
48,J.F. Drake State,10002969,"Career Solutions, LLC",Oct,2,2014,Advertising & Promotions,General Operating Fund,"$1,050.00"
48,J.F. Drake State,10002970,"Castle Branch, Inc.",Oct,2,2014,Purchases for Re-Sale,Auxiliary - Nursing Fees,"$2,918.25"
48,J.F. Drake State,10002971,Chamber of Commerce of Huntsville/M,Oct,2,2014,Advertising & Promotions,General Operating Fund,$400.00
48,J.F. Drake State,10002972,"Conditioned Air Solutions, LLC",Oct,2,2014,Maintenance & Repairs,General Operating Fund,"$1,100.00"
48,J.F. Drake State,10002973,Copeland Cleaners,Oct,2,2014,Other Contractual Services,General Operating Fund,$86.88
48,J.F. Drake State,10002974,"Dynamic Security, Inc.",Oct,2,2014,Other Contractual Services,General Operating Fund,"$4,665.60"
48,J.F. Drake State,10002974,"Dynamic Security, Inc.",Oct,2,2014,Other Contractual Services,General Operating Fund,"$4,082.40"
48,J.F. Drake State,10002975,"Galindo-Baird, Yibeli",Oct,2,2014,In State-Ovrnite Per diem,General Operating Fund,$150.00
48,J.F. Drake State,10002975,"Galindo-Baird, Yibeli",Oct,2,2014,In State-Mileage,General Operating Fund,$418.88
48,J.F. Drake State,10002976,"Gaymon, Denise C.",Oct,2,2014,Materials and Supplies,General Operating Fund,$500.00
48,J.F. Drake State,10002977,Greg Hawkins Asphatt Services,Oct,2,2014,Other Contractual Services,General Operating Fund,"$3,950.00"
48,J.F. Drake State,10002978,"Lanier, Ford, Shaver & Payne PC",Oct,2,2014,Legal Services,General Operating Fund,$487.50
48,J.F. Drake State,10002978,"Lanier, Ford, Shaver & Payne PC",Oct,2,2014,Legal Services,General Operating Fund,"$5,826.50"
48,J.F. Drake State,10002979,"Leadership Alabama, Inc",Oct,2,2014,Memberships,General Operating Fund,$175.00
48,J.F. Drake State,10002980,Lowe's Home Centers,Oct,2,2014,Materials and Supplies,General Operating Fund,$170.05
48,J.F. Drake State,10002982,Schrimsher Properties,Oct,2,2014,Rent - Facilities,General Operating Fund,"$6,715.00"
48,J.F. Drake State,10002983,Womens Business of North Alabama,Oct,2,2014,In State-Registration,General Operating Fund,$148.00
48,J.F. Drake State,10003003,AT&T,Oct,3,2014,Communications,General Operating Fund,$84.62
48,J.F. Drake State,10002984,Alabama Child Support,Oct,3,2014,Misc Deductions Payable,Payroll Clearing Fund,"$2,489.18"
48,J.F. Drake State,10002985,Allstate Insurance,Oct,3,2014,Misc Deductions Payable,Payroll Clearing Fund,$54.80
48,J.F. Drake State,10002986,American Family Life,Oct,3,2014,Misc Deductions Payable,Payroll Clearing Fund,$125.68
48,J.F. Drake State,10002987,Colonial Life Insurance,Oct,3,2014,Misc Deductions Payable,Payroll Clearing Fund,$39.65
48,J.F. Drake State,10003004,Comcast Cable,Oct,3,2014,Communications,General Operating Fund,$180.42
48,J.F. Drake State,10003005,Cooks Pest Control,Oct,3,2014,Other Contractual Services,General Operating Fund,$67.00
48,J.F. Drake State,10003005,Cooks Pest Control,Oct,3,2014,Other Contractual Services,General Operating Fund,$249.00
48,J.F. Drake State,10002988,Drake State Foundation,Oct,3,2014,Misc Deductions Payable,Payroll Clearing Fund,$245.42
48,J.F. Drake State,10002989,Educators Benefit,Oct,3,2014,Misc Deductions Payable,Payroll Clearing Fund,"$1,118.62"
48,J.F. Drake State,10003006,FedEx,Oct,3,2014,Freight,General Operating Fund,$77.06
48,J.F. Drake State,10003007,Huntsville Utilities,Oct,3,2014,Water & Sewer,General Operating Fund,$8.15
48,J.F. Drake State,10002990,Linda B. Gore,Oct,3,2014,Misc Deductions Payable,Payroll Clearing Fund,"$1,472.00"
48,J.F. Drake State,10002991,Metropolitan Life Insurance Company,Oct,3,2014,Misc Deductions Payable,Payroll Clearing Fund,$100.00
48,J.F. Drake State,10002992,Michigan State Disbursement Unit,Oct,3,2014,Misc Deductions Payable,Payroll Clearing Fund,$155.84
48,J.F. Drake State,10002993,NAECU,Oct,3,2014,Misc Deductions Payable,Payroll Clearing Fund,"$3,036.00"
48,J.F. Drake State,10002994,New York Life Insurance,Oct,3,2014,Misc Deductions Payable,Payroll Clearing Fund,$365.25
48,J.F. Drake State,10002995,PEEHIP,Oct,3,2014,PEEHIP Payable,Payroll Clearing Fund,"$81,770.22"
48,J.F. Drake State,10002996,Philip A Geddes,Oct,3,2014,Misc Deductions Payable,Payroll Clearing Fund,$430.00
48,J.F. Drake State,10003008,Schindler Elevator Corporation,Oct,3,2014,Other Contractual Services,General Operating Fund,"$1,136.22"
48,J.F. Drake State,10002997,Security Benefit Life Insurance Com,Oct,3,2014,Misc Deductions Payable,Payroll Clearing Fund,$425.00
48,J.F. Drake State,10002998,Teachers Retirement System,Oct,3,2014,Alabama Teachers Retirement Payable,Payroll Clearing Fund,"$76,559.69"
48,J.F. Drake State,10002999,Truescreen Inc.,Oct,3,2014,Background Checks,Payroll Clearing Fund,$273.00
48,J.F. Drake State,10003000,U.S. Department of Education,Oct,3,2014,Misc Deductions Payable,Payroll Clearing Fund,$267.73
48,J.F. Drake State,10003001,"United Way of Madison County, Inc.",Oct,3,2014,Misc Deductions Payable,Payroll Clearing Fund,$380.00
48,J.F. Drake State,10003002,Variable Annuity Life Insurance,Oct,3,2014,Misc Deductions Payable,Payroll Clearing Fund,$757.50
48,J.F. Drake State,10003009,Waste Management,Oct,3,2014,Other Contractual Services,General Operating Fund,$504.00
48,J.F. Drake State,10003009,Waste Management,Oct,3,2014,Other Contractual Services,General Operating Fund,$856.71
48,J.F. Drake State,30002265,AAC&U,Oct,6,2014,Memberships,Title III,"$1,590.00"
48,J.F. Drake State,30002266,Alabama Banner User Group,Oct,6,2014,In State-Registration,Title III,$350.00
48,J.F. Drake State,30002267,Alabama Deans of Student Affairs As,Oct,6,2014,Out-of-State-Registration,Title III,$100.00
48,J.F. Drake State,30002268,Amazon.com,Oct,6,2014,Books,Title III,$122.85
48,J.F. Drake State,30002283,Amazon.com,Oct,6,2014,Books,Title III,$262.52
48,J.F. Drake State,30002268,Amazon.com,Oct,6,2014,Books,Title III,$219.64
48,J.F. Drake State,30002268,Amazon.com,Oct,6,2014,Books,Title III,$511.71
48,J.F. Drake State,30002268,Amazon.com,Oct,6,2014,Books,Title III,$46.59
48,J.F. Drake State,30002268,Amazon.com,Oct,6,2014,Books,Title III,$195.83
48,J.F. Drake State,30002268,Amazon.com,Oct,6,2014,Books,Title III,$353.49
48,J.F. Drake State,30002268,Amazon.com,Oct,6,2014,Books,Title III,$138.24
48,J.F. Drake State,30002268,Amazon.com,Oct,6,2014,Books,Title III,$31.46
48,J.F. Drake State,30002268,Amazon.com,Oct,6,2014,Books,Title III,$279.12
48,J.F. Drake State,30002268,Amazon.com,Oct,6,2014,Books,Title III,$39.40
48,J.F. Drake State,30002283,Amazon.com,Oct,6,2014,Books,Title III,$46.97
48,J.F. Drake State,30002268,Amazon.com,Oct,6,2014,Books,Title III,$28.99
48,J.F. Drake State,30002268,Amazon.com,Oct,6,2014,Books,Title III,$237.67
48,J.F. Drake State,30002283,Amazon.com,Oct,6,2014,Books,Title III,"$1,256.15"
48,J.F. Drake State,30002268,Amazon.com,Oct,6,2014,Books,Title III,$614.49
48,J.F. Drake State,30002283,Amazon.com,Oct,6,2014,Books,Title III,$693.79
48,J.F. Drake State,30002268,Amazon.com,Oct,6,2014,Books,Title III,$304.09
48,J.F. Drake State,30002283,Amazon.com,Oct,6,2014,Books,Title III,$187.85
48,J.F. Drake State,30002269,American Association of Community C,Oct,6,2014,Memberships,Allied Health,"$2,646.00"
48,J.F. Drake State,30002270,"Barnett, Nicole C.",Oct,6,2014,Out-of-State-Subsist & Lodging,Title III,$121.76
48,J.F. Drake State,30002270,"Barnett, Nicole C.",Oct,6,2014,In State-Ovrnite Per diem,Title III,$225.00
48,J.F. Drake State,30002271,Bernan,Oct,6,2014,Books,Title III,$176.55
48,J.F. Drake State,30002271,Bernan,Oct,6,2014,Books,Title III,$165.85
48,J.F. Drake State,30002272,Best Book,Oct,6,2014,Books,Title III,$350.77
48,J.F. Drake State,30002272,Best Book,Oct,6,2014,Books,Title III,"$3,776.07"
48,J.F. Drake State,30002272,Best Book,Oct,6,2014,Books,Title III,"$1,453.55"
48,J.F. Drake State,30002272,Best Book,Oct,6,2014,Books,Title III,"$1,418.62"
48,J.F. Drake State,30002272,Best Book,Oct,6,2014,Books,Title III,$619.49
48,J.F. Drake State,30002272,Best Book,Oct,6,2014,Books,Title III,"$3,018.47"
48,J.F. Drake State,30002274,Enterprise,Oct,6,2014,Out-of-State-Commercl Trans,Title III,$365.41
48,J.F. Drake State,10003010,HESI - ELSEVIER,Oct,6,2014,Purchases for Re-Sale,Auxiliary - Nursing Fees,$476.00
48,J.F. Drake State,30002275,"Maddox, Mark A.",Oct,6,2014,In State-Other Travel Exp,APEX,$48.00
48,J.F. Drake State,30002275,"Maddox, Mark A.",Oct,6,2014,In State-Ovrnite Per diem,APEX,$300.00
48,J.F. Drake State,30002275,"Maddox, Mark A.",Oct,6,2014,In State-Mileage,APEX,$401.98
48,J.F. Drake State,30002276,Michigan Technological University,Oct,6,2014,Subcontracts,DigiTec,"$9,862.88"
48,J.F. Drake State,30002277,Midwest Library Service,Oct,6,2014,Books,Title III,$302.69
48,J.F. Drake State,30002277,Midwest Library Service,Oct,6,2014,Books,Title III,$50.35
48,J.F. Drake State,30002277,Midwest Library Service,Oct,6,2014,Books,Title III,$174.60
48,J.F. Drake State,30002277,Midwest Library Service,Oct,6,2014,Books,Title III,"$4,306.04"
48,J.F. Drake State,30002277,Midwest Library Service,Oct,6,2014,Books,Title III,$20.51
48,J.F. Drake State,30002277,Midwest Library Service,Oct,6,2014,Books,Title III,$47.20
48,J.F. Drake State,30002277,Midwest Library Service,Oct,6,2014,Books,Title III,$297.83
48,J.F. Drake State,30002277,Midwest Library Service,Oct,6,2014,Books,Title III,$173.00
48,J.F. Drake State,30002277,Midwest Library Service,Oct,6,2014,Books,Title III,$77.52
48,J.F. Drake State,30002277,Midwest Library Service,Oct,6,2014,Books,Title III,$178.75
48,J.F. Drake State,30002277,Midwest Library Service,Oct,6,2014,Books,Title III,$152.31
48,J.F. Drake State,30002277,Midwest Library Service,Oct,6,2014,Books,Title III,$52.45
48,J.F. Drake State,30002277,Midwest Library Service,Oct,6,2014,Books,Title III,$520.92
48,J.F. Drake State,30002277,Midwest Library Service,Oct,6,2014,Books,Title III,"$3,913.40"
48,J.F. Drake State,30002277,Midwest Library Service,Oct,6,2014,Books,Title III,$124.69
48,J.F. Drake State,30002277,Midwest Library Service,Oct,6,2014,Books,Title III,$52.13
48,J.F. Drake State,30002277,Midwest Library Service,Oct,6,2014,Books,Title III,$744.58
48,J.F. Drake State,30002277,Midwest Library Service,Oct,6,2014,Books,Title III,$18.51
48,J.F. Drake State,30002279,"Reutter, John",Oct,6,2014,Out-of-State-Other Travel Expenses,Allied Health,$66.25
48,J.F. Drake State,30002279,"Reutter, John",Oct,6,2014,Out-of-State-Subsist & Lodging,Allied Health,$161.14
48,J.F. Drake State,30002280,Sargent-Welch,Oct,6,2014,Materials and Supplies,APEX,$124.33
48,J.F. Drake State,10003011,Sysco Central Alabama,Oct,6,2014,Purchases for Re-Sale,Auxiliary Enterprise-Unrestricted,$755.18
48,J.F. Drake State,10003011,Sysco Central Alabama,Oct,6,2014,Purchases for Re-Sale,Auxiliary Enterprise-Unrestricted,$332.77
48,J.F. Drake State,30002284,"Drake, Marlo",Oct,7,2014,In State-Ovrnite Per diem,Title III,$225.00
48,J.F. Drake State,10003015,AT&T,Oct,8,2014,Communications,General Operating Fund,$1.69
48,J.F. Drake State,10003015,AT&T,Oct,8,2014,Communications,General Operating Fund,$213.00
48,J.F. Drake State,10003015,AT&T,Oct,8,2014,Communications,General Operating Fund,$84.62
48,J.F. Drake State,10003016,Berney Office Solutions,Oct,8,2014,Other Contractual Services,General Operating Fund,$386.27
48,J.F. Drake State,30002285,Chase,Oct,8,2014,Out-of-State-Subsist & Lodging,Trio-SSS Grant,$717.93
48,J.F. Drake State,10003012,Chase,Oct,8,2014,Employ Taxable Non-Ovrnite Per Diem,General Operating Fund,$8.42
48,J.F. Drake State,10003012,Chase,Oct,8,2014,Materials and Supplies,Auxiliary - Copier Commissions,$16.00
48,J.F. Drake State,10003012,Chase,Oct,8,2014,Materials and Supplies,Auxiliary - Copier/Vend Commissions,$186.58
48,J.F. Drake State,30002285,Chase,Oct,8,2014,Out-of-State-Subsist & Lodging,Trio-SSS Grant,"$1,047.20"
48,J.F. Drake State,10003012,Chase,Oct,8,2014,Materials and Supplies,General Operating Fund,$49.00
48,J.F. Drake State,10003012,Chase,Oct,8,2014,Credit Card Service Charges,General Operating Fund,$53.58
48,J.F. Drake State,10003012,Chase,Oct,8,2014,Materials and Supplies,Auxiliary - Copier/Vend Commissions,$16.00
48,J.F. Drake State,10003012,Chase,Oct,8,2014,Employ Taxable Non-Ovrnite Per Diem,General Operating Fund,$12.64
48,J.F. Drake State,10003012,Chase,Oct,8,2014,In State-Registration,General Operating Fund,$75.00
48,J.F. Drake State,10003012,Chase,Oct,8,2014,Credit Card Service Charges,General Operating Fund,$30.99
48,J.F. Drake State,10003012,Chase,Oct,8,2014,Materials and Supplies,Auxiliary - Copier Commissions,$186.58
48,J.F. Drake State,10003012,Chase,Oct,8,2014,Materials and Supplies,General Operating Fund,$77.00
48,J.F. Drake State,10003012,Chase,Oct,8,2014,Postage,General Operating Fund,$103.88
48,J.F. Drake State,10003012,Chase,Oct,8,2014,Employ Taxable Non-Ovrnite Per Diem,General Operating Fund,$16.19
48,J.F. Drake State,10003012,Chase,Oct,8,2014,Credit Card Service Charges,General Operating Fund,$105.15
48,J.F. Drake State,10003017,Progressive Specialty Insurance Com,Oct,8,2014,Insurance & Bonding,General Operating Fund,$461.00
48,J.F. Drake State,10003013,Verizon Wireless,Oct,8,2014,Communications,General Operating Fund,"$1,632.29"
48,J.F. Drake State,10003014,WEX Bank,Oct,8,2014,Gasoline & Oil-Motor Vehicle,General Operating Fund,$18.87
48,J.F. Drake State,30002286,WEX Bank,Oct,8,2014,In State-Mileage,Title III,$41.33
48,J.F. Drake State,30002286,WEX Bank,Oct,8,2014,Out-of-State-Mileage,Title III,$43.86
48,J.F. Drake State,30002286,WEX Bank,Oct,8,2014,In State-Mileage,Title III,$32.06
48,J.F. Drake State,30002286,WEX Bank,Oct,8,2014,In State-Mileage,Title III,$22.05
48,J.F. Drake State,30002286,WEX Bank,Oct,8,2014,In State-Other Travel Exp,Allied Health,$26.24
48,J.F. Drake State,10003014,WEX Bank,Oct,8,2014,Gasoline & Oil-Motor Vehicle,General Operating Fund,$32.39
48,J.F. Drake State,10003014,WEX Bank,Oct,8,2014,Gasoline & Oil-Motor Vehicle,General Operating Fund,$97.32
48,J.F. Drake State,30002286,WEX Bank,Oct,8,2014,In State-Mileage,Title III,$36.03
48,J.F. Drake State,30002286,WEX Bank,Oct,8,2014,Out-of-State-Mileage,Title III,$14.16
48,J.F. Drake State,10003014,WEX Bank,Oct,8,2014,Gasoline & Oil-Motor Vehicle,General Operating Fund,$45.25
48,J.F. Drake State,10003014,WEX Bank,Oct,8,2014,Gasoline & Oil-Motor Vehicle,General Operating Fund,$47.27
48,J.F. Drake State,10003014,WEX Bank,Oct,8,2014,Gasoline & Oil-Motor Vehicle,General Operating Fund,$118.86
48,J.F. Drake State,30002286,WEX Bank,Oct,8,2014,In State-Other Travel Exp,Allied Health,$22.57
48,J.F. Drake State,30002286,WEX Bank,Oct,8,2014,In State-Other Travel Exp,Title III,$31.09
48,J.F. Drake State,10003014,WEX Bank,Oct,8,2014,Gasoline & Oil-Motor Vehicle,General Operating Fund,$20.43
48,J.F. Drake State,10003014,WEX Bank,Oct,8,2014,Gasoline & Oil-Motor Vehicle,General Operating Fund,$27.39
48,J.F. Drake State,30002286,WEX Bank,Oct,8,2014,In State-Other Travel Exp,Title III,$47.22
48,J.F. Drake State,30002286,WEX Bank,Oct,8,2014,In State-Other Travel Exp,Title III,$45.25
48,J.F. Drake State,10003014,WEX Bank,Oct,8,2014,Gasoline & Oil-Motor Vehicle,General Operating Fund,$74.13
48,J.F. Drake State,10003014,WEX Bank,Oct,8,2014,Gasoline & Oil-Motor Vehicle,General Operating Fund,$28.25
48,J.F. Drake State,10003014,WEX Bank,Oct,8,2014,Gasoline & Oil-Motor Vehicle,General Operating Fund,$29.84
48,J.F. Drake State,10003014,WEX Bank,Oct,8,2014,Gasoline & Oil-Motor Vehicle,General Operating Fund,$37.60
48,J.F. Drake State,10003014,WEX Bank,Oct,8,2014,Gasoline & Oil-Motor Vehicle,General Operating Fund,$34.57
48,J.F. Drake State,30002286,WEX Bank,Oct,8,2014,In State-Other Travel Exp,Title III,$20.89
48,J.F. Drake State,30002286,WEX Bank,Oct,8,2014,In State-Other Travel Exp,Title III,$49.50
48,J.F. Drake State,10003014,WEX Bank,Oct,8,2014,Gasoline & Oil-Motor Vehicle,General Operating Fund,$44.29
48,J.F. Drake State,10003014,WEX Bank,Oct,8,2014,Gasoline & Oil-Motor Vehicle,General Operating Fund,$59.40
48,J.F. Drake State,10003014,WEX Bank,Oct,8,2014,Gasoline & Oil-Motor Vehicle,General Operating Fund,$38.58
48,J.F. Drake State,10003022,American Education Week,Oct,13,2014,Advertising & Promotions,General Operating Fund,$160.00
48,J.F. Drake State,10003021,NCCER,Oct,13,2014,College Accreditation Expense,General Operating Fund,$50.00
48,J.F. Drake State,30002303,AHEAD,Oct,14,2014,Materials and Supplies,Title III,"$1,146.50"
48,J.F. Drake State,10003023,Alabama Banner User Group,Oct,14,2014,In State-Registration,General Operating Fund,$350.00
48,J.F. Drake State,10003024,Alabama Department of Labor,Oct,14,2014,Unemployment Compensation,General Operating Fund,"$2,185.41"
48,J.F. Drake State,30002304,American Association of Community C,Oct,14,2014,Out-of-State-Registration,Spin Up,$350.00
48,J.F. Drake State,10003025,American Express,Oct,14,2014,Investment Transaction Exp,General Operating Fund,$313.26
48,J.F. Drake State,30002294,American Express,Oct,14,2014,Out-of-State-Commercl Trans,Trio-SSS Grant,$535.20
48,J.F. Drake State,30002294,American Express,Oct,14,2014,Out-of-State-Subsist & Lodging,Title III,$405.20
48,J.F. Drake State,30002294,American Express,Oct,14,2014,Out-of-State-Commercl Trans,Allied Health,"$1,161.70"
48,J.F. Drake State,30002294,American Express,Oct,14,2014,Out-of-State-Commercl Trans,Trio-SSS Grant,$596.20
48,J.F. Drake State,30002294,American Express,Oct,14,2014,Out-of-State-Commercl Trans,Trio-SSS Grant,$636.20
48,J.F. Drake State,30002294,American Express,Oct,14,2014,Out-of-State-Commercl Trans,Trio-SSS Grant,$339.00
48,J.F. Drake State,30002294,American Express,Oct,14,2014,Out-of-State-Commercl Trans,Title III,$727.20
48,J.F. Drake State,30002294,American Express,Oct,14,2014,Out-of-State-Commercl Trans,Title III,$543.20
48,J.F. Drake State,30002294,American Express,Oct,14,2014,Out-of-State-Other Travel Expenses,Title III,$573.20
48,J.F. Drake State,30002295,Berney Office Solutions,Oct,14,2014,Materials and Supplies,Title III,$98.00
48,J.F. Drake State,30002296,"Bulluck, Bruce A.",Oct,14,2014,In State-Ovrnite Per diem,Title III,$150.00
48,J.F. Drake State,10003026,CDW-G Government,Oct,14,2014,Non-capitalized Equipment,General Operating Fund,$744.29
48,J.F. Drake State,10003027,"Conditioned Air Solutions, LLC",Oct,14,2014,Maintenance & Repairs,General Operating Fund,"$1,159.53"
48,J.F. Drake State,10003028,Copeland Cleaners,Oct,14,2014,Other Contractual Services,General Operating Fund,$17.00
48,J.F. Drake State,30002297,"Green, Tiffany R.",Oct,14,2014,In State-Ovrnite Per diem,Title III,$225.00
48,J.F. Drake State,30002298,Hilton Garden Inn,Oct,14,2014,Participant Costs-Subsistence,DigiTec,$239.30
48,J.F. Drake State,10003029,Kathy Rose Bridal and Formal,Oct,14,2014,Rent - Equipment,General Operating Fund,$513.00
48,J.F. Drake State,10003030,Labor Ready,Oct,14,2014,Other Contractual Services,General Operating Fund,$321.12
48,J.F. Drake State,10003031,"Lamar, Joyce P.",Oct,14,2014,Materials and Supplies,General Operating Fund,$50.37
48,J.F. Drake State,10003032,"Lanier, Ford, Shaver & Payne PC",Oct,14,2014,Legal Services,General Operating Fund,$429.00
48,J.F. Drake State,10003032,"Lanier, Ford, Shaver & Payne PC",Oct,14,2014,Legal Services,General Operating Fund,"$1,823.25"
48,J.F. Drake State,30002299,Lee's Art Shop Inc.,Oct,14,2014,Materials and Supplies,APEX,$278.91
48,J.F. Drake State,10003033,"McAlpine, Helen T.",Oct,14,2014,In State-Ovrnite Per diem,General Operating Fund,$150.00
48,J.F. Drake State,10003033,"McAlpine, Helen T.",Oct,14,2014,In State-Mileage,General Operating Fund,$185.92
48,J.F. Drake State,10003034,Men's Wearhouse,Oct,14,2014,Rent - Equipment,General Operating Fund,$380.53
48,J.F. Drake State,10003035,Merchants Foodservice,Oct,14,2014,Purchases for Re-Sale,Auxiliary Enterprise-Unrestricted,$46.25
48,J.F. Drake State,10003036,"Office Depot, Inc",Oct,14,2014,Materials and Supplies,General Operating Fund,$299.99
48,J.F. Drake State,10003036,"Office Depot, Inc",Oct,14,2014,Purchases for Re-Sale,General Operating Fund,$447.96
48,J.F. Drake State,10003036,"Office Depot, Inc",Oct,14,2014,Materials and Supplies,General Operating Fund,$11.90
48,J.F. Drake State,10003036,"Office Depot, Inc",Oct,14,2014,Materials and Supplies,General Operating Fund,$4.83
48,J.F. Drake State,10003036,"Office Depot, Inc",Oct,14,2014,Materials and Supplies,General Operating Fund,$49.36
48,J.F. Drake State,10003036,"Office Depot, Inc",Oct,14,2014,Materials and Supplies,General Operating Fund,$16.19
48,J.F. Drake State,10003036,"Office Depot, Inc",Oct,14,2014,Materials and Supplies,General Operating Fund,"$1,261.74"
48,J.F. Drake State,30002300,"Opoku-Boateng, Akua K.",Oct,14,2014,In State-Mileage,Spin Up,$179.14
48,J.F. Drake State,30002301,"PODS Enterprises, Inc.",Oct,14,2014,Other Contractual Services,Allied Health,$159.00
48,J.F. Drake State,10003037,Publix Alabama,Oct,14,2014,Materials and Supplies,General Operating Fund,$138.46
48,J.F. Drake State,10003041,"Rocket City Broadcasting, LLC",Oct,14,2014,Advertising & Promotions,General Operating Fund,$585.00
48,J.F. Drake State,10003041,"Rocket City Broadcasting, LLC",Oct,14,2014,Indirect Cost Expense,Adult Ed Recruitment & Retention,"$1,980.00"
48,J.F. Drake State,10003039,Safelite Auto Glass,Oct,14,2014,Maintenance & Repairs,General Operating Fund,$230.89
48,J.F. Drake State,30002302,Sargent-Welch,Oct,14,2014,Materials and Supplies,APEX,$62.06
48,J.F. Drake State,10003040,US Department of Veteran Affairs,Oct,14,2014,Unapplied Payments,General Operating Fund,"$1,269.00"
48,J.F. Drake State,10003040,US Department of Veteran Affairs,Oct,14,2014,Unapplied Payments,General Operating Fund,"$1,598.00"
48,J.F. Drake State,10003042,WAFF,Oct,14,2014,Advertising & Promotions,General Operating Fund,"$1,246.10"
48,J.F. Drake State,10003043,ACT,Oct,17,2014,Out-of-State-Registration,General Operating Fund,$195.00
48,J.F. Drake State,10003043,ACT,Oct,17,2014,Materials and Supplies,General Operating Fund,$357.50
48,J.F. Drake State,30002305,Alabama Banner User Group,Oct,17,2014,In State-Registration,Title III,$350.00
48,J.F. Drake State,10003044,Alabama Labor Law Poster,Oct,17,2014,Materials and Supplies,General Operating Fund,$125.50
48,J.F. Drake State,10003062,Berney Office Solutions,Oct,17,2014,Other Contractual Services,General Operating Fund,"$1,971.70"
48,J.F. Drake State,10003045,Better Business Bureau,Oct,17,2014,Memberships,General Operating Fund,$430.00
48,J.F. Drake State,10003046,"Brooks Lock & Key, Inc",Oct,17,2014,Maintenance & Repairs,General Operating Fund,"$3,839.95"
48,J.F. Drake State,10003047,C.C. Dickson Co.,Oct,17,2014,Maintenance & Repairs,General Operating Fund,$538.55
48,J.F. Drake State,30002306,CDW-G Government,Oct,17,2014,Materials and Supplies,Title III,"$2,432.88"
48,J.F. Drake State,10003048,Clear Channel Broadcasting Inc.,Oct,17,2014,Advertising & Promotions,General Operating Fund,"$1,500.00"
48,J.F. Drake State,10003063,Department of Finance,Oct,17,2014,Communications,General Operating Fund,$45.78
48,J.F. Drake State,10003049,"Dynamic Security, Inc.",Oct,17,2014,Other Contractual Services,General Operating Fund,"$4,665.60"
48,J.F. Drake State,10003064,Earthlink,Oct,17,2014,Communications,General Operating Fund,"$5,501.58"
48,J.F. Drake State,10003065,Ellucian Company L.P.,Oct,17,2014,Construction in Progress,Renewal and Repacement Funds,"$1,606.19"
48,J.F. Drake State,10003065,Ellucian Company L.P.,Oct,17,2014,Construction in Progress,Renewal and Repacement Funds,"$4,553.52"
48,J.F. Drake State,10003050,Fastenal Company,Oct,17,2014,Non-capitalized Equipment,Carl Perkins Career & Tech Ed Grant,"$54,769.00"
48,J.F. Drake State,10003050,Fastenal Company,Oct,17,2014,Non-capitalized Equipment,Perkins Funds,"$54,769.00"
48,J.F. Drake State,10003050,Fastenal Company,Oct,17,2014,"Furniture & Equip $25,000 or Less",Perkins Funds,"$16,459.00"
48,J.F. Drake State,10003050,Fastenal Company,Oct,17,2014,"Furniture & Equip $25,000 or Less",Carl Perkins Career & Tech Ed Grant,"$16,459.00"
48,J.F. Drake State,10003066,FedEx,Oct,17,2014,Freight,General Operating Fund,$69.50
48,J.F. Drake State,10003066,FedEx,Oct,17,2014,Freight,General Operating Fund,$77.06
48,J.F. Drake State,10003051,Huntsville Rotary Club,Oct,17,2014,Memberships,General Operating Fund,"$1,145.00"
48,J.F. Drake State,10003052,Huntsville Utilities,Oct,17,2014,Water & Sewer,General Operating Fund,$629.81
48,J.F. Drake State,10003052,Huntsville Utilities,Oct,17,2014,Water & Sewer,General Operating Fund,$39.81
48,J.F. Drake State,30002307,Janpak,Oct,17,2014,Materials and Supplies,Allied Health,"$6,375.00"
48,J.F. Drake State,30002307,Janpak,Oct,17,2014,Materials and Supplies,Title III,$0.05
48,J.F. Drake State,30002308,John Wiley & Sons Inc.,Oct,17,2014,Books,Title III,$30.74
48,J.F. Drake State,10003053,Labor Ready,Oct,17,2014,Other Contractual Services,General Operating Fund,$267.60
48,J.F. Drake State,10003053,Labor Ready,Oct,17,2014,Other Contractual Services,General Operating Fund,$321.12
48,J.F. Drake State,10003067,Loomis,Oct,17,2014,Other Contractual Services,General Operating Fund,$140.08
48,J.F. Drake State,10003054,"MakerBot Industries, LLC",Oct,17,2014,"Furniture & Equip $25,000 or Less",Perkins Funds,"$7,317.11"
48,J.F. Drake State,10003054,"MakerBot Industries, LLC",Oct,17,2014,Non-capitalized Equipment,Carl Perkins Career & Tech Ed Grant,"$1,187.50"
48,J.F. Drake State,10003054,"MakerBot Industries, LLC",Oct,17,2014,"Furniture & Equip $25,000 or Less",Carl Perkins Career & Tech Ed Grant,"$7,317.11"
48,J.F. Drake State,10003054,"MakerBot Industries, LLC",Oct,17,2014,Non-capitalized Equipment,Perkins Funds,"$1,187.50"
48,J.F. Drake State,10003054,"MakerBot Industries, LLC",Oct,17,2014,Non-capitalized Equipment,Carl Perkins Career & Tech Ed Grant,"$5,834.06"
48,J.F. Drake State,10003054,"MakerBot Industries, LLC",Oct,17,2014,Non-capitalized Equipment,Perkins Funds,"$5,834.06"
48,J.F. Drake State,30002309,Medical Shipment LLC,Oct,17,2014,"Furniture & Equip $25,000 or Less",Allied Health,"$21,899.00"
48,J.F. Drake State,10003055,Merchants Foodservice,Oct,17,2014,Purchases for Re-Sale,Auxiliary Enterprise-Unrestricted,$286.10
48,J.F. Drake State,10003055,Merchants Foodservice,Oct,17,2014,Purchases for Re-Sale,Auxiliary Enterprise-Unrestricted,$35.34
48,J.F. Drake State,10003055,Merchants Foodservice,Oct,17,2014,Purchases for Re-Sale,Auxiliary Enterprise-Unrestricted,"$1,155.16"
48,J.F. Drake State,10003055,Merchants Foodservice,Oct,17,2014,Purchases for Re-Sale,Auxiliary Enterprise-Unrestricted,"$1,807.28"
48,J.F. Drake State,30002310,Midwest Library Service,Oct,17,2014,Books,Title III,$41.63
48,J.F. Drake State,30002310,Midwest Library Service,Oct,17,2014,Books,Title III,$69.79
48,J.F. Drake State,30002311,Moore Medical Corp,Oct,17,2014,Materials and Supplies,Allied Health,$801.67
48,J.F. Drake State,30002311,Moore Medical Corp,Oct,17,2014,Materials and Supplies,Allied Health,$2.75
48,J.F. Drake State,30002312,"Office Depot, Inc",Oct,17,2014,Materials and Supplies,Title III,$75.45
48,J.F. Drake State,30002312,"Office Depot, Inc",Oct,17,2014,Materials and Supplies,Allied Health,$923.37
48,J.F. Drake State,30002312,"Office Depot, Inc",Oct,17,2014,Materials and Supplies,Allied Health,"$1,432.57"
48,J.F. Drake State,30002312,"Office Depot, Inc",Oct,17,2014,Materials and Supplies,Allied Health,$52.76
48,J.F. Drake State,10003056,"Office Depot, Inc",Oct,17,2014,Materials and Supplies,Carl Perkins Career & Tech Ed Grant,$395.94
48,J.F. Drake State,30002312,"Office Depot, Inc",Oct,17,2014,Materials and Supplies,Allied Health,$484.99
48,J.F. Drake State,30002312,"Office Depot, Inc",Oct,17,2014,Materials and Supplies,Allied Health,$107.68
48,J.F. Drake State,30002312,"Office Depot, Inc",Oct,17,2014,Materials and Supplies,Allied Health,$19.50
48,J.F. Drake State,30002312,"Office Depot, Inc",Oct,17,2014,Materials and Supplies,Title III,$346.41
48,J.F. Drake State,30002312,"Office Depot, Inc",Oct,17,2014,Materials and Supplies,Title III,$322.44
48,J.F. Drake State,10003056,"Office Depot, Inc",Oct,17,2014,Materials and Supplies,Perkins Funds,$395.94
48,J.F. Drake State,10003056,"Office Depot, Inc",Oct,17,2014,Materials and Supplies,General Operating Fund,"$1,078.60"
48,J.F. Drake State,30002312,"Office Depot, Inc",Oct,17,2014,Materials and Supplies,Allied Health,$41.54
48,J.F. Drake State,30002312,"Office Depot, Inc",Oct,17,2014,Materials and Supplies,Allied Health,$135.96
48,J.F. Drake State,30002312,"Office Depot, Inc",Oct,17,2014,Materials and Supplies,Title III,$34.15
48,J.F. Drake State,30002312,"Office Depot, Inc",Oct,17,2014,Materials and Supplies,Title III,$9.54
48,J.F. Drake State,30002312,"Office Depot, Inc",Oct,17,2014,Materials and Supplies,Allied Health,$8.78
48,J.F. Drake State,10003056,"Office Depot, Inc",Oct,17,2014,Materials and Supplies,General Operating Fund,$24.33
48,J.F. Drake State,30002312,"Office Depot, Inc",Oct,17,2014,Materials and Supplies,Title III,"$2,292.92"
48,J.F. Drake State,30002312,"Office Depot, Inc",Oct,17,2014,Materials and Supplies,Title III,$650.85
48,J.F. Drake State,10003056,"Office Depot, Inc",Oct,17,2014,Materials and Supplies,General Operating Fund,$18.90
48,J.F. Drake State,30002312,"Office Depot, Inc",Oct,17,2014,Materials and Supplies,Allied Health,$6.12
48,J.F. Drake State,30002312,"Office Depot, Inc",Oct,17,2014,Materials and Supplies,Allied Health,$139.99
48,J.F. Drake State,30002312,"Office Depot, Inc",Oct,17,2014,Materials and Supplies,Allied Health,$16.72
48,J.F. Drake State,30002312,"Office Depot, Inc",Oct,17,2014,Materials and Supplies,Allied Health,$12.72
48,J.F. Drake State,10003056,"Office Depot, Inc",Oct,17,2014,Materials and Supplies,General Operating Fund,"$1,261.44"
48,J.F. Drake State,30002312,"Office Depot, Inc",Oct,17,2014,Materials and Supplies,Title III,$10.86
48,J.F. Drake State,30002312,"Office Depot, Inc",Oct,17,2014,Materials and Supplies,Title III,$68.69
48,J.F. Drake State,30002312,"Office Depot, Inc",Oct,17,2014,Materials and Supplies,Title III,$2.38
48,J.F. Drake State,10003068,Purchase Power,Oct,17,2014,Postage,General Operating Fund,$68.99
48,J.F. Drake State,10003057,"Quality Outdoor Advertising, LLC",Oct,17,2014,Indirect Cost Expense,Adult Ed Recruitment & Retention,"$5,236.00"
48,J.F. Drake State,10003069,Reserve Account   Acct# 16265175,Oct,17,2014,Postage,General Operating Fund,"$2,500.00"
48,J.F. Drake State,10003058,Sexton Welding Supply,Oct,17,2014,Purchases for Re-Sale,Auxiliary Enterprise-Unrestricted,"$1,519.27"
48,J.F. Drake State,10003070,State of Alabama Division of Risk M,Oct,17,2014,Insurance & Bonding,General Operating Fund,"$20,415.00"
48,J.F. Drake State,30002313,The Library Store Inc,Oct,17,2014,Materials and Supplies,Title III,$211.86
48,J.F. Drake State,30002313,The Library Store Inc,Oct,17,2014,Materials and Supplies,Title III,"$3,569.70"
48,J.F. Drake State,10003059,"The Solutions Team, Inc.",Oct,17,2014,Computer Software-Non Cap,General Operating Fund,$200.00
48,J.F. Drake State,10003060,"Thomas Electric, Inc.",Oct,17,2014,Other Contractual Services,General Operating Fund,"$4,995.00"
48,J.F. Drake State,30002314,Wallcur,Oct,17,2014,Materials and Supplies,Allied Health,"$1,088.25"
48,J.F. Drake State,10003061,Yarbrough & Sons Paving,Oct,17,2014,Maintenance & Repairs,General Operating Fund,$850.00
48,J.F. Drake State,10003073,ACCA,Oct,20,2014,Advertising & Promotions,General Operating Fund,$125.00
48,J.F. Drake State,10003071,CDW-G Government,Oct,20,2014,Computer Software-Non Cap,General Operating Fund,"$9,187.00"
48,J.F. Drake State,10003071,CDW-G Government,Oct,20,2014,Non-capitalized Equipment,Carl Perkins Career & Tech Ed Grant,"$3,932.50"
48,J.F. Drake State,10003071,CDW-G Government,Oct,20,2014,Non-capitalized Equipment,Carl Perkins Career & Tech Ed Grant,$107.37
48,J.F. Drake State,10003071,CDW-G Government,Oct,20,2014,Non-capitalized Equipment,Carl Perkins Career & Tech Ed Grant,$682.64
48,J.F. Drake State,10003071,CDW-G Government,Oct,20,2014,Non-capitalized Equipment,Perkins Funds,"$3,932.50"
48,J.F. Drake State,10003071,CDW-G Government,Oct,20,2014,Non-capitalized Equipment,Perkins Funds,$692.08
48,J.F. Drake State,10003071,CDW-G Government,Oct,20,2014,Non-capitalized Equipment,General Operating Fund,"$4,847.58"
48,J.F. Drake State,10003071,CDW-G Government,Oct,20,2014,Non-capitalized Equipment,Perkins Funds,$682.64
48,J.F. Drake State,10003071,CDW-G Government,Oct,20,2014,Non-capitalized Equipment,General Operating Fund,$83.41
48,J.F. Drake State,10003071,CDW-G Government,Oct,20,2014,Non-capitalized Equipment,Carl Perkins Career & Tech Ed Grant,$692.08
48,J.F. Drake State,10003071,CDW-G Government,Oct,20,2014,Non-capitalized Equipment,Perkins Funds,$107.37
48,J.F. Drake State,30002316,"Collie, Richard",Oct,20,2014,Out-of-State-Other Travel Expenses,Trio-SSS Grant,$157.97
48,J.F. Drake State,10003074,Council for Resource Development,Oct,20,2014,Out-of-State-Registration,General Operating Fund,$595.00
48,J.F. Drake State,10003074,Council for Resource Development,Oct,20,2014,Out-of-State-Registration,General Operating Fund,$645.00
48,J.F. Drake State,10003081,ACCA,Oct,24,2014,Advertising & Promotions,General Operating Fund,$400.00
48,J.F. Drake State,10003081,ACCA,Oct,24,2014,In State-Registration,General Operating Fund,$150.00
48,J.F. Drake State,10003082,Alabama Counseling Association,Oct,24,2014,Advertising & Promotions,General Operating Fund,"$1,500.00"
48,J.F. Drake State,30002346,Berney Office Solutions,Oct,24,2014,"Furniture & Equip $25,000 or Less",Allied Health,"$6,556.00"
48,J.F. Drake State,10003083,CDW-G Government,Oct,24,2014,Materials and Supplies,Perkins Funds,$179.54
48,J.F. Drake State,10003083,CDW-G Government,Oct,24,2014,Materials and Supplies,Perkins Funds,$107.53
48,J.F. Drake State,10003083,CDW-G Government,Oct,24,2014,Materials and Supplies,Carl Perkins Career & Tech Ed Grant,$483.62
48,J.F. Drake State,10003083,CDW-G Government,Oct,24,2014,Materials and Supplies,Carl Perkins Career & Tech Ed Grant,$179.54
48,J.F. Drake State,10003083,CDW-G Government,Oct,24,2014,Materials and Supplies,Perkins Funds,$483.62
48,J.F. Drake State,10003083,CDW-G Government,Oct,24,2014,Materials and Supplies,Carl Perkins Career & Tech Ed Grant,$107.53
48,J.F. Drake State,30002347,Cerebellum Corporation,Oct,24,2014,Audio Visual,Title III,"$1,452.39"
48,J.F. Drake State,30002348,Connections Housing,Oct,24,2014,Out-of-State-Subsist & Lodging,Title III-Act 2 Improving Instruct,"$5,762.59"
48,J.F. Drake State,10003084,Education To Go,Oct,24,2014,Other Contractual Services,General Operating Fund,$195.00
48,J.F. Drake State,10003084,Education To Go,Oct,24,2014,Other Contractual Services,General Operating Fund,$6.75
48,J.F. Drake State,10003084,Education To Go,Oct,24,2014,Other Contractual Services,General Operating Fund,$65.00
48,J.F. Drake State,10003084,Education To Go,Oct,24,2014,Other Contractual Services,General Operating Fund,$2.25
48,J.F. Drake State,10003085,"Franklin, Horace L.",Oct,24,2014,Communications,General Operating Fund,$363.42
48,J.F. Drake State,10003086,In10sity Interactive,Oct,24,2014,Other Contractual Services,General Operating Fund,"$1,200.00"
48,J.F. Drake State,10003087,James Clemens High School,Oct,24,2014,Advertising & Promotions,General Operating Fund,$110.00
48,J.F. Drake State,30002349,John Wiley & Sons Inc.,Oct,24,2014,Books,Title III,$44.24
48,J.F. Drake State,30002349,John Wiley & Sons Inc.,Oct,24,2014,Books,Title III,$79.46
48,J.F. Drake State,30002349,John Wiley & Sons Inc.,Oct,24,2014,Books,Title III,$46.04
48,J.F. Drake State,30002349,John Wiley & Sons Inc.,Oct,24,2014,Books,Title III,"$1,712.82"
48,J.F. Drake State,30002349,John Wiley & Sons Inc.,Oct,24,2014,Books,Title III,$224.21
48,J.F. Drake State,30002349,John Wiley & Sons Inc.,Oct,24,2014,Books,Title III,$43.21
48,J.F. Drake State,30002349,John Wiley & Sons Inc.,Oct,24,2014,Books,Title III,$130.98
48,J.F. Drake State,30002349,John Wiley & Sons Inc.,Oct,24,2014,Books,Title III,$48.74
48,J.F. Drake State,30002349,John Wiley & Sons Inc.,Oct,24,2014,Books,Title III,"$1,222.56"
48,J.F. Drake State,30002349,John Wiley & Sons Inc.,Oct,24,2014,Books,Title III,$89.69
48,J.F. Drake State,30002349,John Wiley & Sons Inc.,Oct,24,2014,Books,Title III,$53.69
48,J.F. Drake State,30002349,John Wiley & Sons Inc.,Oct,24,2014,Books,Title III,$80.69
48,J.F. Drake State,30002349,John Wiley & Sons Inc.,Oct,24,2014,Books,Title III,$30.74
48,J.F. Drake State,30002349,John Wiley & Sons Inc.,Oct,24,2014,Books,Title III,$51.89
48,J.F. Drake State,10003088,Labor Ready,Oct,24,2014,Other Contractual Services,General Operating Fund,$214.08
48,J.F. Drake State,30002350,"Lam, Thuy",Oct,24,2014,In State-Ovrnite Per diem,Allied Health,$150.00
48,J.F. Drake State,10003089,Lowe's Home Centers,Oct,24,2014,Materials and Supplies,General Operating Fund,$21.64
48,J.F. Drake State,30002351,"Meador, Maria Y.",Oct,24,2014,In State-Other Travel Exp,Trio-SSS Grant,$950.00
48,J.F. Drake State,30002352,Midwest Library Service,Oct,24,2014,Books,Title III,$38.70
48,J.F. Drake State,30002353,"Milling, Deborah A.",Oct,24,2014,In State-Ovrnite Per diem,SAFRA-Activity 1 Allied Health,$150.00
48,J.F. Drake State,30002353,"Milling, Deborah A.",Oct,24,2014,In State-Ovrnite Per diem,Allied Health,$150.00
48,J.F. Drake State,10003090,NCMPR,Oct,24,2014,Out-of-State-Registration,General Operating Fund,$500.00
48,J.F. Drake State,30002354,National League for Nursing,Oct,24,2014,Memberships,SAFRA-Activity 1 Allied Health,"$1,130.00"
48,J.F. Drake State,30002355,National Seminars Training,Oct,24,2014,Professional Development,Title III-Activity 1 Fiscal Managem,$129.00
48,J.F. Drake State,10003091,"Office Depot, Inc",Oct,24,2014,Materials and Supplies,General Operating Fund,$508.98
48,J.F. Drake State,10003091,"Office Depot, Inc",Oct,24,2014,Materials and Supplies,Auxiliary - Copier/Vend Commissions,$24.38
48,J.F. Drake State,30002356,"Office Depot, Inc",Oct,24,2014,Materials and Supplies,Title III,$17.85
48,J.F. Drake State,10003091,"Office Depot, Inc",Oct,24,2014,Materials and Supplies,Auxiliary - Copier Commissions,$10.18
48,J.F. Drake State,10003091,"Office Depot, Inc",Oct,24,2014,Materials and Supplies,Auxiliary - Copier Commissions,$24.38
48,J.F. Drake State,10003091,"Office Depot, Inc",Oct,24,2014,Materials and Supplies,General Operating Fund,$17.96
48,J.F. Drake State,10003091,"Office Depot, Inc",Oct,24,2014,Materials and Supplies,Auxiliary - Copier/Vend Commissions,$10.18
48,J.F. Drake State,10003092,PMT Publishing Inc.,Oct,24,2014,Advertising & Promotions,General Operating Fund,"$1,659.00"
48,J.F. Drake State,10003093,AT&T,Oct,27,2014,Communications,General Operating Fund,$101.46
48,J.F. Drake State,10003093,AT&T,Oct,27,2014,Communications,General Operating Fund,$303.70
48,J.F. Drake State,10003094,Berney Office Solutions,Oct,27,2014,Other Contractual Services,General Operating Fund,"$2,059.12"
48,J.F. Drake State,10003095,Ellucian Company L.P.,Oct,27,2014,Other Contractual Services,General Operating Fund,"$11,978.00"
48,J.F. Drake State,10003096,Huntsville Utilities,Oct,27,2014,Electricity,General Operating Fund,$734.57
48,J.F. Drake State,10003096,Huntsville Utilities,Oct,27,2014,Water & Sewer,General Operating Fund,$417.50
48,J.F. Drake State,10003096,Huntsville Utilities,Oct,27,2014,Electricity,General Operating Fund,$220.34
48,J.F. Drake State,10003096,Huntsville Utilities,Oct,27,2014,Gas & Heating Fuel,General Operating Fund,$545.56
48,J.F. Drake State,10003096,Huntsville Utilities,Oct,27,2014,Electricity,General Operating Fund,"$20,032.84"
48,J.F. Drake State,10003096,Huntsville Utilities,Oct,27,2014,Water & Sewer,General Operating Fund,"$2,061.34"
48,J.F. Drake State,10003097,WOW! Business,Oct,27,2014,Communications,General Operating Fund,$178.92
48,J.F. Drake State,30002357," Pensacola State College, Florida",Oct,29,2014,Other Contractual Services,DigiTec,$400.00
48,J.F. Drake State,10003098,ACCSHRMA,Oct,29,2014,Memberships,General Operating Fund,$250.00
48,J.F. Drake State,10003099,Alabama Counseling Association,Oct,29,2014,Memberships,General Operating Fund,$65.00
48,J.F. Drake State,30002358,Alabama Counseling Association,Oct,29,2014,In State-Registration,Title III-Act 3 Student Services,$96.00
48,J.F. Drake State,30002359,"Banks, Terrell G.",Oct,29,2014,Participant Costs-Travel,GA-AL LSAMP NSF HRD 1305041,$100.00
48,J.F. Drake State,30002360,Best Book,Oct,29,2014,Books,Title III,"$1,355.73"
48,J.F. Drake State,30002360,Best Book,Oct,29,2014,Books,Title III,$188.06
48,J.F. Drake State,30002361,"Burden, Frank E.",Oct,29,2014,Participant Costs-Travel,GA-AL LSAMP NSF HRD 1305041,$100.00
48,J.F. Drake State,10003101,CDW-G Government,Oct,29,2014,Materials and Supplies,Carl Perkins Career & Tech Ed Grant,$461.41
48,J.F. Drake State,10003101,CDW-G Government,Oct,29,2014,Materials and Supplies,Perkins Funds,$461.41
48,J.F. Drake State,10003101,CDW-G Government,Oct,29,2014,Materials and Supplies,Carl Perkins Career & Tech Ed Grant,$215.06
48,J.F. Drake State,10003101,CDW-G Government,Oct,29,2014,Materials and Supplies,Perkins Funds,$215.06
48,J.F. Drake State,10003101,CDW-G Government,Oct,29,2014,Materials and Supplies,Perkins Funds,$518.44
48,J.F. Drake State,10003101,CDW-G Government,Oct,29,2014,Materials and Supplies,Carl Perkins Career & Tech Ed Grant,$518.44
48,J.F. Drake State,30002362,Capital Trailways,Oct,29,2014,In State-Commercl Transprt,Trio-SSS Grant,$970.00
48,J.F. Drake State,10003100,"Castle Branch, Inc.",Oct,29,2014,Purchases for Re-Sale,Auxiliary - Nursing Fees,$120.75
48,J.F. Drake State,30002372,Cerebellum Corporation,Oct,29,2014,Audio Visual,Title III,$59.95
48,J.F. Drake State,10003102,Copeland Cleaners,Oct,29,2014,Other Contractual Services,General Operating Fund,$164.29
48,J.F. Drake State,30002363,"Curry, Leo",Oct,29,2014,Participant Costs-Travel,GA-AL LSAMP NSF HRD 1305041,$100.00
48,J.F. Drake State,10003103,"Dynamic Security, Inc.",Oct,29,2014,Other Contractual Services,General Operating Fund,"$4,665.60"
48,J.F. Drake State,10003104,Education To Go,Oct,29,2014,Other Contractual Services,General Operating Fund,$67.25
48,J.F. Drake State,30002364,"Eng, Lesley-Anne T.",Oct,29,2014,In State-Registration,Title III-Act 3 Student Services,$85.00
48,J.F. Drake State,10003105,Enterprise,Oct,29,2014,Materials and Supplies,General Operating Fund,$365.41
48,J.F. Drake State,10003106,Fastenal Company,Oct,29,2014,Materials and Supplies,General Operating Fund,"$4,956.00"
48,J.F. Drake State,10003106,Fastenal Company,Oct,29,2014,Materials and Supplies,General Operating Fund,$125.76
48,J.F. Drake State,10003106,Fastenal Company,Oct,29,2014,Materials and Supplies,General Operating Fund,"$1,665.77"
48,J.F. Drake State,10003120,Gadsden State Community College,Oct,29,2014,Out-of-State-Registration,General Operating Fund,$550.00
48,J.F. Drake State,30002365,"Glasgow, Gezelle B.",Oct,29,2014,Participant Costs-Travel,GA-AL LSAMP NSF HRD 1305041,$100.00
48,J.F. Drake State,30002373,Grey House Publishing,Oct,29,2014,Books,Title III,$161.00
48,J.F. Drake State,10003107,HESI - ELSEVIER,Oct,29,2014,Purchases for Re-Sale,Auxiliary - Nursing Fees,$476.00
48,J.F. Drake State,10003108,Huntsville Hospital - Corporate Uni,Oct,29,2014,Purchases for Re-Sale,General Operating Fund,$250.00
48,J.F. Drake State,10003118,In10sity Interactive,Oct,29,2014,Other Contractual Services,General Operating Fund,$250.00
48,J.F. Drake State,30002366,"Ivey, Neoka J.",Oct,29,2014,In State-Registration,Title III-Act 3 Student Services,$85.00
48,J.F. Drake State,30002366,"Ivey, Neoka J.",Oct,29,2014,In State-Mileage,Title III-Act 3 Student Services,$225.12
48,J.F. Drake State,10003109,"Ivey, Neoka J.",Oct,29,2014,Materials and Supplies,General Operating Fund,$327.83
48,J.F. Drake State,10003110,J.R. Enterprises,Oct,29,2014,Other Contractual Services,General Operating Fund,"$7,648.88"
48,J.F. Drake State,30002367,"Jackson, Antoinette Y.",Oct,29,2014,Participant Costs-Travel,GA-AL LSAMP NSF HRD 1305041,$100.00
48,J.F. Drake State,30002368,"Johnson, Nina M.",Oct,29,2014,Participant Costs-Travel,GA-AL LSAMP NSF HRD 1305041,$100.00
48,J.F. Drake State,10003111,"Koorsen Security Technology, Inc",Oct,29,2014,Maintenance & Repairs,General Operating Fund,$105.00
48,J.F. Drake State,30002369,"Matthews, Craig A.",Oct,29,2014,Participant Costs-Travel,GA-AL LSAMP NSF HRD 1305041,$100.00
48,J.F. Drake State,10003112,"Mobile Mini, Inc",Oct,29,2014,Other Contractual Services,General Operating Fund,$114.99
48,J.F. Drake State,30002370,"Office Depot, Inc",Oct,29,2014,Materials and Supplies,Title III,$43.94
48,J.F. Drake State,30002370,"Office Depot, Inc",Oct,29,2014,Materials and Supplies,Title III,$359.95
48,J.F. Drake State,30002370,"Office Depot, Inc",Oct,29,2014,Non-capitalized Equipment,Allied Health,"$2,319.98"
48,J.F. Drake State,10003113,"Office Depot, Inc",Oct,29,2014,Materials and Supplies,General Operating Fund,$146.99
48,J.F. Drake State,10003113,"Office Depot, Inc",Oct,29,2014,Materials and Supplies,General Operating Fund,$26.94
48,J.F. Drake State,10003113,"Office Depot, Inc",Oct,29,2014,Materials and Supplies,General Operating Fund,$49.18
48,J.F. Drake State,10003113,"Office Depot, Inc",Oct,29,2014,Materials and Supplies,General Operating Fund,$98.66
48,J.F. Drake State,30002371,"Perryman, Shaun D.",Oct,29,2014,Participant Costs-Travel,GA-AL LSAMP NSF HRD 1305041,$100.00
48,J.F. Drake State,30002374,Rowman & Littlefield Publishing Gro,Oct,29,2014,Books,Title III,"$4,557.89"
48,J.F. Drake State,10003114,Sexton Welding Supply,Oct,29,2014,Other Contractual Services,General Operating Fund,$852.00
48,J.F. Drake State,10003115,Sonesta Resort Hilton Head,Oct,29,2014,Out-of-State-Subsist & Lodging,General Operating Fund,$717.00
48,J.F. Drake State,10003116,"Training Consultants, Inc",Oct,29,2014,"Furniture & Equip $25,000 or Less",Perkins Funds,"$10,110.00"
48,J.F. Drake State,10003116,"Training Consultants, Inc",Oct,29,2014,"Furniture & Equip $25,000 or Less",Carl Perkins Career & Tech Ed Grant,"$10,110.00"
48,J.F. Drake State,10003117,WAFF,Oct,29,2014,Advertising & Promotions,General Operating Fund,$256.30
48,J.F. Drake State,10003117,WAFF,Oct,29,2014,Advertising & Promotions,General Operating Fund,$35.70
48,J.F. Drake State,10003121,Alabama Child Support,Oct,30,2014,Misc Deductions Payable,Payroll Clearing Fund,"$2,489.18"
48,J.F. Drake State,10003122,Allstate Insurance,Oct,30,2014,Misc Deductions Payable,Payroll Clearing Fund,$54.80
48,J.F. Drake State,10003123,American Family Life,Oct,30,2014,Misc Deductions Payable,Payroll Clearing Fund,$125.68
48,J.F. Drake State,10003124,Colonial Life Insurance,Oct,30,2014,Misc Deductions Payable,Payroll Clearing Fund,$39.65
48,J.F. Drake State,10003125,Drake State Foundation,Oct,30,2014,Misc Deductions Payable,Payroll Clearing Fund,$245.42
48,J.F. Drake State,10003126,Educators Benefit,Oct,30,2014,Misc Deductions Payable,Payroll Clearing Fund,"$1,118.62"
48,J.F. Drake State,10003127,Linda B. Gore,Oct,30,2014,Misc Deductions Payable,Payroll Clearing Fund,"$1,472.00"
48,J.F. Drake State,10003128,Metropolitan Life Insurance Company,Oct,30,2014,Misc Deductions Payable,Payroll Clearing Fund,$100.00
48,J.F. Drake State,10003129,NAECU,Oct,30,2014,Misc Deductions Payable,Payroll Clearing Fund,"$3,036.00"
48,J.F. Drake State,10003130,New York Life Insurance,Oct,30,2014,Misc Deductions Payable,Payroll Clearing Fund,$365.25
48,J.F. Drake State,10003131,PEEHIP,Oct,30,2014,PEEHIP Payable,Payroll Clearing Fund,"$82,434.22"
48,J.F. Drake State,10003132,Philip A Geddes,Oct,30,2014,Misc Deductions Payable,Payroll Clearing Fund,$938.00
48,J.F. Drake State,10003133,Security Benefit Life Insurance Com,Oct,30,2014,Misc Deductions Payable,Payroll Clearing Fund,$425.00
48,J.F. Drake State,10003134,Teachers Retirement System,Oct,30,2014,Alabama Teachers Retirement Payable,Payroll Clearing Fund,"$76,669.46"
48,J.F. Drake State,10003135,Truescreen Inc.,Oct,30,2014,Background Checks,Payroll Clearing Fund,$65.00
48,J.F. Drake State,10003136,U.S. Department of Education,Oct,30,2014,Misc Deductions Payable,Payroll Clearing Fund,$285.53
48,J.F. Drake State,10003137,"United Way of Madison County, Inc.",Oct,30,2014,Misc Deductions Payable,Payroll Clearing Fund,$390.00
48,J.F. Drake State,10003138,Variable Annuity Life Insurance,Oct,30,2014,Misc Deductions Payable,Payroll Clearing Fund,$757.50
48,J.F. Drake State,10003139,"Michael Ford, Chapter 13 Trustee",Nov,3,2014,Misc Deductions Payable,Payroll Clearing Fund,$508.00
48,J.F. Drake State,10003140,Philip A Geddes,Nov,3,2014,Misc Deductions Payable,Payroll Clearing Fund,$430.00
48,J.F. Drake State,10003152,ACCA,Nov,10,2014,Advertising & Promotions,General Operating Fund,$380.00
48,J.F. Drake State,10003141,AT&T,Nov,10,2014,Communications,General Operating Fund,$84.92
48,J.F. Drake State,10003141,AT&T,Nov,10,2014,Communications,General Operating Fund,$213.15
48,J.F. Drake State,10003141,AT&T,Nov,10,2014,Communications,General Operating Fund,$1.69
48,J.F. Drake State,10003142,Chevron and Texaco,Nov,10,2014,Gasoline & Oil-Motor Vehicle,General Operating Fund,$43.75
48,J.F. Drake State,10003142,Chevron and Texaco,Nov,10,2014,Gasoline & Oil-Motor Vehicle,General Operating Fund,$1.54
48,J.F. Drake State,10003142,Chevron and Texaco,Nov,10,2014,Gasoline & Oil-Motor Vehicle,General Operating Fund,$15.24
48,J.F. Drake State,10003142,Chevron and Texaco,Nov,10,2014,Gasoline & Oil-Motor Vehicle,General Operating Fund,$28.25
48,J.F. Drake State,10003142,Chevron and Texaco,Nov,10,2014,Gasoline & Oil-Motor Vehicle,General Operating Fund,$40.98
48,J.F. Drake State,10003142,Chevron and Texaco,Nov,10,2014,Gasoline & Oil-Motor Vehicle,General Operating Fund,$25.93
48,J.F. Drake State,10003143,Comcast Cable,Nov,10,2014,Communications,General Operating Fund,$180.02
48,J.F. Drake State,30002378,Compansol,Nov,10,2014,Other Contractual Services,Trio-SSS Grant,$399.00
48,J.F. Drake State,10003160,Cooks Pest Control,Nov,10,2014,Other Contractual Services,General Operating Fund,$67.00
48,J.F. Drake State,10003160,Cooks Pest Control,Nov,10,2014,Other Contractual Services,General Operating Fund,$249.00
48,J.F. Drake State,10003153,Domino's Pizza,Nov,10,2014,Materials and Supplies,General Operating Fund,$152.10
48,J.F. Drake State,10003144,Drake State Technical College,Nov,10,2014,Materials and Supplies,Auxiliary - Copier/Vend Commissions,$21.43
48,J.F. Drake State,10003144,Drake State Technical College,Nov,10,2014,Materials and Supplies,General Operating Fund,$120.22
48,J.F. Drake State,10003144,Drake State Technical College,Nov,10,2014,Materials and Supplies,General Operating Fund,$40.00
48,J.F. Drake State,10003144,Drake State Technical College,Nov,10,2014,Materials and Supplies,Auxiliary - Copier Commissions,$21.43
48,J.F. Drake State,10003144,Drake State Technical College,Nov,10,2014,Materials and Supplies,General Operating Fund,$85.48
48,J.F. Drake State,10003144,Drake State Technical College,Nov,10,2014,Materials and Supplies,General Operating Fund,$19.00
48,J.F. Drake State,10003144,Drake State Technical College,Nov,10,2014,Materials and Supplies,General Operating Fund,$27.49
48,J.F. Drake State,10003145,"Dynamic Security, Inc.",Nov,10,2014,Other Contractual Services,General Operating Fund,"$4,665.60"
48,J.F. Drake State,10003146,FedEx,Nov,10,2014,Freight,General Operating Fund,$122.13
48,J.F. Drake State,30002379,"Green, Timothy R.",Nov,10,2014,In State-Ovrnite Per diem,Title III-Act 2 Improving Instruct,$225.00
48,J.F. Drake State,10003147,Huntsville Utilities,Nov,10,2014,Water & Sewer,General Operating Fund,$9.71
48,J.F. Drake State,10003148,"King, Angela D.",Nov,10,2014,Contract Clearing Account,General Operating Fund,$95.00
48,J.F. Drake State,10003154,Lakeside United Methodist Church,Nov,10,2014,Advertising & Promotions,General Operating Fund,$125.00
48,J.F. Drake State,10003155,Mullins Special Occasions,Nov,10,2014,Rent - Equipment,General Operating Fund,$460.50
48,J.F. Drake State,30002380,"Office Depot, Inc",Nov,10,2014,Materials and Supplies,Trio-SSS Grant,$14.34
48,J.F. Drake State,30002380,"Office Depot, Inc",Nov,10,2014,Materials and Supplies,Trio-SSS Grant,$15.98
48,J.F. Drake State,30002380,"Office Depot, Inc",Nov,10,2014,Materials and Supplies,Title III-Act A Program Admin,$97.36
48,J.F. Drake State,30002380,"Office Depot, Inc",Nov,10,2014,Materials and Supplies,Trio-SSS Grant,$11.95
48,J.F. Drake State,30002380,"Office Depot, Inc",Nov,10,2014,Materials and Supplies,Trio-SSS Grant,"$1,358.49"
48,J.F. Drake State,30002380,"Office Depot, Inc",Nov,10,2014,Materials and Supplies,Trio-SSS Grant,$18.90
48,J.F. Drake State,30002380,"Office Depot, Inc",Nov,10,2014,Materials and Supplies,Title III-Act A Program Admin,$19.99
48,J.F. Drake State,30002380,"Office Depot, Inc",Nov,10,2014,Materials and Supplies,Trio-SSS Grant,$19.10
48,J.F. Drake State,30002380,"Office Depot, Inc",Nov,10,2014,Materials and Supplies,Title III-Act A Program Admin,$239.45
48,J.F. Drake State,30002380,"Office Depot, Inc",Nov,10,2014,Materials and Supplies,Trio-SSS Grant,$57.53
48,J.F. Drake State,30002381,"PODS Enterprises, Inc.",Nov,10,2014,Other Contractual Services,SAFRA-Activity 1 Allied Health,$159.00
48,J.F. Drake State,10003156,"Precision Concrete Cutting, LLC",Nov,10,2014,Maintenance & Repairs,General Operating Fund,"$2,564.25"
48,J.F. Drake State,30002382,"Rentz, Joyce L.",Nov,10,2014,In State-Ovrnite Per diem,Title III-Act 2 Improving Instruct,$225.00
48,J.F. Drake State,30002383,"Roberts, Wendy L.",Nov,10,2014,In State-Ovrnite Per diem,State - Adult Ed,$225.00
48,J.F. Drake State,30002384,"Schoolcraft, Inc.",Nov,10,2014,Materials and Supplies,Title III,$392.00
48,J.F. Drake State,10003149,Schrimsher Properties,Nov,10,2014,Rent - Facilities,General Operating Fund,"$6,715.00"
48,J.F. Drake State,10003150,Verizon Wireless,Nov,10,2014,Communications,General Operating Fund,"$2,402.89"
48,J.F. Drake State,30002377,WEX Bank,Nov,10,2014,In State-Mileage,Title III,$28.22
48,J.F. Drake State,30002377,WEX Bank,Nov,10,2014,In State-Mileage,Title III,$38.51
48,J.F. Drake State,30002377,WEX Bank,Nov,10,2014,In State-Mileage,Title III,$30.14
48,J.F. Drake State,30002377,WEX Bank,Nov,10,2014,In State-Mileage,Title III,$10.44
48,J.F. Drake State,10003151,WEX Bank,Nov,10,2014,Gasoline & Oil-Motor Vehicle,General Operating Fund,$34.27
48,J.F. Drake State,30002377,WEX Bank,Nov,10,2014,In State-Other Travel Exp,Title III,$40.61
48,J.F. Drake State,10003151,WEX Bank,Nov,10,2014,Gasoline & Oil-Motor Vehicle,General Operating Fund,$39.21
48,J.F. Drake State,10003151,WEX Bank,Nov,10,2014,Gasoline & Oil-Motor Vehicle,General Operating Fund,$87.88
48,J.F. Drake State,30002377,WEX Bank,Nov,10,2014,In State-Mileage,Title III,$38.54
48,J.F. Drake State,10003151,WEX Bank,Nov,10,2014,Gasoline & Oil-Motor Vehicle,General Operating Fund,$46.40
48,J.F. Drake State,10003151,WEX Bank,Nov,10,2014,Gasoline & Oil-Motor Vehicle,General Operating Fund,$91.90
48,J.F. Drake State,30002377,WEX Bank,Nov,10,2014,In State-Mileage,Title III,$32.71
48,J.F. Drake State,30002377,WEX Bank,Nov,10,2014,In State-Mileage,Title III,$37.36
48,J.F. Drake State,30002377,WEX Bank,Nov,10,2014,Out-of-State-Mileage,Title III,$45.35
48,J.F. Drake State,30002377,WEX Bank,Nov,10,2014,In State-Other Travel Exp,Title III,$28.59
48,J.F. Drake State,10003158,"WHNT, LLC",Nov,10,2014,Advertising & Promotions,General Operating Fund,$30.00
48,J.F. Drake State,10003159,WZDX FOX 54,Nov,10,2014,Advertising & Promotions,General Operating Fund,$490.00
48,J.F. Drake State,10003157,"Waddell, Karol C.",Nov,10,2014,In State-Other Travel Exp,Ready To Work Grant,$215.04
48,J.F. Drake State,E1101022,Alabama Department of Revenue,Nov,13,2014,Sales Tax Payable,Payroll Clearing Fund,$17.54
48,J.F. Drake State,E1101022,Alabama Department of Revenue,Nov,13,2014,Sales Tax Payable,Payroll Clearing Fund,$2.19
48,J.F. Drake State,E1101022,Alabama Department of Revenue,Nov,13,2014,Sales Tax Payable,Payroll Clearing Fund,$19.73
48,J.F. Drake State,E1101023,Department of Revenue,Nov,13,2014,State Income Tax Payable,Payroll Clearing Fund,"$17,008.79"
48,J.F. Drake State,10003161,FedEx,Nov,13,2014,Freight,General Operating Fund,$34.67
48,J.F. Drake State,10003162,Huntsville Utilities,Nov,13,2014,Water & Sewer,General Operating Fund,$694.03
48,J.F. Drake State,10003162,Huntsville Utilities,Nov,13,2014,Water & Sewer,General Operating Fund,$47.42
48,J.F. Drake State,E1101024,Internal Revenue Service,Nov,13,2014,Federal Income Taxes Payable,Payroll Clearing Fund,"$44,064.35"
48,J.F. Drake State,E1101024,Internal Revenue Service,Nov,13,2014,FICA Payable,Payroll Clearing Fund,"$70,114.76"
48,J.F. Drake State,10003163,Loomis,Nov,13,2014,Other Contractual Services,General Operating Fund,$135.87
48,J.F. Drake State,10003164,"McGriff Seibels & Williiams, Inc",Nov,13,2014,Insurance & Bonding,General Operating Fund,$749.00
48,J.F. Drake State,10003165,PEEHIP,Nov,13,2014,Health Insurance-Institution Share,General Operating Fund,$714.00
48,J.F. Drake State,10003165,PEEHIP,Nov,13,2014,Health Insurance-Institution Share,General Operating Fund,$642.60
48,J.F. Drake State,10003165,PEEHIP,Nov,13,2014,Health Insurance-Institution Share,General Operating Fund,"$1,494.00"
48,J.F. Drake State,30002386,Adult Education Director's Associat,Nov,17,2014,Memberships,State - Adult Ed,$250.00
48,J.F. Drake State,10003166,Alabama Lawnmaster Inc,Nov,17,2014,Other Contractual Services,General Operating Fund,"$3,045.00"
48,J.F. Drake State,30002387,American Association of Community C,Nov,17,2014,Materials and Supplies,Title III-Act A Program Admin,"$1,600.00"
48,J.F. Drake State,10003167,American Express,Nov,17,2014,Out-of-State-Commercl Trans,General Operating Fund,$276.20
48,J.F. Drake State,30002388,American Express,Nov,17,2014,Out-of-State-Commercl Trans,DigiTec,"$3,081.60"
48,J.F. Drake State,30002389,"Barnett, Nicole C.",Nov,17,2014,In State-Ovrnite Per diem,Title III-Act 2 Improving Instruct,$150.00
48,J.F. Drake State,30002390,"Bulluck, Bruce A.",Nov,17,2014,Out-of-State-Subsist & Lodging,Title III-Act 2 Improving Instruct,$181.50
48,J.F. Drake State,30002391,Cerebellum Corporation,Nov,17,2014,Audio Visual,Title III,$95.90
48,J.F. Drake State,30002392,"Chance, Katie E.",Nov,17,2014,In State-Ovrnite Per diem,Title III-Act 2 Improving Instruct,$300.00
48,J.F. Drake State,30002392,"Chance, Katie E.",Nov,17,2014,In State-Mileage,Title III-Act 2 Improving Instruct,$421.12
48,J.F. Drake State,10003168,Chase,Nov,17,2014,Materials and Supplies,General Operating Fund,$58.68
48,J.F. Drake State,10003168,Chase,Nov,17,2014,Materials and Supplies,General Operating Fund,$62.00
48,J.F. Drake State,30002393,Chase,Nov,17,2014,Out-of-State-Subsist & Lodging,Title III,"$1,381.50"
48,J.F. Drake State,10003168,Chase,Nov,17,2014,Out-of-State-Other Travel Expenses,General Operating Fund,$84.00
48,J.F. Drake State,30002393,Chase,Nov,17,2014,Out-of-State-Subsist & Lodging,DigiTec,$210.68
48,J.F. Drake State,30002393,Chase,Nov,17,2014,Out-of-State-Subsist & Lodging,Spin Up,"$1,744.98"
48,J.F. Drake State,30002393,Chase,Nov,17,2014,Participant Costs-Subsistence,DigiTec,$207.38
48,J.F. Drake State,30002393,Chase,Nov,17,2014,Participant Costs-Subsistence,DigiTec,"$2,073.80"
48,J.F. Drake State,10003169,"Dykes Restaurant Supply, Inc.",Nov,17,2014,Non-capitalized Equipment,Perkins Funds,"$6,948.30"
48,J.F. Drake State,10003169,"Dykes Restaurant Supply, Inc.",Nov,17,2014,Non-capitalized Equipment,Perkins Funds,"$3,705.00"
48,J.F. Drake State,10003169,"Dykes Restaurant Supply, Inc.",Nov,17,2014,Non-capitalized Equipment,Carl Perkins Career & Tech Ed Grant,"$6,948.30"
48,J.F. Drake State,10003169,"Dykes Restaurant Supply, Inc.",Nov,17,2014,Non-capitalized Equipment,Carl Perkins Career & Tech Ed Grant,"$3,705.00"
48,J.F. Drake State,10003170,"Dynamic Security, Inc.",Nov,17,2014,Other Contractual Services,General Operating Fund,"$4,655.76"
48,J.F. Drake State,10003180,Earthlink,Nov,17,2014,Communications,General Operating Fund,"$9,140.69"
48,J.F. Drake State,10003171,Fastenal Company,Nov,17,2014,"Furniture & Equip $25,000 or Less",Carl Perkins Career & Tech Ed Grant,"$24,801.00"
48,J.F. Drake State,10003171,Fastenal Company,Nov,17,2014,"Furniture & Equip $25,000 or Less",Carl Perkins Career & Tech Ed Grant,"$10,976.00"
48,J.F. Drake State,10003171,Fastenal Company,Nov,17,2014,"Furniture & Equip $25,000 or Less",Perkins Funds,"$24,801.00"
48,J.F. Drake State,10003171,Fastenal Company,Nov,17,2014,"Furniture & Equip $25,000 or Less",Perkins Funds,"$10,976.00"
48,J.F. Drake State,30002394,"Green, Timothy R.",Nov,17,2014,In State-Mileage,Title III-Act 2 Improving Instruct,$174.34
48,J.F. Drake State,10003172,"Green, Timothy R.",Nov,17,2014,In State-Registration,Auxiliary - Copier/Vend Commissions,$210.00
48,J.F. Drake State,10003172,"Green, Timothy R.",Nov,17,2014,In State-Registration,Auxiliary - Copier Commissions,$210.00
48,J.F. Drake State,10003173,Huntsville Times,Nov,17,2014,Advertising & Promotions,General Operating Fund,$208.54
48,J.F. Drake State,10003173,Huntsville Times,Nov,17,2014,Advertising & Promotions,General Operating Fund,$250.76
48,J.F. Drake State,10003174,"King, Angela D.",Nov,17,2014,Contract Clearing Account,General Operating Fund,$35.00
48,J.F. Drake State,10003175,"Milton, Sammie J.",Nov,17,2014,Maintenance & Repairs,General Operating Fund,$38.00
48,J.F. Drake State,10003176,"Morris, Michael M.",Nov,17,2014,Professional Development,General Operating Fund,$225.00
48,J.F. Drake State,30002395,Myers & Briggs Foundation,Nov,17,2014,Professional Dev-State,Title III-Act 2 Improving Instruct,$229.43
48,J.F. Drake State,10003177,NAFEO,Nov,17,2014,Memberships,General Operating Fund,"$2,000.00"
48,J.F. Drake State,10003178,"Owens, Valarie L.",Nov,17,2014,Materials and Supplies,General Operating Fund,$200.00
48,J.F. Drake State,30002396,PaperClip Communications,Nov,17,2014,Books,Title III,$817.00
48,J.F. Drake State,30002397,Pearson VUE,Nov,17,2014,Testing Expense,State - Adult Ed- GED Vouchers,"$4,375.00"
48,J.F. Drake State,30002398,"Rentz, Joyce L.",Nov,17,2014,Out-of-State-Subsist & Lodging,Title III-Act 2 Improving Instruct,$316.24
48,J.F. Drake State,10003181,"Rice, Bill E.",Nov,17,2014,Misc Deductions Payable,Payroll Clearing Fund,$303.76
48,J.F. Drake State,30002399,Rowman & Littlefield Publishing Gro,Nov,17,2014,Books,Title III,$148.95
48,J.F. Drake State,10003179,Source Graphics,Nov,17,2014,"Furniture & Equip $25,000 or Less",Perkins Funds,"$7,998.00"
48,J.F. Drake State,10003179,Source Graphics,Nov,17,2014,"Furniture & Equip $25,000 or Less",Carl Perkins Career & Tech Ed Grant,"$7,998.00"
48,J.F. Drake State,30002400,"Stericycle, Inc.",Nov,17,2014,Other Contractual Services,SAFRA-Activity 1 Allied Health,$182.58
48,J.F. Drake State,30002401,"Teague, Forrest B.",Nov,17,2014,In State-Mileage,Title III-Act 2 Improving Instruct,$174.34
48,J.F. Drake State,30002401,"Teague, Forrest B.",Nov,17,2014,In State-Mileage,Title III-Act 2 Improving Instruct,$118.56
48,J.F. Drake State,30002401,"Teague, Forrest B.",Nov,17,2014,In State-Ovrnite Per diem,Title III-Act 2 Improving Instruct,$225.00
48,J.F. Drake State,10003182,"The Solutions Team, Inc.",Nov,17,2014,Computer Software-Non Cap,General Operating Fund,$200.00
48,J.F. Drake State,30002402,Ward's Science,Nov,17,2014,Materials and Supplies,APEX,$306.64
48,J.F. Drake State,30002406,ACCA,Nov,21,2014,In State-Registration,Title III-Act 2 Improving Instruct,"$2,550.00"
48,J.F. Drake State,10003183,ACT,Nov,21,2014,Materials and Supplies,General Operating Fund,"$1,176.50"
48,J.F. Drake State,30002407,ALADE,Nov,21,2014,In State-Registration,Title III-Act 2 Improving Instruct,$400.00
48,J.F. Drake State,10003199,AT&T,Nov,21,2014,Communications,General Operating Fund,$303.64
48,J.F. Drake State,10003199,AT&T,Nov,21,2014,Communications,General Operating Fund,$97.75
48,J.F. Drake State,30002408,"Banks, Terrell G.",Nov,21,2014,Participant Costs-Stipends,GA-AL LSAMP NSF HRD 1305041,$500.00
48,J.F. Drake State,30002409,Best Book,Nov,21,2014,Books,Title III,$126.29
48,J.F. Drake State,10003184,Better Business Bureau,Nov,21,2014,Materials and Supplies,General Operating Fund,$70.00
48,J.F. Drake State,10003185,Bubba's Catering,Nov,21,2014,Materials and Supplies,General Operating Fund,"$4,852.50"
48,J.F. Drake State,30002410,"Burden, Frank E.",Nov,21,2014,Participant Costs-Stipends,GA-AL LSAMP NSF HRD 1305041,$500.00
48,J.F. Drake State,30002411,"CAPT, Inc",Nov,21,2014,Professional Dev-State,Title III-Act 2 Improving Instruct,$215.00
48,J.F. Drake State,10003200,Cooks Pest Control,Nov,21,2014,Other Contractual Services,General Operating Fund,$249.00
48,J.F. Drake State,10003200,Cooks Pest Control,Nov,21,2014,Other Contractual Services,General Operating Fund,$70.00
48,J.F. Drake State,30002412,"Cross, Tomeka",Nov,21,2014,Out-of-State-Other Travel Expenses,Title III-Act 2 Improving Instruct,$126.00
48,J.F. Drake State,30002412,"Cross, Tomeka",Nov,21,2014,Out-of-State-Subsist & Lodging,Title III-Act 2 Improving Instruct,$240.74
48,J.F. Drake State,10003186,Crown Trophy,Nov,21,2014,Materials and Supplies,General Operating Fund,$25.50
48,J.F. Drake State,30002413,"Curry, Leo",Nov,21,2014,Participant Costs-Stipends,GA-AL LSAMP NSF HRD 1305041,$500.00
48,J.F. Drake State,10003201,Department of Finance,Nov,21,2014,Communications,General Operating Fund,$45.78
48,J.F. Drake State,10003187,"Dynamic Security, Inc.",Nov,21,2014,Other Contractual Services,General Operating Fund,"$4,689.90"
48,J.F. Drake State,10003188,"Echols, Darrell J.",Nov,21,2014,Materials and Supplies,General Operating Fund,$24.14
48,J.F. Drake State,10003188,"Echols, Darrell J.",Nov,21,2014,Materials and Supplies,General Operating Fund,$52.95
48,J.F. Drake State,10003189,Fastenal Company,Nov,21,2014,Materials and Supplies,General Operating Fund,$304.23
48,J.F. Drake State,10003189,Fastenal Company,Nov,21,2014,Materials and Supplies,General Operating Fund,"$2,450.43"
48,J.F. Drake State,10003189,Fastenal Company,Nov,21,2014,Materials and Supplies,General Operating Fund,"$1,680.72"
48,J.F. Drake State,10003190,First Impressions,Nov,21,2014,Other Contractual Services,General Operating Fund,$609.00
48,J.F. Drake State,30002414,"Glasgow, Gezelle B.",Nov,21,2014,Participant Costs-Stipends,GA-AL LSAMP NSF HRD 1305041,$500.00
48,J.F. Drake State,10003191,Graybar,Nov,21,2014,Materials and Supplies,General Operating Fund,$290.64
48,J.F. Drake State,10003192,Hannon Hill Corporation,Nov,21,2014,Other Contractual Services,General Operating Fund,"$3,000.00"
48,J.F. Drake State,10003202,Huntsville Utilities,Nov,21,2014,Electricity,General Operating Fund,$620.79
48,J.F. Drake State,10003202,Huntsville Utilities,Nov,21,2014,Water & Sewer,General Operating Fund,$605.39
48,J.F. Drake State,10003202,Huntsville Utilities,Nov,21,2014,Electricity,General Operating Fund,"$17,911.14"
48,J.F. Drake State,10003202,Huntsville Utilities,Nov,21,2014,Water & Sewer,General Operating Fund,"$1,379.62"
48,J.F. Drake State,10003202,Huntsville Utilities,Nov,21,2014,Electricity,General Operating Fund,$179.09
48,J.F. Drake State,10003202,Huntsville Utilities,Nov,21,2014,Gas & Heating Fuel,General Operating Fund,"$1,611.80"
48,J.F. Drake State,30002415,J.R. Enterprises,Nov,21,2014,Advertising & Promotions,Opening Doors Challenge Grant,$940.85
48,J.F. Drake State,30002415,J.R. Enterprises,Nov,21,2014,Advertising & Promotions,Opening Doors Challenge Grant,$823.00
48,J.F. Drake State,30002415,J.R. Enterprises,Nov,21,2014,Materials and Supplies,Opening Doors Challenge Grant,$529.76
48,J.F. Drake State,10003193,J.R. Enterprises,Nov,21,2014,Materials and Supplies,General Operating Fund,$130.00
48,J.F. Drake State,30002415,J.R. Enterprises,Nov,21,2014,Materials and Supplies,Trio-SSS Grant,"$5,560.25"
48,J.F. Drake State,30002416,"Jackson, Antoinette Y.",Nov,21,2014,Participant Costs-Stipends,GA-AL LSAMP NSF HRD 1305041,$500.00
48,J.F. Drake State,30002418,Johnson County Community College,Nov,21,2014,Materials and Supplies,Title III-Act A Program Admin,"$1,250.00"
48,J.F. Drake State,30002417,"Johnson, Nina M.",Nov,21,2014,Participant Costs-Stipends,GA-AL LSAMP NSF HRD 1305041,$500.00
48,J.F. Drake State,10003194,"Koorsen Security Technology, Inc",Nov,21,2014,Maintenance & Repairs,General Operating Fund,$407.98
48,J.F. Drake State,30002419,"Matthews, Craig A.",Nov,21,2014,Participant Costs-Stipends,GA-AL LSAMP NSF HRD 1305041,$500.00
48,J.F. Drake State,10003195,Merchants Foodservice,Nov,21,2014,Purchases for Re-Sale,Auxiliary Enterprise-Unrestricted,$702.57
48,J.F. Drake State,10003195,Merchants Foodservice,Nov,21,2014,Purchases for Re-Sale,Auxiliary Enterprise-Unrestricted,$25.13
48,J.F. Drake State,10003196,"Mobile Mini, Inc",Nov,21,2014,Other Contractual Services,General Operating Fund,$114.99
48,J.F. Drake State,10003197,"Office Depot, Inc",Nov,21,2014,Purchases for Re-Sale,General Operating Fund,$45.66
48,J.F. Drake State,10003197,"Office Depot, Inc",Nov,21,2014,Materials and Supplies,General Operating Fund,$132.09
48,J.F. Drake State,10003197,"Office Depot, Inc",Nov,21,2014,Materials and Supplies,General Operating Fund,$385.76
48,J.F. Drake State,30002420,PBS Distribution LLC,Nov,21,2014,Audio Visual,Title III,$23.74
48,J.F. Drake State,30002421,"Perryman, Shaun D.",Nov,21,2014,Participant Costs-Stipends,GA-AL LSAMP NSF HRD 1305041,$500.00
48,J.F. Drake State,30002422,"Powell, Miguel K.",Nov,21,2014,Participant Costs-Stipends,GA-AL LSAMP NSF HRD 1305041,$500.00
48,J.F. Drake State,30002423,"Raymond, Alice G.",Nov,21,2014,Out-of-State-Subsist & Lodging,Title III-Act 2 Improving Instruct,$478.62
48,J.F. Drake State,30002423,"Raymond, Alice G.",Nov,21,2014,In State-Ovrnite Per diem,Title III-Act 2 Improving Instruct,$150.00
48,J.F. Drake State,30002423,"Raymond, Alice G.",Nov,21,2014,Out-of-State-Other Travel Expenses,Title III-Act 2 Improving Instruct,$108.80
48,J.F. Drake State,30002423,"Raymond, Alice G.",Nov,21,2014,Out-of-State-Subsist & Lodging,Title III-Act 2 Improving Instruct,$129.73
48,J.F. Drake State,30002424,"Reutter, John",Nov,21,2014,In State-Ovrnite Per diem,Title III-Act 2 Improving Instruct,$225.00
48,J.F. Drake State,30002424,"Reutter, John",Nov,21,2014,Out-of-State-Other Travel Expenses,DigiTec,$28.00
48,J.F. Drake State,30002424,"Reutter, John",Nov,21,2014,Out-of-State-Subsist & Lodging,DigiTec,$35.35
48,J.F. Drake State,30002425,SkillPath Seminars,Nov,21,2014,In State-Registration,Title III-Act 2 Improving Instruct,$113.15
48,J.F. Drake State,30002426,Southeastern Assoc. of Ed. Opportun,Nov,21,2014,Other Contractual Services,Trio-SSS Grant,$50.00
48,J.F. Drake State,10003198,Sysco Central Alabama,Nov,21,2014,Materials and Supplies,Auxiliary - Copier Commissions,$170.99
48,J.F. Drake State,10003198,Sysco Central Alabama,Nov,21,2014,Materials and Supplies,Auxiliary - Copier/Vend Commissions,$170.99
48,J.F. Drake State,10003198,Sysco Central Alabama,Nov,21,2014,Purchases for Re-Sale,Auxiliary Enterprise-Unrestricted,$670.58
48,J.F. Drake State,10003198,Sysco Central Alabama,Nov,21,2014,Purchases for Re-Sale,Auxiliary Enterprise-Unrestricted,$562.47
48,J.F. Drake State,10003198,Sysco Central Alabama,Nov,21,2014,Purchases for Re-Sale,Auxiliary Enterprise-Unrestricted,$5.59
48,J.F. Drake State,10003203,Teachers Retirement System,Nov,21,2014,Alabama Teachers Retirement Payable,Payroll Clearing Fund,"$1,060.14"
48,J.F. Drake State,10003203,Teachers Retirement System,Nov,21,2014,Retirement Match-Institution Share,General Operating Fund,"$1,655.23"
48,J.F. Drake State,10003205,WOW! Business,Nov,21,2014,Communications,General Operating Fund,$193.62
48,J.F. Drake State,10003204,Waste Management,Nov,21,2014,Other Contractual Services,General Operating Fund,$849.82
48,J.F. Drake State,10003204,Waste Management,Nov,21,2014,Other Contractual Services,General Operating Fund,$504.00
48,J.F. Drake State,10003228,Alabama Child Support,Dec,2,2014,Misc Deductions Payable,Payroll Clearing Fund,"$2,864.24"
48,J.F. Drake State,10003229,Allstate Insurance,Dec,2,2014,Misc Deductions Payable,Payroll Clearing Fund,$54.80
48,J.F. Drake State,30002427,American Assoc. for the Advancement,Dec,2,2014,Out-of-State-Registration,Spin Up,$100.00
48,J.F. Drake State,10003230,American Family Life,Dec,2,2014,Misc Deductions Payable,Payroll Clearing Fund,$125.68
48,J.F. Drake State,10003219,Berney Office Solutions,Dec,2,2014,Other Contractual Services,General Operating Fund,$718.40
48,J.F. Drake State,10003207,Chamber of Commerce of Huntsville/M,Dec,2,2014,Advertising & Promotions,General Operating Fund,$400.00
48,J.F. Drake State,10003207,Chamber of Commerce of Huntsville/M,Dec,2,2014,Advertising & Promotions,General Operating Fund,$825.00
48,J.F. Drake State,10003220,Chevron and Texaco,Dec,2,2014,Gasoline & Oil-Motor Vehicle,General Operating Fund,$120.77
48,J.F. Drake State,30002428,"Clift, Carla R.",Dec,2,2014,Out-of-State-Registration,Title III-Act 2 Improving Instruct,$300.00
48,J.F. Drake State,30002428,"Clift, Carla R.",Dec,2,2014,Out-of-State-Mileage,Title III-Act 2 Improving Instruct,$198.91
48,J.F. Drake State,30002428,"Clift, Carla R.",Dec,2,2014,Out-of-State-Other Travel Expenses,Title III-Act 2 Improving Instruct,$56.00
48,J.F. Drake State,30002428,"Clift, Carla R.",Dec,2,2014,Out-of-State-Subsist & Lodging,Title III-Act 2 Improving Instruct,$338.65
48,J.F. Drake State,10003231,Colonial Life Insurance,Dec,2,2014,Misc Deductions Payable,Payroll Clearing Fund,$39.65
48,J.F. Drake State,30002429,"Directions Media, Inc.",Dec,2,2014,Participant Costs-Other,Spin Up,$215.00
48,J.F. Drake State,30002429,"Directions Media, Inc.",Dec,2,2014,In State-Registration,Spin Up,$95.00
48,J.F. Drake State,10003208,"Donald, Pamela B.",Dec,2,2014,Out-of-State-Mileage,General Operating Fund,$160.16
48,J.F. Drake State,10003208,"Donald, Pamela B.",Dec,2,2014,Out-of-State-Subsist & Lodging,General Operating Fund,$34.23
48,J.F. Drake State,10003232,Drake State Foundation,Dec,2,2014,Misc Deductions Payable,Payroll Clearing Fund,$255.42
48,J.F. Drake State,30002430,"Dukemineer, Amelia J.",Dec,2,2014,In State-Mileage,Spin Up,$116.48
48,J.F. Drake State,30002430,"Dukemineer, Amelia J.",Dec,2,2014,In State-Mileage,Spin Up,$5.00
48,J.F. Drake State,10003209,"Dynamic Security, Inc.",Dec,2,2014,Other Contractual Services,General Operating Fund,"$4,519.80"
48,J.F. Drake State,10003233,Educators Benefit,Dec,2,2014,Misc Deductions Payable,Payroll Clearing Fund,"$1,118.62"
48,J.F. Drake State,10003210,Fastenal Company,Dec,2,2014,Materials and Supplies,General Operating Fund,$185.73
48,J.F. Drake State,10003210,Fastenal Company,Dec,2,2014,Materials and Supplies,General Operating Fund,$722.17
48,J.F. Drake State,10003210,Fastenal Company,Dec,2,2014,Materials and Supplies,General Operating Fund,$413.37
48,J.F. Drake State,10003210,Fastenal Company,Dec,2,2014,Materials and Supplies,General Operating Fund,$195.00
48,J.F. Drake State,10003210,Fastenal Company,Dec,2,2014,Materials and Supplies,General Operating Fund,$144.23
48,J.F. Drake State,10003211,First Impressions,Dec,2,2014,Other Contractual Services,General Operating Fund,$230.00
48,J.F. Drake State,10003212,"Galindo-Baird, Yibeli",Dec,2,2014,Out-of-State-Subsist & Lodging,General Operating Fund,"$1,212.96"
48,J.F. Drake State,10003212,"Galindo-Baird, Yibeli",Dec,2,2014,Out-of-State-Commercl Trans,General Operating Fund,$74.82
48,J.F. Drake State,10003213,HESI - ELSEVIER,Dec,2,2014,Purchases for Re-Sale,Auxiliary - Nursing Fees,$476.00
48,J.F. Drake State,30002431,"Henderson, Carolyn",Dec,2,2014,Out-of-State-Other Travel Expenses,Walmart Student Success  (NAFEO),$81.00
48,J.F. Drake State,30002431,"Henderson, Carolyn",Dec,2,2014,Out-of-State-Subsist & Lodging,Walmart Student Success  (NAFEO),$83.49
48,J.F. Drake State,10003222,Huntsville Utilities,Dec,2,2014,Water & Sewer,General Operating Fund,$29.73
48,J.F. Drake State,10003214,J.R. Enterprises,Dec,2,2014,Advertising & Promotions,General Operating Fund,$658.50
48,J.F. Drake State,10003215,"Lanier, Ford, Shaver & Payne PC",Dec,2,2014,Legal Services,General Operating Fund,"$2,196.30"
48,J.F. Drake State,10003215,"Lanier, Ford, Shaver & Payne PC",Dec,2,2014,Legal Services,General Operating Fund,$635.00
48,J.F. Drake State,10003234,Linda B. Gore,Dec,2,2014,Misc Deductions Payable,Payroll Clearing Fund,"$1,472.00"
48,J.F. Drake State,10003216,Merchants Foodservice,Dec,2,2014,Materials and Supplies,General Operating Fund,$591.21
48,J.F. Drake State,10003235,Metropolitan Life Insurance Company,Dec,2,2014,Misc Deductions Payable,Payroll Clearing Fund,$100.00
48,J.F. Drake State,10003236,"Michael Ford, Chapter 13 Trustee",Dec,2,2014,Misc Deductions Payable,Payroll Clearing Fund,$716.00
48,J.F. Drake State,30002432,Moore Medical Corp,Dec,2,2014,Non-capitalized Equipment,Allied Health,"$4,964.19"
48,J.F. Drake State,10003237,NAECU,Dec,2,2014,Misc Deductions Payable,Payroll Clearing Fund,"$3,036.00"
48,J.F. Drake State,10003238,New York Life Insurance,Dec,2,2014,Misc Deductions Payable,Payroll Clearing Fund,$215.25
48,J.F. Drake State,10003239,PEEHIP,Dec,2,2014,PEEHIP Payable,Payroll Clearing Fund,"$82,709.22"
48,J.F. Drake State,10003240,Philip A Geddes,Dec,2,2014,Misc Deductions Payable,Payroll Clearing Fund,$430.00
48,J.F. Drake State,10003223,Progressive Specialty Insurance Com,Dec,2,2014,Insurance & Bonding,General Operating Fund,"$15,682.00"
48,J.F. Drake State,30002433,SACSCOC,Dec,2,2014,Out-of-State-Registration,Title III-Act 2 Improving Instruct,$225.00
48,J.F. Drake State,10003217,Safety Kleen,Dec,2,2014,Other Contractual Services,General Operating Fund,$183.49
48,J.F. Drake State,10003224,Schrimsher Properties,Dec,2,2014,Rent - Facilities,General Operating Fund,"$6,715.00"
48,J.F. Drake State,10003241,Security Benefit Life Insurance Com,Dec,2,2014,Misc Deductions Payable,Payroll Clearing Fund,$425.00
48,J.F. Drake State,30002434,"Shotts, Lesley N.",Dec,2,2014,Out-of-State-Subsist & Lodging,Title III-Act 2 Improving Instruct,$77.80
48,J.F. Drake State,30002434,"Shotts, Lesley N.",Dec,2,2014,Out-of-State-Other Travel Expenses,Title III-Act 2 Improving Instruct,$61.60
48,J.F. Drake State,10003242,Teachers Retirement System,Dec,2,2014,Alabama Teachers Retirement Payable,Payroll Clearing Fund,"$75,657.69"
48,J.F. Drake State,10003243,Truescreen Inc.,Dec,2,2014,Background Checks,Payroll Clearing Fund,$78.00
48,J.F. Drake State,10003244,U.S. Department of Education,Dec,2,2014,Misc Deductions Payable,Payroll Clearing Fund,$262.07
48,J.F. Drake State,10003245,"United Way of Madison County, Inc.",Dec,2,2014,Misc Deductions Payable,Payroll Clearing Fund,$380.00
48,J.F. Drake State,30002435,University of New Mexico,Dec,2,2014,Subcontracts,DigiTec,"$1,474.24"
48,J.F. Drake State,30002435,University of New Mexico,Dec,2,2014,Subcontracts,DigiTec,"$15,431.90"
48,J.F. Drake State,30002435,University of New Mexico,Dec,2,2014,Subcontracts,DigiTec,"$3,024.00"
48,J.F. Drake State,30002435,University of New Mexico,Dec,2,2014,Subcontracts,DigiTec,$99.54
48,J.F. Drake State,10003246,Variable Annuity Life Insurance,Dec,2,2014,Misc Deductions Payable,Payroll Clearing Fund,$757.50
48,J.F. Drake State,30002439,WEX Bank,Dec,2,2014,In State-Mileage,Title III,$32.60
48,J.F. Drake State,30002439,WEX Bank,Dec,2,2014,In State-Mileage,Title III,$33.55
48,J.F. Drake State,10003227,WEX Bank,Dec,2,2014,In State-Mileage,State - Adult Ed,$29.77
48,J.F. Drake State,30002439,WEX Bank,Dec,2,2014,In State-Other Travel Exp,Title III,$44.13
48,J.F. Drake State,10003227,WEX Bank,Dec,2,2014,Gasoline & Oil-Motor Vehicle,General Operating Fund,$91.49
48,J.F. Drake State,30002439,WEX Bank,Dec,2,2014,In State-Other Travel Exp,Allied Health,$30.88
48,J.F. Drake State,30002439,WEX Bank,Dec,2,2014,In State-Other Travel Exp,Title III,$43.09
48,J.F. Drake State,30002439,WEX Bank,Dec,2,2014,In State-Other Travel Exp,Title III,$39.18
48,J.F. Drake State,10003227,WEX Bank,Dec,2,2014,Gasoline & Oil-Motor Vehicle,General Operating Fund,$90.34
48,J.F. Drake State,30002439,WEX Bank,Dec,2,2014,In State-Mileage,Title III,$26.37
48,J.F. Drake State,10003218,WZDX FOX 54,Dec,2,2014,Advertising & Promotions,General Operating Fund,$200.00
48,J.F. Drake State,30002436,"Walker, Anita G.",Dec,2,2014,In State-Mileage,Spin Up,$118.72
48,J.F. Drake State,10003225,"Walker, Dr. Art",Dec,2,2014,Honorariums,General Operating Fund,"$1,500.00"
48,J.F. Drake State,10003226,Waste Management,Dec,2,2014,Other Contractual Services,General Operating Fund,$847.84
48,J.F. Drake State,30002437,"Winchester, Brandi G.",Dec,2,2014,Out-of-State-Other Travel Expenses,Walmart Student Success  (NAFEO),$6.20
48,J.F. Drake State,30002437,"Winchester, Brandi G.",Dec,2,2014,Out-of-State-Subsist & Lodging,Walmart Student Success  (NAFEO),$37.80
48,J.F. Drake State,10003206,Woody Anderson Ford,Dec,2,2014,Maintenance & Repairs,General Operating Fund,$43.64
48,J.F. Drake State,10003206,Woody Anderson Ford,Dec,2,2014,Maintenance & Repairs,General Operating Fund,$40.21
48,J.F. Drake State,10003206,Woody Anderson Ford,Dec,2,2014,Maintenance & Repairs,General Operating Fund,$46.40
48,J.F. Drake State,E1101025,Alabama Department of Revenue,Dec,3,2014,Sales Tax Payable,Payroll Clearing Fund,$0.26
48,J.F. Drake State,E1101025,Alabama Department of Revenue,Dec,3,2014,Sales Tax Payable,Payroll Clearing Fund,$2.33
48,J.F. Drake State,E1101025,Alabama Department of Revenue,Dec,3,2014,Sales Tax Payable,Payroll Clearing Fund,$2.07
48,J.F. Drake State,10003247,Comcast Cable,Dec,3,2014,Communications,General Operating Fund,$180.02
48,J.F. Drake State,E1101026,Department of Revenue,Dec,3,2014,State Income Tax Payable,Payroll Clearing Fund,"$16,698.16"
48,J.F. Drake State,10003248,Gadsden State Community College,Dec,3,2014,Reserve Fee Payable,General Operating Fund,"$8,149.47"
48,J.F. Drake State,10003248,Gadsden State Community College,Dec,3,2014,Reserve Fee Payable,General Operating Fund,"$9,563.20"
48,J.F. Drake State,10003249,"Grayson, Patrick",Dec,3,2014,Honorariums,General Operating Fund,$500.00
48,J.F. Drake State,E1101027,Internal Revenue Service,Dec,3,2014,FICA Payable,Payroll Clearing Fund,"$70,835.68"
48,J.F. Drake State,E1101027,Internal Revenue Service,Dec,3,2014,Federal Income Taxes Payable,Payroll Clearing Fund,"$44,768.84"
48,J.F. Drake State,10003250,US Department of Veteran Affairs,Dec,3,2014,Contract Clearing Account,General Operating Fund,"$1,466.40"
48,J.F. Drake State,10003258,AT&T,Dec,8,2014,Communications,General Operating Fund,$1.69
48,J.F. Drake State,10003258,AT&T,Dec,8,2014,Communications,General Operating Fund,$84.78
48,J.F. Drake State,30002440,American Assoc. for the Advancement,Dec,8,2014,Out-of-State-Registration,Title III-Act 2 Improving Instruct,$400.00
48,J.F. Drake State,10003251,"Banks Industries, Inc",Dec,8,2014,Materials and Supplies,General Operating Fund,"$2,932.34"
48,J.F. Drake State,10003259,Berney Office Solutions,Dec,8,2014,Other Contractual Services,General Operating Fund,$47.04
48,J.F. Drake State,10003252,"Brooks Lock & Key, Inc",Dec,8,2014,Maintenance & Repairs,General Operating Fund,$130.00
48,J.F. Drake State,10003253,Chase,Dec,8,2014,Out-of-State-Subsist & Lodging,General Operating Fund,$52.00
48,J.F. Drake State,10003253,Chase,Dec,8,2014,Out-of-State-Subsist & Lodging,General Operating Fund,$47.00
48,J.F. Drake State,10003253,Chase,Dec,8,2014,Materials and Supplies,General Operating Fund,$105.00
48,J.F. Drake State,10003253,Chase,Dec,8,2014,Materials and Supplies,General Operating Fund,$43.48
48,J.F. Drake State,10003253,Chase,Dec,8,2014,Out-of-State-Subsist & Lodging,General Operating Fund,$28.00
48,J.F. Drake State,10003253,Chase,Dec,8,2014,Out-of-State-Subsist & Lodging,General Operating Fund,"$1,153.15"
48,J.F. Drake State,10003253,Chase,Dec,8,2014,Out-of-State-Subsist & Lodging,General Operating Fund,$24.00
48,J.F. Drake State,10003253,Chase,Dec,8,2014,Out-of-State-Subsist & Lodging,General Operating Fund,"$1,191.33"
48,J.F. Drake State,30002441,Chase,Dec,8,2014,Participant Costs-Subsistence,DigiTec,$518.45
48,J.F. Drake State,10003253,Chase,Dec,8,2014,Out-of-State-Subsist & Lodging,General Operating Fund,$31.00
48,J.F. Drake State,30002442,"Cross, Tomeka",Dec,8,2014,In State-Mileage,GA-AL LSAMP NSF HRD 1305041,$124.64
48,J.F. Drake State,30002442,"Cross, Tomeka",Dec,8,2014,Out-of-State-Other Travel Expenses,Title III-Act 2 Improving Instruct,$126.00
48,J.F. Drake State,30002442,"Cross, Tomeka",Dec,8,2014,Out-of-State-Subsist & Lodging,Title III-Act 2 Improving Instruct,$240.74
48,J.F. Drake State,10003254,"Dynamic Security, Inc.",Dec,8,2014,Other Contractual Services,General Operating Fund,"$4,665.60"
48,J.F. Drake State,30002443,EBSCO Information Services,Dec,8,2014,Subscriptions,Title III-Act 5 Library,"$1,649.00"
48,J.F. Drake State,10003260,Ellucian Company L.P.,Dec,8,2014,Construction in Progress,Renewal and Repacement Funds,"$5,548.69"
48,J.F. Drake State,10003260,Ellucian Company L.P.,Dec,8,2014,Construction in Progress,Renewal and Repacement Funds,$489.48
48,J.F. Drake State,10003255,"Higgins, Daryl L.",Dec,8,2014,Other Contractual Services,General Operating Fund,$100.00
48,J.F. Drake State,10003261,Loomis,Dec,8,2014,Other Contractual Services,General Operating Fund,$138.91
48,J.F. Drake State,10003256,"McCall, Candis Y.",Dec,8,2014,Contract Clearing Account,General Operating Fund,$93.01
48,J.F. Drake State,30002444,Midwest Library Service,Dec,8,2014,Books,Title III-Act 5 Library,$94.65
48,J.F. Drake State,30002445,"PODS Enterprises, Inc.",Dec,8,2014,Other Contractual Services,SAFRA-Activity 1 Allied Health,$159.00
48,J.F. Drake State,10003257,Pitney Bowes,Dec,8,2014,Materials and Supplies,General Operating Fund,$316.55
48,J.F. Drake State,30002446,"ProQuest, LLC",Dec,8,2014,Subscriptions,Title III-Act 5 Library,"$5,045.00"
48,J.F. Drake State,30002447,"Roberts, Wendy L.",Dec,8,2014,In State-Mileage,State - Adult Ed,$81.76
48,J.F. Drake State,30002448,"Stericycle, Inc.",Dec,8,2014,Other Contractual Services,SAFRA-Activity 1 Allied Health,$446.75
48,J.F. Drake State,30002449,Tuscaloosa Bindery,Dec,8,2014,Materials and Supplies,Title III-Act 5 Library,$552.85
48,J.F. Drake State,10003263,ACCSPRA,Dec,15,2014,Memberships,General Operating Fund,$50.00
48,J.F. Drake State,10003264,ACT,Dec,15,2014,Materials and Supplies,General Operating Fund,$546.00
48,J.F. Drake State,10003297,Alabama Child Support,Dec,15,2014,Misc Deductions Payable,Payroll Clearing Fund,"$2,864.24"
48,J.F. Drake State,10003288,Alabama Supercomputer Authority,Dec,15,2014,Other Contractual Services,General Operating Fund,"$18,432.00"
48,J.F. Drake State,10003265,American Express,Dec,15,2014,Out-of-State-Commercl Trans,General Operating Fund,$777.20
48,J.F. Drake State,10003266,"Banks Industries, Inc",Dec,15,2014,Materials and Supplies,General Operating Fund,$156.80
48,J.F. Drake State,10003266,"Banks Industries, Inc",Dec,15,2014,Materials and Supplies,General Operating Fund,$137.18
48,J.F. Drake State,30002452,"Banks, Debra I.",Dec,15,2014,In State-Mileage,Title III-Act 2 Improving Instruct,$133.53
48,J.F. Drake State,10003267,"Cloud Financial, Incorporated",Dec,15,2014,Materials and Supplies,General Operating Fund,$655.00
48,J.F. Drake State,10003268,"Concepts, Inc.",Dec,15,2014,Advertising & Promotions,General Operating Fund,$424.08
48,J.F. Drake State,10003269,Copeland Cleaners,Dec,15,2014,Other Contractual Services,General Operating Fund,$28.33
48,J.F. Drake State,30002453,"Cross, Tomeka",Dec,15,2014,In State-Ovrnite Per diem,Title III-Act 2 Improving Instruct,$150.00
48,J.F. Drake State,10003270,Delta Theta Lambda Ed Foundation,Dec,15,2014,Advertising & Promotions,General Operating Fund,$500.00
48,J.F. Drake State,10003289,Department of Finance,Dec,15,2014,Communications,General Operating Fund,$45.78
48,J.F. Drake State,10003271,Desired Restaurant Equipment Sales ,Dec,15,2014,Materials and Supplies,Carl Perkins Career & Tech Ed Grant,"$1,084.44"
48,J.F. Drake State,30002454,Desired Restaurant Equipment Sales ,Dec,15,2014,Non-capitalized Equipment,Carl Perkins Career & Tech Ed Grant,"$9,447.60"
48,J.F. Drake State,10003271,Desired Restaurant Equipment Sales ,Dec,15,2014,Materials and Supplies,Perkins Funds,"$1,084.44"
48,J.F. Drake State,10003272,"Dynamic Security, Inc.",Dec,15,2014,Other Contractual Services,General Operating Fund,"$4,665.60"
48,J.F. Drake State,10003272,"Dynamic Security, Inc.",Dec,15,2014,Other Contractual Services,General Operating Fund,"$4,684.08"
48,J.F. Drake State,10003273,Education To Go,Dec,15,2014,Other Contractual Services,General Operating Fund,$65.00
48,J.F. Drake State,10003273,Education To Go,Dec,15,2014,Other Contractual Services,General Operating Fund,$2.25
48,J.F. Drake State,30002455,Essential Education,Dec,15,2014,Materials and Supplies,Federal Performance Measu- Adult Ed,"$8,800.00"
48,J.F. Drake State,30002456,"Fanning, Amy E.",Dec,15,2014,In State-Registration,SAFRA-Activity 1 Allied Health,$40.00
48,J.F. Drake State,10003274,Fastenal Company,Dec,15,2014,Materials and Supplies,General Operating Fund,$694.62
48,J.F. Drake State,10003274,Fastenal Company,Dec,15,2014,Materials and Supplies,General Operating Fund,$638.34
48,J.F. Drake State,10003274,Fastenal Company,Dec,15,2014,Materials and Supplies,General Operating Fund,$467.25
48,J.F. Drake State,10003275,First Impressions,Dec,15,2014,Other Contractual Services,General Operating Fund,$945.00
48,J.F. Drake State,30002457,"Gaymon, Denise C.",Dec,15,2014,In State-Ovrnite Per diem,Title III-Act 2 Improving Instruct,$150.00
48,J.F. Drake State,10003305,"Gilmore, Latorya A.",Dec,15,2014,Contract Clearing Account,General Operating Fund,$126.01
48,J.F. Drake State,30002458,"Green, Tiffany R.",Dec,15,2014,In State-Mileage,Title III-Act 2 Improving Instruct,$115.67
48,J.F. Drake State,30002458,"Green, Tiffany R.",Dec,15,2014,In State-Ovrnite Per diem,Title III-Act 2 Improving Instruct,$150.00
48,J.F. Drake State,30002459,"Green, Vickie E.",Dec,15,2014,In State-Registration,SAFRA-Activity 1 Allied Health,$40.00
48,J.F. Drake State,10003276,Grizzly Industrial,Dec,15,2014,Materials and Supplies,General Operating Fund,$48.85
48,J.F. Drake State,10003277,HESI - ELSEVIER,Dec,15,2014,Purchases for Re-Sale,Auxiliary - Nursing Fees,"$2,585.24"
48,J.F. Drake State,30002460,"Harris, Katrina J.",Dec,15,2014,In State-Mileage,Title III-Activity 1 Fiscal Managem,$119.59
48,J.F. Drake State,30002461,"Henry, Dexter R.",Dec,15,2014,In State-Mileage,Title III-Act 2 Improving Instruct,$115.99
48,J.F. Drake State,30002461,"Henry, Dexter R.",Dec,15,2014,In State-Ovrnite Per diem,Title III-Act 2 Improving Instruct,$225.00
48,J.F. Drake State,10003290,Huntsville Utilities,Dec,15,2014,Water & Sewer,General Operating Fund,$770.80
48,J.F. Drake State,10003298,Huntsville Utilities,Dec,15,2014,Water & Sewer,General Operating Fund,$47.42
48,J.F. Drake State,10003291,"Insurance Office of America, Inc.",Dec,15,2014,Insurance & Bonding,General Operating Fund,"$2,683.75"
48,J.F. Drake State,10003278,"Jones, Donyale D.",Dec,15,2014,Out-of-State-Other Travel Expenses,General Operating Fund,$50.00
48,J.F. Drake State,10003278,"Jones, Donyale D.",Dec,15,2014,Out-of-State-Subsist & Lodging,General Operating Fund,$81.08
48,J.F. Drake State,30002462,"Lam, Thuy",Dec,15,2014,In State-Registration,SAFRA-Activity 1 Allied Health,$70.00
48,J.F. Drake State,10003306,"Leadership Alabama, Inc",Dec,15,2014,Memberships,General Operating Fund,$175.00
48,J.F. Drake State,10003279,Leadership Huntsville Madison Count,Dec,15,2014,Memberships,General Operating Fund,$350.00
48,J.F. Drake State,10003299,Linda B. Gore,Dec,15,2014,Misc Deductions Payable,Payroll Clearing Fund,"$1,472.00"
48,J.F. Drake State,10003280,"McAlpine, Helen T.",Dec,15,2014,In State-Ovrnite Per diem,General Operating Fund,$150.00
48,J.F. Drake State,10003280,"McAlpine, Helen T.",Dec,15,2014,In State-Mileage,General Operating Fund,$109.76
48,J.F. Drake State,10003281,Merchants Foodservice,Dec,15,2014,Purchases for Re-Sale,Auxiliary Enterprise-Unrestricted,$129.88
48,J.F. Drake State,10003304,"Michael Ford, Chapter 13 Trustee",Dec,15,2014,Misc Deductions Payable,Payroll Clearing Fund,$534.56
48,J.F. Drake State,10003300,"Michael Ford, Chapter 13 Trustee",Dec,15,2014,Misc Deductions Payable,Payroll Clearing Fund,$716.00
48,J.F. Drake State,30002463,Michigan Technological University,Dec,15,2014,Subcontracts,DigiTec,"$8,235.16"
48,J.F. Drake State,10003301,NAECU,Dec,15,2014,Misc Deductions Payable,Payroll Clearing Fund,"$3,036.00"
48,J.F. Drake State,30002464,"Office Depot, Inc",Dec,15,2014,Materials and Supplies,Allied Health,"$1,409.14"
48,J.F. Drake State,30002464,"Office Depot, Inc",Dec,15,2014,Materials and Supplies,Title III-Act 3 Student Services,"$1,495.75"
48,J.F. Drake State,30002464,"Office Depot, Inc",Dec,15,2014,Materials and Supplies,Title III-Act 3 Student Services,$30.36
48,J.F. Drake State,10003282,"Office Depot, Inc",Dec,15,2014,Materials and Supplies,General Operating Fund,$681.64
48,J.F. Drake State,30002464,"Office Depot, Inc",Dec,15,2014,Materials and Supplies,Title III-Act 3 Student Services,$130.96
48,J.F. Drake State,30002464,"Office Depot, Inc",Dec,15,2014,Materials and Supplies,Title III-Act 3 Student Services,$24.20
48,J.F. Drake State,30002464,"Office Depot, Inc",Dec,15,2014,Materials and Supplies,Title III-Act 3 Student Services,$19.98
48,J.F. Drake State,30002464,"Office Depot, Inc",Dec,15,2014,Materials and Supplies,Title III-Act 2 Improving Instruct,$447.98
48,J.F. Drake State,30002464,"Office Depot, Inc",Dec,15,2014,Materials and Supplies,Allied Health,"$1,561.02"
48,J.F. Drake State,30002464,"Office Depot, Inc",Dec,15,2014,Materials and Supplies,Title III-Act 2 Improving Instruct,$228.47
48,J.F. Drake State,10003302,Philip A Geddes,Dec,15,2014,Misc Deductions Payable,Payroll Clearing Fund,$430.00
48,J.F. Drake State,30002475,"Qualtrics, LLC",Dec,15,2014,Computer Software-Non Cap,SAFRA-Activity A Administration,"$7,500.00"
48,J.F. Drake State,30002465,"Rentz, Joyce L.",Dec,15,2014,In State-Ovrnite Per diem,Title III-Act 2 Improving Instruct,$300.00
48,J.F. Drake State,30002466,"Roberts, Wendy L.",Dec,15,2014,In State-Mileage,Title III-Act 2 Improving Instruct,$115.36
48,J.F. Drake State,30002466,"Roberts, Wendy L.",Dec,15,2014,In State-Ovrnite Per diem,Title III-Act 2 Improving Instruct,$225.00
48,J.F. Drake State,10003283,Rosetta James Foundation,Dec,15,2014,Advertising & Promotions,General Operating Fund,"$1,000.00"
48,J.F. Drake State,10003284,Safety Kleen,Dec,15,2014,Other Contractual Services,General Operating Fund,$687.47
48,J.F. Drake State,30002467,Sargent-Welch,Dec,15,2014,Materials and Supplies,APEX,$262.49
48,J.F. Drake State,10003292,Schrimsher Properties,Dec,15,2014,Rent - Facilities,General Operating Fund,"$6,715.00"
48,J.F. Drake State,30002468,"Singh, Bhesham J.",Dec,15,2014,In State-Mileage,Title III-Act 2 Improving Instruct,$72.80
48,J.F. Drake State,30002468,"Singh, Bhesham J.",Dec,15,2014,In State-Ovrnite Per diem,Title III-Act 2 Improving Instruct,$225.00
48,J.F. Drake State,10003293,"Spikes, Jarrett A.",Dec,15,2014,AR Suspense,General Operating Fund,$417.00
48,J.F. Drake State,10003286,TWG Plus,Dec,15,2014,Other Non-capital Costs,General Operating Fund,"$21,000.00"
48,J.F. Drake State,30002469,Texas Book Company,Dec,15,2014,Books,Title III,"$3,722.22"
48,J.F. Drake State,30002469,Texas Book Company,Dec,15,2014,Books,Title III,"$2,007.14"
48,J.F. Drake State,10003285,Touchboards,Dec,15,2014,Non-capitalized Equipment,Carl Perkins Career & Tech Ed Grant,"$4,870.44"
48,J.F. Drake State,10003294,Truescreen Inc.,Dec,15,2014,Background Checks,Payroll Clearing Fund,$26.00
48,J.F. Drake State,10003294,Truescreen Inc.,Dec,15,2014,Background Checks,Payroll Clearing Fund,$78.00
48,J.F. Drake State,10003303,U.S. Department of Education,Dec,15,2014,Misc Deductions Payable,Payroll Clearing Fund,$262.07
48,J.F. Drake State,10003295,Verizon Wireless,Dec,15,2014,Communications,General Operating Fund,"$1,865.69"
48,J.F. Drake State,10003296,WOW! Business,Dec,15,2014,Communications,General Operating Fund,$193.62
48,J.F. Drake State,10003287,WZDX FOX 54,Dec,15,2014,Advertising & Promotions,General Operating Fund,$500.00
48,J.F. Drake State,10003287,WZDX FOX 54,Dec,15,2014,Advertising & Promotions,General Operating Fund,$300.00
48,J.F. Drake State,30002470,"Young, Deleshia D.",Dec,15,2014,In State-Mileage,Title III-Activity 1 Fiscal Managem,$133.54
48,J.F. Drake State,30002479," Pensacola State College, Florida",Jan,6,2015,Out-of-State-Registration,Title III-Act 2 Improving Instruct,"$1,000.00"
48,J.F. Drake State,10003322,AT&T,Jan,6,2015,Communications,General Operating Fund,$197.35
48,J.F. Drake State,10003307,Alabama Technology Network,Jan,6,2015,Other Contractual Services,General Operating Fund,$690.79
48,J.F. Drake State,10003309,Allstate Insurance,Jan,6,2015,Misc Deductions Payable,Payroll Clearing Fund,$54.80
48,J.F. Drake State,10003310,American Family Life,Jan,6,2015,Misc Deductions Payable,Payroll Clearing Fund,$125.68
48,J.F. Drake State,10003323,Berney Office Solutions,Jan,6,2015,Other Contractual Services,General Operating Fund,$230.46
48,J.F. Drake State,10003308,CM&F,Jan,6,2015,Purchases for Re-Sale,Auxiliary - Nursing Fees,"$4,095.00"
48,J.F. Drake State,10003324,Chevron and Texaco,Jan,6,2015,Gasoline & Oil-Motor Vehicle,General Operating Fund,$151.33
48,J.F. Drake State,10003311,Colonial Life Insurance,Jan,6,2015,Misc Deductions Payable,Payroll Clearing Fund,$39.65
48,J.F. Drake State,10003325,Comcast Cable,Jan,6,2015,Communications,General Operating Fund,$180.02
48,J.F. Drake State,10003326,Cooks Pest Control,Jan,6,2015,Other Contractual Services,General Operating Fund,$70.00
48,J.F. Drake State,10003326,Cooks Pest Control,Jan,6,2015,Other Contractual Services,General Operating Fund,$249.00
48,J.F. Drake State,10003312,Drake State Foundation,Jan,6,2015,Misc Deductions Payable,Payroll Clearing Fund,$255.42
48,J.F. Drake State,10003327,Earthlink,Jan,6,2015,Communications,General Operating Fund,"$11,530.66"
48,J.F. Drake State,10003313,Educators Benefit,Jan,6,2015,Misc Deductions Payable,Payroll Clearing Fund,"$1,118.62"
48,J.F. Drake State,30002477,"Homewood Suites, Florida",Jan,6,2015,Out-of-State-Subsist & Lodging,Title III-Act 2 Improving Instruct,$663.43
48,J.F. Drake State,10003328,Huntsville Utilities,Jan,6,2015,Gas & Heating Fuel,General Operating Fund,"$3,380.49"
48,J.F. Drake State,10003328,Huntsville Utilities,Jan,6,2015,Water & Sewer,General Operating Fund,"$4,349.00"
48,J.F. Drake State,10003328,Huntsville Utilities,Jan,6,2015,Electricity,General Operating Fund,"$19,411.91"
48,J.F. Drake State,10003328,Huntsville Utilities,Jan,6,2015,Water & Sewer,General Operating Fund,$45.41
48,J.F. Drake State,10003328,Huntsville Utilities,Jan,6,2015,Electricity,General Operating Fund,$343.97
48,J.F. Drake State,10003328,Huntsville Utilities,Jan,6,2015,Electricity,General Operating Fund,$712.40
48,J.F. Drake State,10003314,Metropolitan Life Insurance Company,Jan,6,2015,Misc Deductions Payable,Payroll Clearing Fund,$100.00
48,J.F. Drake State,10003315,New York Life Insurance,Jan,6,2015,Misc Deductions Payable,Payroll Clearing Fund,$215.25
48,J.F. Drake State,10003316,PEEHIP,Jan,6,2015,PEEHIP Payable,Payroll Clearing Fund,"$82,282.22"
48,J.F. Drake State,10003329,Progressive Specialty Insurance Com,Jan,6,2015,Postage,General Operating Fund,$310.00
48,J.F. Drake State,10003330,Schindler Elevator Corporation,Jan,6,2015,Other Contractual Services,General Operating Fund,"$1,173.27"
48,J.F. Drake State,10003317,Security Benefit Life Insurance Com,Jan,6,2015,Misc Deductions Payable,Payroll Clearing Fund,$425.00
48,J.F. Drake State,10003318,Teachers Retirement System,Jan,6,2015,Alabama Teachers Retirement Payable,Payroll Clearing Fund,"$74,242.00"
48,J.F. Drake State,10003319,Truescreen Inc.,Jan,6,2015,Background Checks,Payroll Clearing Fund,$13.00
48,J.F. Drake State,10003320,"United Way of Madison County, Inc.",Jan,6,2015,Misc Deductions Payable,Payroll Clearing Fund,$378.00
48,J.F. Drake State,10003321,Variable Annuity Life Insurance,Jan,6,2015,Misc Deductions Payable,Payroll Clearing Fund,$757.50
48,J.F. Drake State,10003331,Verizon Wireless,Jan,6,2015,Communications,General Operating Fund,"$1,470.82"
48,J.F. Drake State,30002478,WEX Bank,Jan,6,2015,In State-Mileage,Title III,$29.59
48,J.F. Drake State,10003332,WEX Bank,Jan,6,2015,Gasoline & Oil-Motor Vehicle,General Operating Fund,$22.93
48,J.F. Drake State,10003332,WEX Bank,Jan,6,2015,Gasoline & Oil-Motor Vehicle,General Operating Fund,$28.63
48,J.F. Drake State,10003332,WEX Bank,Jan,6,2015,Gasoline & Oil-Motor Vehicle,General Operating Fund,$23.07
48,J.F. Drake State,10003332,WEX Bank,Jan,6,2015,Gasoline & Oil-Motor Vehicle,General Operating Fund,$26.01
48,J.F. Drake State,30002478,WEX Bank,Jan,6,2015,In State-Mileage,Title III,$25.67
48,J.F. Drake State,30002478,WEX Bank,Jan,6,2015,Out-of-State-Mileage,Title III,$17.91
48,J.F. Drake State,10003332,WEX Bank,Jan,6,2015,Gasoline & Oil-Motor Vehicle,General Operating Fund,$23.10
48,J.F. Drake State,10003335,AT&T,Jan,7,2015,Communications,General Operating Fund,$303.64
48,J.F. Drake State,10003335,AT&T,Jan,7,2015,Communications,General Operating Fund,$101.43
48,J.F. Drake State,10003335,AT&T,Jan,7,2015,Communications,General Operating Fund,$84.78
48,J.F. Drake State,10003333,Alabama Department of Labor,Jan,7,2015,Unemployment Compensation,General Operating Fund,"$2,185.41"
48,J.F. Drake State,30002480,PEEHIP,Jan,7,2015,Health Insurance-Institution Share,SAFRA-Activity A Administration,$468.00
48,J.F. Drake State,30002480,PEEHIP,Jan,7,2015,Health Insurance-Institution Share,SAFRA-Activity A Administration,$780.00
48,J.F. Drake State,10003334,PEEHIP,Jan,7,2015,Health Insurance-Institution Share,General Operating Fund,$546.00
48,J.F. Drake State,10003336,Purchase Power,Jan,7,2015,Postage,General Operating Fund,$630.00
48,J.F. Drake State,30002482,ACAPNEP,Jan,12,2015,Memberships,SAFRA-Activity 1 Allied Health,$50.00
48,J.F. Drake State,10003337,ACCSHRMA,Jan,12,2015,In State-Registration,General Operating Fund,$100.00
48,J.F. Drake State,10003338,ACCSPA,Jan,12,2015,Memberships,General Operating Fund,"$3,000.00"
48,J.F. Drake State,10003339,ACCSPRA,Jan,12,2015,Memberships,General Operating Fund,$50.00
48,J.F. Drake State,10003359,AT&T,Jan,12,2015,Communications,General Operating Fund,$1.69
48,J.F. Drake State,10003340,Alabama Lawnmaster Inc,Jan,12,2015,Other Contractual Services,General Operating Fund,$245.00
48,J.F. Drake State,10003340,Alabama Lawnmaster Inc,Jan,12,2015,Other Contractual Services,General Operating Fund,"$3,045.00"
48,J.F. Drake State,10003341,Albert's Flowers & Greenhouses,Jan,12,2015,Materials and Supplies,General Operating Fund,$103.00
48,J.F. Drake State,30002483,"Arrington, Cedric D.",Jan,12,2015,In State-Ovrnite Per diem,Title III-Act 2 Improving Instruct,$225.00
48,J.F. Drake State,10003342,"Banks Industries, Inc",Jan,12,2015,Materials and Supplies,General Operating Fund,$519.54
48,J.F. Drake State,30002484,"Banks, Terrell G.",Jan,12,2015,Participant Costs-Stipends,GA-AL LSAMP NSF HRD 1305041,$500.00
48,J.F. Drake State,30002485,"Bell, Angela N.",Jan,12,2015,Out-of-State-Subsist & Lodging,Title III-Act 2 Improving Instruct,$160.95
48,J.F. Drake State,30002485,"Bell, Angela N.",Jan,12,2015,In State-Mileage,Title III-Act 2 Improving Instruct,$116.03
48,J.F. Drake State,30002485,"Bell, Angela N.",Jan,12,2015,In State-Ovrnite Per diem,Title III-Act 2 Improving Instruct,$150.00
48,J.F. Drake State,10003343,"Blackboard, Inc",Jan,12,2015,Computer Software-Non Cap,General Operating Fund,"$44,578.00"
48,J.F. Drake State,30002486,"Brooks Lock & Key, Inc",Jan,12,2015,Materials and Supplies,SAFRA-Activity 1 Allied Health,$27.00
48,J.F. Drake State,30002487,"Burden, Frank E.",Jan,12,2015,Participant Costs-Stipends,GA-AL LSAMP NSF HRD 1305041,$500.00
48,J.F. Drake State,30002488,CDW-G Government,Jan,12,2015,Materials and Supplies,Title III,$96.75
48,J.F. Drake State,30002488,CDW-G Government,Jan,12,2015,Materials and Supplies,Title III,"$11,714.82"
48,J.F. Drake State,10003344,Chamber of Commerce of Huntsville/M,Jan,12,2015,Memberships,General Operating Fund,$649.00
48,J.F. Drake State,30002489,"Chance, Katie E.",Jan,12,2015,In State-Mileage,Title III-Act 2 Improving Instruct,$134.40
48,J.F. Drake State,30002490,Clayton Jones & Associates,Jan,12,2015,Other Contractual Services,Title III-Act 4 Improve Facilities,"$1,500.00"
48,J.F. Drake State,30002491,"Curry, Leo",Jan,12,2015,Participant Costs-Stipends,GA-AL LSAMP NSF HRD 1305041,$500.00
48,J.F. Drake State,10003360,Department of Finance,Jan,12,2015,Communications,General Operating Fund,$45.78
48,J.F. Drake State,10003345,"Dynamic Security, Inc.",Jan,12,2015,Other Contractual Services,General Operating Fund,"$18,775.26"
48,J.F. Drake State,10003346,ELSEVIER,Jan,12,2015,Purchases for Re-Sale,General Operating Fund,"$1,155.83"
48,J.F. Drake State,30002492,"Evanced Solutions, LLC",Jan,12,2015,Other Contractual Services,Title III-Act 5 Library,$547.00
48,J.F. Drake State,10003361,"Gilmore, Latorya A.",Jan,12,2015,Contract Clearing Account,General Operating Fund,$109.95
48,J.F. Drake State,30002493,"Glasgow, Gezelle B.",Jan,12,2015,Participant Costs-Stipends,GA-AL LSAMP NSF HRD 1305041,$500.00
48,J.F. Drake State,10003347,Huntsville Times,Jan,12,2015,Advertising & Promotions,General Operating Fund,$284.53
48,J.F. Drake State,10003347,Huntsville Times,Jan,12,2015,Advertising & Promotions,General Operating Fund,$250.76
48,J.F. Drake State,10003348,Ideal Corp Marketing,Jan,12,2015,Advertising & Promotions,General Operating Fund,"$2,750.00"
48,J.F. Drake State,30002494,"Jackson, Antoinette Y.",Jan,12,2015,Participant Costs-Stipends,GA-AL LSAMP NSF HRD 1305041,$500.00
48,J.F. Drake State,30002495,"Johnson, Nina M.",Jan,12,2015,Participant Costs-Stipends,GA-AL LSAMP NSF HRD 1305041,$500.00
48,J.F. Drake State,10003349,"Kudzu Productions, Inc",Jan,12,2015,Advertising & Promotions,General Operating Fund,"$1,655.00"
48,J.F. Drake State,10003350,"Lanier, Ford, Shaver & Payne PC",Jan,12,2015,Legal Services,General Operating Fund,"$1,954.57"
48,J.F. Drake State,10003350,"Lanier, Ford, Shaver & Payne PC",Jan,12,2015,Legal Services,General Operating Fund,$702.00
48,J.F. Drake State,30002496,"Matthews, Craig A.",Jan,12,2015,Participant Costs-Stipends,GA-AL LSAMP NSF HRD 1305041,$500.00
48,J.F. Drake State,10003351,"McAlpine, Helen T.",Jan,12,2015,Materials and Supplies,General Operating Fund,$67.96
48,J.F. Drake State,10003352,"Mobile Mini, Inc",Jan,12,2015,Other Contractual Services,General Operating Fund,$114.99
48,J.F. Drake State,10003352,"Mobile Mini, Inc",Jan,12,2015,Other Contractual Services,General Operating Fund,$144.99
48,J.F. Drake State,30002497,NASPA,Jan,12,2015,In State-Registration,Title III-Act 2 Improving Instruct,$60.00
48,J.F. Drake State,10003353,National Document Solutions,Jan,12,2015,Materials and Supplies,General Operating Fund,$457.72
48,J.F. Drake State,30002498,"O'Linger, Jennifer M.",Jan,12,2015,In State-Ovrnite Per diem,Title III-Act 2 Improving Instruct,$225.00
48,J.F. Drake State,30002498,"O'Linger, Jennifer M.",Jan,12,2015,In State-Other Travel Exp,Title III-Act 2 Improving Instruct,$24.00
48,J.F. Drake State,30002499,"Office Depot, Inc",Jan,12,2015,Materials and Supplies,Federal - Adult Ed,$34.40
48,J.F. Drake State,30002499,"Office Depot, Inc",Jan,12,2015,Materials and Supplies,Federal - Adult Ed,"$1,100.02"
48,J.F. Drake State,30002499,"Office Depot, Inc",Jan,12,2015,Materials and Supplies,Federal - Adult Ed,$463.05
48,J.F. Drake State,30002499,"Office Depot, Inc",Jan,12,2015,Materials and Supplies,Federal - Adult Ed,$633.20
48,J.F. Drake State,30002503,"PODS Enterprises, Inc.",Jan,12,2015,Other Contractual Services,SAFRA-Activity 1 Allied Health,$159.00
48,J.F. Drake State,30002500,PaperClip Communications,Jan,12,2015,Professional Dev-State,Title III-Act 2 Improving Instruct,$369.00
48,J.F. Drake State,30002501,Pearson VUE,Jan,12,2015,Testing Expense,State - Adult Ed- GED Vouchers,$50.00
48,J.F. Drake State,30002502,"Perryman, Shaun D.",Jan,12,2015,Participant Costs-Stipends,GA-AL LSAMP NSF HRD 1305041,$500.00
48,J.F. Drake State,10003354,Piccadilly Cafeteria,Jan,12,2015,Materials and Supplies,General Operating Fund,$59.98
48,J.F. Drake State,30002504,"Powell, Miguel K.",Jan,12,2015,Participant Costs-Stipends,GA-AL LSAMP NSF HRD 1305041,$500.00
48,J.F. Drake State,30002505,"Rentz, Joyce L.",Jan,12,2015,Out-of-State-Subsist & Lodging,Title III-Act 2 Improving Instruct,$157.47
48,J.F. Drake State,30002505,"Rentz, Joyce L.",Jan,12,2015,Out-of-State-Other Travel Expenses,Title III-Act 2 Improving Instruct,$30.00
48,J.F. Drake State,10003355,"Rocket City Broadcasting, LLC",Jan,12,2015,Advertising & Promotions,General Operating Fund,$360.00
48,J.F. Drake State,10003356,Screenvision,Jan,12,2015,Advertising & Promotions,General Operating Fund,$348.00
48,J.F. Drake State,10003356,Screenvision,Jan,12,2015,Advertising & Promotions,General Operating Fund,$450.00
48,J.F. Drake State,30002506,"Slay, Jody L.",Jan,12,2015,In State-Mileage,Spin Up,$120.40
48,J.F. Drake State,10003357,TEBIN,Jan,12,2015,Memberships,General Operating Fund,$150.00
48,J.F. Drake State,30002507,"Taylor, Docquinn N.",Jan,12,2015,In State-Mileage,Title III-Act 2 Improving Instruct,$115.66
48,J.F. Drake State,10003358,Texas Book Company,Jan,12,2015,Prior Yr Accounts Payable,Auxiliary Enterprise-Unrestricted,"$177,265.83"
48,J.F. Drake State,30002508,"Treadway, Kristin A.",Jan,12,2015,In State-Ovrnite Per diem,Title III-Act 2 Improving Instruct,$225.00
48,J.F. Drake State,10003362,US Department of Veteran Affairs,Jan,12,2015,Contract Clearing Account,General Operating Fund,$423.00
48,J.F. Drake State,E1101028,Alabama Department of Revenue,Jan,13,2015,Sales Tax Payable,Payroll Clearing Fund,$0.92
48,J.F. Drake State,E1101028,Alabama Department of Revenue,Jan,13,2015,Sales Tax Payable,Payroll Clearing Fund,$0.10
48,J.F. Drake State,E1101028,Alabama Department of Revenue,Jan,13,2015,Sales Tax Payable,Payroll Clearing Fund,$0.82
48,J.F. Drake State,E1101029,Department of Revenue,Jan,13,2015,State Income Tax Payable,Payroll Clearing Fund,"$15,470.42"
48,J.F. Drake State,E1101030,Internal Revenue Service,Jan,13,2015,FICA Payable,Payroll Clearing Fund,"$67,704.80"
48,J.F. Drake State,E1101030,Internal Revenue Service,Jan,13,2015,Federal Income Taxes Payable,Payroll Clearing Fund,"$43,833.47"
48,J.F. Drake State,30002509,Barnes & Noble Booksellers,Jan,15,2015,Other Contractual Services,Allied Health,$250.40
48,J.F. Drake State,30002509,Barnes & Noble Booksellers,Jan,15,2015,Materials and Supplies,SAFRA-Activity 1 Allied Health,$120.19
48,J.F. Drake State,30002510,"Barnett, Nicole C.",Jan,15,2015,In State-Ovrnite Per diem,Title III-Act 2 Improving Instruct,$150.00
48,J.F. Drake State,30002510,"Barnett, Nicole C.",Jan,15,2015,In State-Ovrnite Per diem,Title III-Act 2 Improving Instruct,$225.00
48,J.F. Drake State,30002511,"Brown, Tillie M.",Jan,15,2015,Participant Costs-Subsistence,DigiTec,$132.81
48,J.F. Drake State,30002512,"CAPT, Inc",Jan,15,2015,Professional Dev-State,Title III-Act 2 Improving Instruct,$14.43
48,J.F. Drake State,30002513,CDW-G Government,Jan,15,2015,Materials and Supplies,Title III,$653.82
48,J.F. Drake State,10003365,CDW-G Government,Jan,15,2015,"Technology $25,000 or Less",General Operating Fund,"$9,929.00"
48,J.F. Drake State,10003365,CDW-G Government,Jan,15,2015,Non-capitalized Equipment,Carl Perkins Career & Tech Ed Grant,"$1,319.99"
48,J.F. Drake State,10003365,CDW-G Government,Jan,15,2015,Non-capitalized Equipment,Perkins Funds,$193.29
48,J.F. Drake State,30002513,CDW-G Government,Jan,15,2015,Other Contractual Services,Title III,"$2,509.88"
48,J.F. Drake State,10003365,CDW-G Government,Jan,15,2015,Non-capitalized Equipment,Perkins Funds,"$1,319.99"
48,J.F. Drake State,10003365,CDW-G Government,Jan,15,2015,Non-capitalized Equipment,Carl Perkins Career & Tech Ed Grant,$193.29
48,J.F. Drake State,10003365,CDW-G Government,Jan,15,2015,Materials and Supplies,General Operating Fund,$252.98
48,J.F. Drake State,10003365,CDW-G Government,Jan,15,2015,Materials and Supplies,General Operating Fund,$152.63
48,J.F. Drake State,10003365,CDW-G Government,Jan,15,2015,Non-capitalized Equipment,General Operating Fund,"$3,892.22"
48,J.F. Drake State,10003364,Careercast,Jan,15,2015,Advertising & Promotions,General Operating Fund,$322.37
48,J.F. Drake State,30002514,Cerebellum Corporation,Jan,15,2015,Audio Visual,Title III,$109.91
48,J.F. Drake State,30002514,Cerebellum Corporation,Jan,15,2015,Audio Visual,Title III,"$3,446.03"
48,J.F. Drake State,30002515,"Dukemineer, Amelia J.",Jan,15,2015,In State-Mileage,Spin Up,$160.72
48,J.F. Drake State,10003366,"Dynamic Security, Inc.",Jan,15,2015,Other Contractual Services,General Operating Fund,"$4,665.60"
48,J.F. Drake State,10003367,Education To Go,Jan,15,2015,Other Contractual Services,General Operating Fund,$2.25
48,J.F. Drake State,10003367,Education To Go,Jan,15,2015,Other Contractual Services,General Operating Fund,$85.00
48,J.F. Drake State,10003368,Future Business Leaders of America-,Jan,15,2015,Deposit Liabilities,Phi Beta Lambda,$17.00
48,J.F. Drake State,10003368,Future Business Leaders of America-,Jan,15,2015,Deposit Liabilities,Phi Beta Lambda,$34.00
48,J.F. Drake State,30002516,"Goodloe, Lardell",Jan,15,2015,In State-Ovrnite Per diem,CARCAM-AMP IT UP FY 15,$150.00
48,J.F. Drake State,30002516,"Goodloe, Lardell",Jan,15,2015,In State-Mileage,CARCAM-AMP IT UP FY 15,$88.16
48,J.F. Drake State,30002517,"Green, Tiffany R.",Jan,15,2015,Out-of-State-Subsist & Lodging,Title III-Act 2 Improving Instruct,$96.05
48,J.F. Drake State,30002517,"Green, Tiffany R.",Jan,15,2015,Out-of-State-Other Travel Expenses,Title III-Act 2 Improving Instruct,$50.00
48,J.F. Drake State,30002518,"Grissim, Robert N.",Jan,15,2015,Out-of-State-Subsist & Lodging,DigiTec,$32.95
48,J.F. Drake State,30002518,"Grissim, Robert N.",Jan,15,2015,Out-of-State-Other Travel Expenses,DigiTec,$101.97
48,J.F. Drake State,30002519,"Han, Sang J.",Jan,15,2015,Other Contractual Services,Title III,"$1,200.00"
48,J.F. Drake State,30002520,"Henderson, Carolyn",Jan,15,2015,Out-of-State-Subsist & Lodging,Title III-Act 2 Improving Instruct,$157.87
48,J.F. Drake State,30002520,"Henderson, Carolyn",Jan,15,2015,Out-of-State-Other Travel Expenses,Title III-Act 2 Improving Instruct,$32.29
48,J.F. Drake State,30002521,"Henry, Karl W.",Jan,15,2015,In State-Mileage,CARCAM- AMP It Up,$88.16
48,J.F. Drake State,30002521,"Henry, Karl W.",Jan,15,2015,In State-Ovrnite Per diem,CARCAM-AMP IT UP FY 15,$150.00
48,J.F. Drake State,10003369,Johnstone Supply,Jan,15,2015,Materials and Supplies,General Operating Fund,$144.06
48,J.F. Drake State,10003370,"Koorsen Security Technology, Inc",Jan,15,2015,Other Contractual Services,General Operating Fund,$271.83
48,J.F. Drake State,10003370,"Koorsen Security Technology, Inc",Jan,15,2015,Other Contractual Services,General Operating Fund,$448.98
48,J.F. Drake State,10003371,Labor Ready,Jan,15,2015,Other Contractual Services,General Operating Fund,$689.08
48,J.F. Drake State,30002522,Michigan Technological University,Jan,15,2015,Subcontracts,DigiTec,"$11,215.80"
48,J.F. Drake State,10003372,"Mobile Mini, Inc",Jan,15,2015,Other Contractual Services,General Operating Fund,$114.99
48,J.F. Drake State,30002523,"NCSBN, Inc.",Jan,15,2015,Other Contractual Services,SAFRA-Activity 1 Allied Health,$350.00
48,J.F. Drake State,30002524,"Noel-Levitz, Inc.",Jan,15,2015,Other Contractual Services,Title III-Act A Program Admin,$10.61
48,J.F. Drake State,30002525,"Office Depot, Inc",Jan,15,2015,Materials and Supplies,Title III-Activity 1 Fiscal Managem,$89.79
48,J.F. Drake State,30002525,"Office Depot, Inc",Jan,15,2015,Materials and Supplies,Title III-Activity 1 Fiscal Managem,$17.88
48,J.F. Drake State,30002525,"Office Depot, Inc",Jan,15,2015,Materials and Supplies,Title III-Activity 1 Fiscal Managem,$403.86
48,J.F. Drake State,30002525,"Office Depot, Inc",Jan,15,2015,Materials and Supplies,Federal - Adult Ed,$114.95
48,J.F. Drake State,30002525,"Office Depot, Inc",Jan,15,2015,Materials and Supplies,Title III-Activity 1 Fiscal Managem,$281.70
48,J.F. Drake State,30002525,"Office Depot, Inc",Jan,15,2015,Materials and Supplies,Title III-Activity 1 Fiscal Managem,$91.19
48,J.F. Drake State,10003373,Overhead Door Company of North Alab,Jan,15,2015,Maintenance & Repairs,General Operating Fund,$624.00
48,J.F. Drake State,10003373,Overhead Door Company of North Alab,Jan,15,2015,Maintenance & Repairs,General Operating Fund,$992.00
48,J.F. Drake State,30002526,Rowman & Littlefield Publishing Gro,Jan,15,2015,Books,Title III,$75.00
48,J.F. Drake State,30002527,"Slay, Jody L.",Jan,15,2015,In State-Mileage,Spin Up,$78.96
48,J.F. Drake State,10003374,Source Graphics,Jan,15,2015,"Furniture & Equip $25,000 or Less",Perkins Funds,"$1,188.00"
48,J.F. Drake State,10003374,Source Graphics,Jan,15,2015,"Furniture & Equip $25,000 or Less",Carl Perkins Career & Tech Ed Grant,"$1,188.00"
48,J.F. Drake State,30002528,"Turley, Gilbert T.",Jan,15,2015,Out-of-State-Other Travel Expenses,Title III-Activity 1 Fiscal Managem,$6.00
48,J.F. Drake State,30002529,University of New Mexico,Jan,15,2015,Subcontracts,DigiTec,"$1,280.03"
48,J.F. Drake State,30002530,"Walker, Anita G.",Jan,15,2015,In State-Mileage,Spin Up,$174.72
48,J.F. Drake State,10003363,Woody Anderson Ford,Jan,15,2015,Maintenance & Repairs,General Operating Fund,$42.49
48,J.F. Drake State,10003363,Woody Anderson Ford,Jan,15,2015,Maintenance & Repairs,General Operating Fund,$244.67
48,J.F. Drake State,30002533,ACCSHRMA,Jan,26,2015,In State-Registration,Title III-Act 2 Improving Instruct,$200.00
48,J.F. Drake State,10003385,ACT,Jan,26,2015,Materials and Supplies,General Operating Fund,$635.00
48,J.F. Drake State,10003386,"Alabama Card System, Inc",Jan,26,2015,Materials and Supplies,General Operating Fund,$166.32
48,J.F. Drake State,30002534,American Express,Jan,26,2015,Out-of-State-Commercl Trans,Title III-Act 2 Improving Instruct,$256.20
48,J.F. Drake State,30002534,American Express,Jan,26,2015,Out-of-State-Commercl Trans,Spin Up,$567.20
48,J.F. Drake State,30002535,"Barnett, Nicole C.",Jan,26,2015,Out-of-State-Other Travel Expenses,Title III-Act 2 Improving Instruct,$47.00
48,J.F. Drake State,30002535,"Barnett, Nicole C.",Jan,26,2015,Out-of-State-Subsist & Lodging,Title III-Act 2 Improving Instruct,$68.45
48,J.F. Drake State,30002536,"Battle Jr, Ben",Jan,26,2015,In State-Mileage,Title III-Act 2 Improving Instruct,$116.40
48,J.F. Drake State,30002536,"Battle Jr, Ben",Jan,26,2015,In State-Ovrnite Per diem,Title III-Act 2 Improving Instruct,$300.00
48,J.F. Drake State,10003375,Berney Office Solutions,Jan,26,2015,Other Contractual Services,General Operating Fund,$113.43
48,J.F. Drake State,10003375,Berney Office Solutions,Jan,26,2015,Other Contractual Services,General Operating Fund,"$1,789.74"
48,J.F. Drake State,10003387,Broadcast/WEUP Radio Station,Jan,26,2015,Advertising & Promotions,General Operating Fund,$750.00
48,J.F. Drake State,10003388,"Brooks Lock & Key, Inc",Jan,26,2015,Maintenance & Repairs,General Operating Fund,$160.00
48,J.F. Drake State,30002537,CDW-G Government,Jan,26,2015,Non-capitalized Equipment,Federal Performance Measu- Adult Ed,$673.18
48,J.F. Drake State,30002537,CDW-G Government,Jan,26,2015,Non-capitalized Equipment,Federal Performance Measu- Adult Ed,"$3,422.18"
48,J.F. Drake State,10003389,"Dynamic Security, Inc.",Jan,26,2015,Other Contractual Services,General Operating Fund,"$4,665.60"
48,J.F. Drake State,10003389,"Dynamic Security, Inc.",Jan,26,2015,Other Contractual Services,General Operating Fund,"$4,374.00"
48,J.F. Drake State,10003389,"Dynamic Security, Inc.",Jan,26,2015,Other Contractual Services,General Operating Fund,"$4,374.24"
48,J.F. Drake State,10003376,Earthlink,Jan,26,2015,Communications,General Operating Fund,"$11,538.85"
48,J.F. Drake State,10003377,Ellucian Company L.P.,Jan,26,2015,Other Contractual Services,General Operating Fund,$825.54
48,J.F. Drake State,10003377,Ellucian Company L.P.,Jan,26,2015,Other Contractual Services,General Operating Fund,"$12,168.14"
48,J.F. Drake State,10003377,Ellucian Company L.P.,Jan,26,2015,Other Contractual Services,General Operating Fund,"$1,265.49"
48,J.F. Drake State,10003378,FedEx,Jan,26,2015,Freight,General Operating Fund,$59.20
48,J.F. Drake State,10003378,FedEx,Jan,26,2015,Freight,General Operating Fund,$24.82
48,J.F. Drake State,30002538,"Forbes, Edwin T.",Jan,26,2015,In State-Ovrnite Per diem,Title III-Act 2 Improving Instruct,$225.00
48,J.F. Drake State,30002538,"Forbes, Edwin T.",Jan,26,2015,In State-Mileage,Title III-Act 2 Improving Instruct,$116.48
48,J.F. Drake State,30002539,Fred Pryor Seminars &/or Career Tra,Jan,26,2015,In State-Registration,Title III-Act 2 Improving Instruct,$98.00
48,J.F. Drake State,10003390,"Galindo-Baird, Yibeli",Jan,26,2015,In State-Mileage,General Operating Fund,$116.48
48,J.F. Drake State,10003390,"Galindo-Baird, Yibeli",Jan,26,2015,In State-Ovrnite Per diem,General Operating Fund,$150.00
48,J.F. Drake State,10003390,"Galindo-Baird, Yibeli",Jan,26,2015,Materials and Supplies,General Operating Fund,$86.13
48,J.F. Drake State,10003390,"Galindo-Baird, Yibeli",Jan,26,2015,Materials and Supplies,General Operating Fund,$7.78
48,J.F. Drake State,10003390,"Galindo-Baird, Yibeli",Jan,26,2015,In State-Mileage,General Operating Fund,$170.24
48,J.F. Drake State,30002540,"Gohanna, Symmetris J.",Jan,26,2015,Out-of-State-Subsist & Lodging,Title III-Act 2 Improving Instruct,$158.66
48,J.F. Drake State,30002540,"Gohanna, Symmetris J.",Jan,26,2015,Out-of-State-Other Travel Expenses,Title III-Act 2 Improving Instruct,$59.00
48,J.F. Drake State,30002540,"Gohanna, Symmetris J.",Jan,26,2015,Out-of-State-Mileage,Title III-Act 2 Improving Instruct,$123.56
48,J.F. Drake State,10003391,Grey House Publishing,Jan,26,2015,Books,General Operating Fund,$372.00
48,J.F. Drake State,30002541,Grey House Publishing,Jan,26,2015,Books,Title III,$528.00
48,J.F. Drake State,10003391,Grey House Publishing,Jan,26,2015,Books,General Operating Fund,$124.00
48,J.F. Drake State,30002541,Grey House Publishing,Jan,26,2015,Books,Title III,$476.00
48,J.F. Drake State,30002541,Grey House Publishing,Jan,26,2015,Books,Title III,$684.00
48,J.F. Drake State,30002541,Grey House Publishing,Jan,26,2015,Books,Title III,$352.00
48,J.F. Drake State,30002541,Grey House Publishing,Jan,26,2015,Books,Title III,$604.00
48,J.F. Drake State,30002541,Grey House Publishing,Jan,26,2015,Books,Title III,$396.00
48,J.F. Drake State,10003379,Huntsville Utilities,Jan,26,2015,Water & Sewer,General Operating Fund,$617.26
48,J.F. Drake State,10003379,Huntsville Utilities,Jan,26,2015,Water & Sewer,General Operating Fund,$47.42
48,J.F. Drake State,10003392,"Koorsen Security Technology, Inc",Jan,26,2015,Other Contractual Services,General Operating Fund,$200.00
48,J.F. Drake State,10003380,Loomis,Jan,26,2015,Other Contractual Services,General Operating Fund,$150.07
48,J.F. Drake State,10003393,McCrary Supply,Jan,26,2015,Maintenance & Repairs,General Operating Fund,$254.88
48,J.F. Drake State,30002542,McGraw Hill School Education Holdin,Jan,26,2015,Materials and Supplies,Federal - Adult Ed,$404.93
48,J.F. Drake State,10003394,"Mobile Mini, Inc",Jan,26,2015,Other Contractual Services,General Operating Fund,$114.99
48,J.F. Drake State,30002543,Nosotros Education Center,Jan,26,2015,Other Contractual Services,Trio-SSS Grant,"$2,000.00"
48,J.F. Drake State,30002545,"PPG Architectural Finishes, Inc",Jan,26,2015,Materials and Supplies,Title III-Act 4 Improve Facilities,$357.85
48,J.F. Drake State,30002545,"PPG Architectural Finishes, Inc",Jan,26,2015,Materials and Supplies,Title III-Act 4 Improve Facilities,$59.90
48,J.F. Drake State,30002544,PaperClip Communications,Jan,26,2015,Professional Dev-State,Title III-Act 2 Improving Instruct,$369.00
48,J.F. Drake State,30002544,PaperClip Communications,Jan,26,2015,Materials and Supplies,Title III,"$2,325.00"
48,J.F. Drake State,10003395,RadioBro Corporation,Jan,26,2015,Materials and Supplies,General Operating Fund,"$3,060.00"
48,J.F. Drake State,10003396,Sysco Central Alabama,Jan,26,2015,Purchases for Re-Sale,Auxiliary Enterprise-Unrestricted,$872.46
48,J.F. Drake State,30002546,"Taylor, Docquinn N.",Jan,26,2015,Out-of-State-Mileage,Title III-Act 2 Improving Instruct,$123.77
48,J.F. Drake State,30002546,"Taylor, Docquinn N.",Jan,26,2015,Out-of-State-Subsist & Lodging,Title III-Act 2 Improving Instruct,$63.45
48,J.F. Drake State,30002546,"Taylor, Docquinn N.",Jan,26,2015,Out-of-State-Other Travel Expenses,Title III-Act 2 Improving Instruct,$43.00
48,J.F. Drake State,10003382,"The Solutions Team, Inc.",Jan,26,2015,Computer Software-Non Cap,General Operating Fund,$200.00
48,J.F. Drake State,30002547,University of New Mexico,Jan,26,2015,Subcontracts,DigiTec,"$1,963.61"
48,J.F. Drake State,10003397,"Viamedia, Inc.",Jan,26,2015,Advertising & Promotions,General Operating Fund,$737.80
48,J.F. Drake State,10003397,"Viamedia, Inc.",Jan,26,2015,Advertising & Promotions,General Operating Fund,$212.50
48,J.F. Drake State,10003398,WAAY-TV,Jan,26,2015,Advertising & Promotions,General Operating Fund,$700.00
48,J.F. Drake State,10003399,WHDF,Jan,26,2015,Advertising & Promotions,General Operating Fund,$970.00
48,J.F. Drake State,10003400,"WHNT, LLC",Jan,26,2015,Advertising & Promotions,General Operating Fund,"$1,740.00"
48,J.F. Drake State,10003384,WOW! Business,Jan,26,2015,Communications,General Operating Fund,$193.61
48,J.F. Drake State,10003383,Waste Management,Jan,26,2015,Other Contractual Services,General Operating Fund,$834.07
48,J.F. Drake State,10003401,Council for Opportunity in Educatio,Jan,27,2015,Memberships,General Operating Fund,"$2,868.00"
48,J.F. Drake State,10003410,Berney Office Solutions,Feb,2,2015,Other Contractual Services,General Operating Fund,$181.96
48,J.F. Drake State,10003402,Comcast Cable,Feb,2,2015,Communications,General Operating Fund,$180.02
48,J.F. Drake State,10003403,"Dynamic Security, Inc.",Feb,2,2015,Other Contractual Services,General Operating Fund,"$4,665.60"
48,J.F. Drake State,10003404,Ellucian Company L.P.,Feb,2,2015,Other Contractual Services,General Operating Fund,"$11,978.00"
48,J.F. Drake State,10003405,Huntsville Utilities,Feb,2,2015,Electricity,General Operating Fund,"$23,042.87"
48,J.F. Drake State,10003405,Huntsville Utilities,Feb,2,2015,Electricity,General Operating Fund,$216.28
48,J.F. Drake State,10003405,Huntsville Utilities,Feb,2,2015,Water & Sewer,General Operating Fund,$45.41
48,J.F. Drake State,10003405,Huntsville Utilities,Feb,2,2015,Electricity,General Operating Fund,$923.94
48,J.F. Drake State,10003405,Huntsville Utilities,Feb,2,2015,Gas & Heating Fuel,General Operating Fund,"$5,431.66"
48,J.F. Drake State,10003405,Huntsville Utilities,Feb,2,2015,Water & Sewer,General Operating Fund,"$3,431.62"
48,J.F. Drake State,10003406,Reserve Account   Acct# 16265175,Feb,2,2015,Postage,General Operating Fund,"$2,500.00"
48,J.F. Drake State,10003407,Schrimsher Properties,Feb,2,2015,Rent - Facilities,General Operating Fund,"$6,715.00"
48,J.F. Drake State,10003408,"WALLACE, RACHAEL E.",Feb,2,2015,Contract Clearing Account,General Operating Fund,$143.67
48,J.F. Drake State,30002548,WEX Bank,Feb,2,2015,In State-Mileage,Title III,$25.98
48,J.F. Drake State,10003409,WEX Bank,Feb,2,2015,Gasoline & Oil-Motor Vehicle,General Operating Fund,$23.30
48,J.F. Drake State,10003409,WEX Bank,Feb,2,2015,Gasoline & Oil-Motor Vehicle,General Operating Fund,$59.56
48,J.F. Drake State,10003409,WEX Bank,Feb,2,2015,Gasoline & Oil-Motor Vehicle,General Operating Fund,$62.14
48,J.F. Drake State,30002548,WEX Bank,Feb,2,2015,In State-Other Travel Exp,Allied Health,$24.66
48,J.F. Drake State,10003409,WEX Bank,Feb,2,2015,Gasoline & Oil-Motor Vehicle,General Operating Fund,$3.00
48,J.F. Drake State,10003409,WEX Bank,Feb,2,2015,Gasoline & Oil-Motor Vehicle,General Operating Fund,$26.35
48,J.F. Drake State,10003409,WEX Bank,Feb,2,2015,Gasoline & Oil-Motor Vehicle,General Operating Fund,$15.47
48,J.F. Drake State,10003447,ACT,Feb,4,2015,Materials and Supplies,General Operating Fund,$520.00
48,J.F. Drake State,10003411,AT&T,Feb,4,2015,Communications,General Operating Fund,$85.00
48,J.F. Drake State,10003448,Alabama Association of Testing Prof,Feb,4,2015,Memberships,General Operating Fund,$100.00
48,J.F. Drake State,10003425,Alabama Child Support,Feb,4,2015,Misc Deductions Payable,Payroll Clearing Fund,"$1,978.00"
48,J.F. Drake State,10003422,Alabama Department of Revenue,Feb,4,2015,Sales Tax Payable,Payroll Clearing Fund,$0.44
48,J.F. Drake State,10003422,Alabama Department of Revenue,Feb,4,2015,Sales Tax Payable,Payroll Clearing Fund,$3.50
48,J.F. Drake State,10003422,Alabama Department of Revenue,Feb,4,2015,Sales Tax Payable,Payroll Clearing Fund,$3.93
48,J.F. Drake State,10003449,Alabama Lawnmaster Inc,Feb,4,2015,Other Contractual Services,General Operating Fund,"$3,045.00"
48,J.F. Drake State,10003450,Alliant Data Systems,Feb,4,2015,Other Contractual Services,General Operating Fund,$175.00
48,J.F. Drake State,10003426,Allstate Insurance,Feb,4,2015,Misc Deductions Payable,Payroll Clearing Fund,$54.80
48,J.F. Drake State,30003119,Amazon.com,Feb,4,2015,Audio Visual,Title III-Act 5 Library,$257.75
48,J.F. Drake State,10003451,American Association of Community C,Feb,4,2015,Out-of-State-Registration,General Operating Fund,$815.00
48,J.F. Drake State,10003427,American Family Life,Feb,4,2015,Misc Deductions Payable,Payroll Clearing Fund,$125.68
48,J.F. Drake State,10003412,Berney Office Solutions,Feb,4,2015,Other Contractual Services,General Operating Fund,"$2,115.00"
48,J.F. Drake State,10003412,Berney Office Solutions,Feb,4,2015,Other Contractual Services,General Operating Fund,$181.96
48,J.F. Drake State,10003452,Bubba's Catering,Feb,4,2015,Materials and Supplies,General Operating Fund,$890.75
48,J.F. Drake State,30003120,"Burden, Frank E.",Feb,4,2015,Participant Costs-Travel,GA-AL LSAMP NSF HRD 1305041,$100.00
48,J.F. Drake State,30003121,Career Development Conference,Feb,4,2015,Out-of-State-Registration,Spin Up,$100.00
48,J.F. Drake State,10003453,Charter Media,Feb,4,2015,Advertising & Promotions,General Operating Fund,$750.00
48,J.F. Drake State,10003453,Charter Media,Feb,4,2015,Advertising & Promotions,General Operating Fund,$536.00
48,J.F. Drake State,10003453,Charter Media,Feb,4,2015,Advertising & Promotions,General Operating Fund,$212.00
48,J.F. Drake State,10003453,Charter Media,Feb,4,2015,Advertising & Promotions,General Operating Fund,$250.00
48,J.F. Drake State,10003428,Colonial Life Insurance,Feb,4,2015,Misc Deductions Payable,Payroll Clearing Fund,$39.65
48,J.F. Drake State,10003413,Comcast Cable,Feb,4,2015,Communications,General Operating Fund,$180.02
48,J.F. Drake State,30003122,"Conditioned Air Solutions, LLC",Feb,4,2015,Maintenance & Repairs,Title III,$393.88
48,J.F. Drake State,10003414,Cooks Pest Control,Feb,4,2015,Other Contractual Services,General Operating Fund,$70.00
48,J.F. Drake State,10003414,Cooks Pest Control,Feb,4,2015,Other Contractual Services,General Operating Fund,$249.00
48,J.F. Drake State,10003454,Copeland Cleaners,Feb,4,2015,Other Contractual Services,General Operating Fund,$27.61
48,J.F. Drake State,10003455,Crown Trophy,Feb,4,2015,Materials and Supplies,General Operating Fund,$38.00
48,J.F. Drake State,10003456,Dallas Mill Deli,Feb,4,2015,Materials and Supplies,General Operating Fund,$187.50
48,J.F. Drake State,10003457,Department of Examiners of Public A,Feb,4,2015,Accounting & Auditing Services,General Operating Fund,"$20,000.00"
48,J.F. Drake State,10003423,Department of Revenue,Feb,4,2015,State Income Tax Payable,Payroll Clearing Fund,"$14,993.23"
48,J.F. Drake State,10003458,Domino's Pizza,Feb,4,2015,Materials and Supplies,General Operating Fund,$419.58
48,J.F. Drake State,10003429,Drake State Foundation,Feb,4,2015,Misc Deductions Payable,Payroll Clearing Fund,$410.42
48,J.F. Drake State,10003459,"Dynamic Security, Inc.",Feb,4,2015,Other Contractual Services,General Operating Fund,"$4,519.80"
48,J.F. Drake State,10003460,ELSEVIER,Feb,4,2015,Purchases for Re-Sale,General Operating Fund,"$1,181.64"
48,J.F. Drake State,10003430,Educators Benefit,Feb,4,2015,Misc Deductions Payable,Payroll Clearing Fund,"$1,048.69"
48,J.F. Drake State,10003415,Ellucian Company L.P.,Feb,4,2015,Other Contractual Services,General Operating Fund,"$11,978.00"
48,J.F. Drake State,30003123,Enterprise,Feb,4,2015,Out-of-State-Commercl Trans,Title III-Act 2 Improving Instruct,$303.41
48,J.F. Drake State,30003124,Fred Pryor Seminars &/or Career Tra,Feb,4,2015,In State-Registration,Trio-SSS Grant,$49.00
48,J.F. Drake State,10003465,"Gaymon, Denise C.",Feb,4,2015,Materials and Supplies,General Operating Fund,$100.00
48,J.F. Drake State,10003461,"Henry, Karl W.",Feb,4,2015,In State-Other Travel Exp,Auxiliary - Copier Commissions,$230.79
48,J.F. Drake State,10003461,"Henry, Karl W.",Feb,4,2015,In State-Other Travel Exp,Auxiliary - Copier/Vend Commissions,$230.79
48,J.F. Drake State,30003125,"Homewood Suites, Florida",Feb,4,2015,Out-of-State-Subsist & Lodging,Title III-Act 2 Improving Instruct,$143.84
48,J.F. Drake State,10003416,Huntsville Utilities,Feb,4,2015,Electricity,General Operating Fund,$216.28
48,J.F. Drake State,10003416,Huntsville Utilities,Feb,4,2015,Water & Sewer,General Operating Fund,$45.41
48,J.F. Drake State,10003416,Huntsville Utilities,Feb,4,2015,Electricity,General Operating Fund,"$23,042.87"
48,J.F. Drake State,10003416,Huntsville Utilities,Feb,4,2015,Water & Sewer,General Operating Fund,"$3,431.62"
48,J.F. Drake State,10003416,Huntsville Utilities,Feb,4,2015,Gas & Heating Fuel,General Operating Fund,"$5,431.66"
48,J.F. Drake State,10003416,Huntsville Utilities,Feb,4,2015,Electricity,General Operating Fund,$923.94
48,J.F. Drake State,10003424,Internal Revenue Service,Feb,4,2015,Federal Income Taxes Payable,Payroll Clearing Fund,"$40,411.67"
48,J.F. Drake State,10003424,Internal Revenue Service,Feb,4,2015,FICA Payable,Payroll Clearing Fund,"$62,362.14"
48,J.F. Drake State,30003126,"Johnson, Nina M.",Feb,4,2015,Participant Costs-Travel,GA-AL LSAMP NSF HRD 1305041,$100.00
48,J.F. Drake State,10003444,"LEE, ALICIA",Feb,4,2015,Contract Clearing Account,General Operating Fund,$54.50
48,J.F. Drake State,10003431,Metropolitan Life Insurance Company,Feb,4,2015,Misc Deductions Payable,Payroll Clearing Fund,$100.00
48,J.F. Drake State,10003432,"Michael Ford, Chapter 13 Trustee",Feb,4,2015,Misc Deductions Payable,Payroll Clearing Fund,"$2,086.55"
48,J.F. Drake State,10003433,NAECU,Feb,4,2015,Misc Deductions Payable,Payroll Clearing Fund,"$3,036.00"
48,J.F. Drake State,30003128,NCIA Dept of Educational Administra,Feb,4,2015,Memberships,Title III-Act 2 Improving Instruct,$350.00
48,J.F. Drake State,10003445,"Nance, Demetria L.",Feb,4,2015,Contract Clearing Account,General Operating Fund,$22.83
48,J.F. Drake State,30003127,National Association of HBCU Title ,Feb,4,2015,Memberships,SAFRA-Activity A Administration,$225.00
48,J.F. Drake State,10003462,National Document Solutions,Feb,4,2015,Materials and Supplies,General Operating Fund,$115.28
48,J.F. Drake State,10003434,New York Life Insurance,Feb,4,2015,Misc Deductions Payable,Payroll Clearing Fund,$215.25
48,J.F. Drake State,30003129,"Office Depot, Inc",Feb,4,2015,Materials and Supplies,SAFRA-Activity 1 Allied Health,$97.94
48,J.F. Drake State,30003129,"Office Depot, Inc",Feb,4,2015,Materials and Supplies,SAFRA-Activity 1 Allied Health,$25.98
48,J.F. Drake State,30003129,"Office Depot, Inc",Feb,4,2015,Materials and Supplies,SAFRA-Activity 1 Allied Health,$42.99
48,J.F. Drake State,30003129,"Office Depot, Inc",Feb,4,2015,Materials and Supplies,Trio-SSS Grant,$142.19
48,J.F. Drake State,30003129,"Office Depot, Inc",Feb,4,2015,Materials and Supplies,Trio-SSS Grant,$72.66
48,J.F. Drake State,30003129,"Office Depot, Inc",Feb,4,2015,Materials and Supplies,Trio-SSS Grant,$51.18
48,J.F. Drake State,30003129,"Office Depot, Inc",Feb,4,2015,Materials and Supplies,SAFRA-Activity 1 Allied Health,$399.98
48,J.F. Drake State,30003129,"Office Depot, Inc",Feb,4,2015,Materials and Supplies,Trio-SSS Grant,$243.28
48,J.F. Drake State,30003129,"Office Depot, Inc",Feb,4,2015,Materials and Supplies,SAFRA-Activity 1 Allied Health,$40.47
48,J.F. Drake State,30003129,"Office Depot, Inc",Feb,4,2015,Materials and Supplies,Federal - Adult Ed,$36.95
48,J.F. Drake State,30003129,"Office Depot, Inc",Feb,4,2015,Materials and Supplies,Federal - Adult Ed,$253.98
48,J.F. Drake State,30003129,"Office Depot, Inc",Feb,4,2015,Materials and Supplies,Federal - Adult Ed,$329.19
48,J.F. Drake State,30003129,"Office Depot, Inc",Feb,4,2015,Materials and Supplies,SAFRA-Activity 1 Allied Health,$588.59
48,J.F. Drake State,30003129,"Office Depot, Inc",Feb,4,2015,Materials and Supplies,SAFRA-Activity 1 Allied Health,$49.80
48,J.F. Drake State,30003129,"Office Depot, Inc",Feb,4,2015,Materials and Supplies,SAFRA-Activity 1 Allied Health,$9.63
48,J.F. Drake State,30003129,"Office Depot, Inc",Feb,4,2015,Materials and Supplies,SAFRA-Activity 1 Allied Health,$5.39
48,J.F. Drake State,10003435,PEEHIP,Feb,4,2015,PEEHIP Payable,Payroll Clearing Fund,"$84,086.22"
48,J.F. Drake State,10003436,RSA-1 Deferred Compensation,Feb,4,2015,Misc Deductions Payable,Payroll Clearing Fund,$724.54
48,J.F. Drake State,10003417,Reserve Account   Acct# 16265175,Feb,4,2015,Postage,General Operating Fund,"$2,500.00"
48,J.F. Drake State,30003130,Sargent-Welch,Feb,4,2015,Materials and Supplies,APEX,$124.33
48,J.F. Drake State,10003418,Schrimsher Properties,Feb,4,2015,Rent - Facilities,General Operating Fund,"$6,715.00"
48,J.F. Drake State,10003463,Screenvision,Feb,4,2015,Advertising & Promotions,General Operating Fund,$348.00
48,J.F. Drake State,30003131,"Scrip-Safe Security Products, Inc.",Feb,4,2015,Other Contractual Services,Title III-Act 3 Student Services,$200.00
48,J.F. Drake State,10003437,Security Benefit Life Insurance Com,Feb,4,2015,Misc Deductions Payable,Payroll Clearing Fund,$425.00
48,J.F. Drake State,10003438,Teachers Retirement System,Feb,4,2015,Alabama Teachers Retirement Payable,Payroll Clearing Fund,"$71,580.56"
48,J.F. Drake State,30003132,Texas Book Company,Feb,4,2015,Materials and Supplies,SAFRA-Activity 1 Allied Health,$387.68
48,J.F. Drake State,10003419,"The Solutions Team, Inc.",Feb,4,2015,Computer Software-Non Cap,General Operating Fund,$200.00
48,J.F. Drake State,10003464,Trane Company,Feb,4,2015,Maintenance & Repairs,General Operating Fund,$253.33
48,J.F. Drake State,10003439,Truescreen Inc.,Feb,4,2015,Background Checks,Payroll Clearing Fund,$191.40
48,J.F. Drake State,10003440,U.S. Department of Education,Feb,4,2015,Misc Deductions Payable,Payroll Clearing Fund,$262.51
48,J.F. Drake State,10003441,"United Way of Madison County, Inc.",Feb,4,2015,Misc Deductions Payable,Payroll Clearing Fund,$479.10
48,J.F. Drake State,30003133,University of New Mexico,Feb,4,2015,Subcontracts,DigiTec,$362.69
48,J.F. Drake State,10003442,Variable Annuity Life Insurance,Feb,4,2015,Misc Deductions Payable,Payroll Clearing Fund,$757.50
48,J.F. Drake State,10003446,"Verified Credentials, Inc",Feb,4,2015,Background Checks,Payroll Clearing Fund,$191.40
48,J.F. Drake State,10003420,"WALLACE, RACHAEL E.",Feb,4,2015,Contract Clearing Account,General Operating Fund,$143.67
48,J.F. Drake State,10003421,WEX Bank,Feb,4,2015,Gasoline & Oil-Motor Vehicle,General Operating Fund,$3.00
48,J.F. Drake State,30002549,WEX Bank,Feb,4,2015,In State-Mileage,Title III,$25.98
48,J.F. Drake State,10003421,WEX Bank,Feb,4,2015,Gasoline & Oil-Motor Vehicle,General Operating Fund,$23.30
48,J.F. Drake State,30002549,WEX Bank,Feb,4,2015,In State-Other Travel Exp,Allied Health,$24.66
48,J.F. Drake State,10003421,WEX Bank,Feb,4,2015,Gasoline & Oil-Motor Vehicle,General Operating Fund,$62.14
48,J.F. Drake State,10003421,WEX Bank,Feb,4,2015,Gasoline & Oil-Motor Vehicle,General Operating Fund,$15.47
48,J.F. Drake State,10003421,WEX Bank,Feb,4,2015,Gasoline & Oil-Motor Vehicle,General Operating Fund,$26.35
48,J.F. Drake State,10003421,WEX Bank,Feb,4,2015,Gasoline & Oil-Motor Vehicle,General Operating Fund,$59.56
48,J.F. Drake State,10003475,AT&T,Feb,9,2015,Communications,General Operating Fund,$1.69
48,J.F. Drake State,10003475,AT&T,Feb,9,2015,Communications,General Operating Fund,$26.63
48,J.F. Drake State,30003134,Barnes & Noble Booksellers,Feb,9,2015,Materials and Supplies,SAFRA-Activity 1 Allied Health,$37.11
48,J.F. Drake State,10003476,Ellucian Company L.P.,Feb,9,2015,Construction in Progress,Renewal and Repacement Funds,$389.38
48,J.F. Drake State,10003476,Ellucian Company L.P.,Feb,9,2015,Other Contractual Services,General Operating Fund,"$11,978.00"
48,J.F. Drake State,10003466,Fastenal Company,Feb,9,2015,Materials and Supplies,General Operating Fund,"$1,127.30"
48,J.F. Drake State,10003466,Fastenal Company,Feb,9,2015,Materials and Supplies,General Operating Fund,"$1,356.00"
48,J.F. Drake State,10003466,Fastenal Company,Feb,9,2015,Materials and Supplies,General Operating Fund,"$2,866.12"
48,J.F. Drake State,10003466,Fastenal Company,Feb,9,2015,Materials and Supplies,General Operating Fund,"$2,916.96"
48,J.F. Drake State,10003467,First Impressions,Feb,9,2015,Other Contractual Services,General Operating Fund,$316.80
48,J.F. Drake State,30003135,Grey House Publishing,Feb,9,2015,Books,Title III,$500.00
48,J.F. Drake State,30003135,Grey House Publishing,Feb,9,2015,Books,Title III,$200.00
48,J.F. Drake State,30003135,Grey House Publishing,Feb,9,2015,Books,Title III,$532.00
48,J.F. Drake State,30003135,Grey House Publishing,Feb,9,2015,Books,Title III,$196.00
48,J.F. Drake State,30003135,Grey House Publishing,Feb,9,2015,Books,Title III,$376.00
48,J.F. Drake State,30003135,Grey House Publishing,Feb,9,2015,Books,Title III,$231.20
48,J.F. Drake State,30003135,Grey House Publishing,Feb,9,2015,Books,Title III,$460.00
48,J.F. Drake State,30003135,Grey House Publishing,Feb,9,2015,Books,Title III,$144.00
48,J.F. Drake State,30003135,Grey House Publishing,Feb,9,2015,Books,Title III,$156.00
48,J.F. Drake State,30003135,Grey House Publishing,Feb,9,2015,Books,Title III,$236.00
48,J.F. Drake State,30003135,Grey House Publishing,Feb,9,2015,Books,Title III,$300.00
48,J.F. Drake State,30003135,Grey House Publishing,Feb,9,2015,Books,Title III,$516.00
48,J.F. Drake State,30003135,Grey House Publishing,Feb,9,2015,Books,Title III,$436.00
48,J.F. Drake State,30003135,Grey House Publishing,Feb,9,2015,Books,Title III,$396.00
48,J.F. Drake State,30003135,Grey House Publishing,Feb,9,2015,Books,Title III,$364.00
48,J.F. Drake State,30003135,Grey House Publishing,Feb,9,2015,Books,Title III,$360.00
48,J.F. Drake State,10003477,Huntsville Utilities,Feb,9,2015,Water & Sewer,General Operating Fund,$962.72
48,J.F. Drake State,10003477,Huntsville Utilities,Feb,9,2015,Water & Sewer,General Operating Fund,$47.42
48,J.F. Drake State,30003136,Hurst Review Services,Feb,9,2015,Other Contractual Services,SAFRA-Activity 1 Allied Health,"$3,300.00"
48,J.F. Drake State,10003468,In10sity Interactive,Feb,9,2015,Other Contractual Services,General Operating Fund,$125.00
48,J.F. Drake State,30003137,J.R. Enterprises,Feb,9,2015,Materials and Supplies,Trio-SSS Grant,"$4,899.01"
48,J.F. Drake State,30003138,"Koorsen Security Technology, Inc",Feb,9,2015,Maintenance & Repairs,Title III,$635.00
48,J.F. Drake State,10003469,"Koorsen Security Technology, Inc",Feb,9,2015,Other Contractual Services,General Operating Fund,$285.00
48,J.F. Drake State,30003139,McGraw Hill School Education Holdin,Feb,9,2015,Materials and Supplies,Federal - Adult Ed,"$2,970.12"
48,J.F. Drake State,30003139,McGraw Hill School Education Holdin,Feb,9,2015,Materials and Supplies,Federal - Adult Ed,$229.08
48,J.F. Drake State,10003470,Merchants Foodservice,Feb,9,2015,Materials and Supplies,General Operating Fund,$653.41
48,J.F. Drake State,10003470,Merchants Foodservice,Feb,9,2015,Materials and Supplies,General Operating Fund,$137.17
48,J.F. Drake State,30003140,Moore Medical Corp,Feb,9,2015,Materials and Supplies,Allied Health,$9.18
48,J.F. Drake State,30003141,National Association of Student Aff,Feb,9,2015,Other Contractual Services,Trio-SSS Grant,$390.00
48,J.F. Drake State,10003471,"Office Depot, Inc",Feb,9,2015,Materials and Supplies,General Operating Fund,$78.14
48,J.F. Drake State,10003478,PEEHIP,Feb,9,2015,Health Insurance-Institution Share,General Operating Fund,$676.00
48,J.F. Drake State,30003143,PEEHIP,Feb,9,2015,Health Insurance-Institution Share,Title III-Act 6 Workforce Dev.,$676.00
48,J.F. Drake State,30003142,"Slay, Jody L.",Feb,9,2015,In State-Mileage,DigiTec,$133.54
48,J.F. Drake State,10003472,Stanley Steemer,Feb,9,2015,Maintenance & Repairs,General Operating Fund,"$5,259.54"
48,J.F. Drake State,10003473,Strickland Companies,Feb,9,2015,Non-capitalized Equipment,General Operating Fund,"$3,079.00"
48,J.F. Drake State,10003479,"Sudeall-Hawkins, Monica",Feb,9,2015,Misc Deductions Payable,Payroll Clearing Fund,$303.72
48,J.F. Drake State,10003480,Verizon Wireless,Feb,9,2015,Communications,General Operating Fund,"$1,521.59"
48,J.F. Drake State,10003474,"WHNT, LLC",Feb,9,2015,Advertising & Promotions,General Operating Fund,$460.00
48,J.F. Drake State,30003152,Courtyard Marriott Embassy Row,Feb,10,2015,Participant Costs-Subsistence,DigiTec,$511.82
48,J.F. Drake State,30003152,Courtyard Marriott Embassy Row,Feb,10,2015,Participant Costs-Subsistence,Spin Up,$511.82
48,J.F. Drake State,30003152,Courtyard Marriott Embassy Row,Feb,10,2015,Out-of-State-Subsist & Lodging,Spin Up,$511.82
48,J.F. Drake State,30003152,Courtyard Marriott Embassy Row,Feb,10,2015,Out-of-State-Subsist & Lodging,DigiTec,$511.82
48,J.F. Drake State,10003509,"McAlpine, Helen T.",Feb,10,2015,In State-Ovrnite Per diem,General Operating Fund,$225.00
48,J.F. Drake State,30003153,National Association of Student Aff,Feb,10,2015,Other Contractual Services,Trio-SSS Grant,$120.00
48,J.F. Drake State,30003154,"PODS Enterprises, Inc.",Feb,10,2015,Other Contractual Services,SAFRA-Activity 1 Allied Health,$159.00
48,J.F. Drake State,10003510,Public Affairs Research Council of ,Feb,10,2015,In State-Registration,General Operating Fund,$70.00
48,J.F. Drake State,30003159,ACCSFMA,Feb,12,2015,Memberships,Title III-Activity 1 Fiscal Managem,$300.00
48,J.F. Drake State,10003511,Alabama Deans of Student Affairs As,Feb,12,2015,Memberships,General Operating Fund,$275.00
48,J.F. Drake State,30003160,"Burden, Frank E.",Feb,12,2015,Participant Costs-Stipends,DigiTec,$284.00
48,J.F. Drake State,30003161,CDW-G Government,Feb,12,2015,Non-capitalized Equipment,Federal Performance Measu- Adult Ed,$527.86
48,J.F. Drake State,10003512,"Caylor, Mary J.",Feb,12,2015,In State-Mileage,General Operating Fund,$375.08
48,J.F. Drake State,10003512,"Caylor, Mary J.",Feb,12,2015,In State-Mileage,General Operating Fund,$179.33
48,J.F. Drake State,10003519,Department of Finance,Feb,12,2015,Communications,General Operating Fund,$45.78
48,J.F. Drake State,10003513,"Dynamic Security, Inc.",Feb,12,2015,Other Contractual Services,General Operating Fund,"$4,665.60"
48,J.F. Drake State,10003520,Ellucian Company L.P.,Feb,12,2015,Other Contractual Services,General Operating Fund,"$11,978.00"
48,J.F. Drake State,10003514,HESI - ELSEVIER,Feb,12,2015,Purchases for Re-Sale,Auxiliary - Nursing Fees,$280.00
48,J.F. Drake State,30003162,"Johnson, Nina M.",Feb,12,2015,Participant Costs-Stipends,DigiTec,$284.00
48,J.F. Drake State,10003515,"Lanier, Ford, Shaver & Payne PC",Feb,12,2015,Legal Services,General Operating Fund,"$1,136.00"
48,J.F. Drake State,10003515,"Lanier, Ford, Shaver & Payne PC",Feb,12,2015,Legal Services,General Operating Fund,$433.00
48,J.F. Drake State,10003521,"Nance, Demetria L.",Feb,12,2015,Contract Clearing Account,General Operating Fund,$30.00
48,J.F. Drake State,30003163,National Association of Student Aff,Feb,12,2015,In State-Registration,Trio-SSS Grant,$850.00
48,J.F. Drake State,30003164,"Rentz, Joyce L.",Feb,12,2015,Out-of-State-Other Travel Expenses,DigiTec,$500.00
48,J.F. Drake State,10003516,Stumps,Feb,12,2015,Materials and Supplies,General Operating Fund,$194.82
48,J.F. Drake State,10003517,WAAY-TV,Feb,12,2015,Advertising & Promotions,General Operating Fund,$300.00
48,J.F. Drake State,10003518,WZDX FOX 54,Feb,12,2015,Advertising & Promotions,General Operating Fund,$430.00
48,J.F. Drake State,30003165,"Will, Robert A.",Feb,12,2015,Participant Costs-Travel,Spin Up,$284.00
48,J.F. Drake State,30003166,"Cunningham, Thomas W.",Feb,13,2015,Participant Costs-Travel,Spin Up,$284.00
48,J.F. Drake State,10003522,Ellucian Company L.P.,Feb,17,2015,Other Contractual Services,General Operating Fund,"$11,978.00"
48,J.F. Drake State,10003523,Loomis,Feb,17,2015,Other Contractual Services,General Operating Fund,$141.24
48,J.F. Drake State,10003524,"The Solutions Team, Inc.",Feb,17,2015,Computer Software-Non Cap,General Operating Fund,$200.00
48,J.F. Drake State,10003525,ACT,Feb,19,2015,Materials and Supplies,General Operating Fund,$123.50
48,J.F. Drake State,30003167,Amazon.com,Feb,19,2015,Audio Visual,Title III-Act 5 Library,$22.57
48,J.F. Drake State,30003167,Amazon.com,Feb,19,2015,Audio Visual,Title III-Act 5 Library,$25.78
48,J.F. Drake State,30003167,Amazon.com,Feb,19,2015,Audio Visual,Title III-Act 5 Library,$86.89
48,J.F. Drake State,30003167,Amazon.com,Feb,19,2015,Audio Visual,Title III-Act 5 Library,$11.97
48,J.F. Drake State,30003167,Amazon.com,Feb,19,2015,Audio Visual,Title III-Act 5 Library,$19.98
48,J.F. Drake State,30003167,Amazon.com,Feb,19,2015,Audio Visual,Title III-Act 5 Library,$26.46
48,J.F. Drake State,30003167,Amazon.com,Feb,19,2015,Audio Visual,Title III-Act 5 Library,$264.90
48,J.F. Drake State,30003167,Amazon.com,Feb,19,2015,Audio Visual,Title III-Act 5 Library,$39.07
48,J.F. Drake State,30003167,Amazon.com,Feb,19,2015,Audio Visual,Title III-Act 5 Library,$119.18
48,J.F. Drake State,30003167,Amazon.com,Feb,19,2015,Audio Visual,Title III-Act 5 Library,$10.63
48,J.F. Drake State,30003167,Amazon.com,Feb,19,2015,Audio Visual,Title III-Act 5 Library,$44.46
48,J.F. Drake State,30003168,American Association for the Advanc,Feb,19,2015,Participant Costs-Other,DigiTec,$400.00
48,J.F. Drake State,30003168,American Association for the Advanc,Feb,19,2015,Participant Costs-Travel,Spin Up,$400.00
48,J.F. Drake State,30003169,American Association of Community C,Feb,19,2015,Out-of-State-Registration,Title III-Act 2 Improving Instruct,"$2,595.00"
48,J.F. Drake State,10003526,Bubba's Catering,Feb,19,2015,Materials and Supplies,General Operating Fund,$530.00
48,J.F. Drake State,10003527,"Castle Branch, Inc.",Feb,19,2015,Purchases for Re-Sale,Auxiliary - Nursing Fees,$495.25
48,J.F. Drake State,10003528,Chamber of Commerce of Huntsville/M,Feb,19,2015,Advertising & Promotions,General Operating Fund,$400.00
48,J.F. Drake State,10003529,"Dynamic Security, Inc.",Feb,19,2015,Other Contractual Services,General Operating Fund,"$4,665.60"
48,J.F. Drake State,30003170,EBSCO Subscriptions Services,Feb,19,2015,Subscriptions,Title III-Act 5 Library,"$31,442.83"
48,J.F. Drake State,10003530,ELSEVIER,Feb,19,2015,Purchases for Re-Sale,General Operating Fund,"$1,172.98"
48,J.F. Drake State,30003171,"Egson, Ronald E.",Feb,19,2015,Out-of-State-Subsist & Lodging,Title III-Act 2 Improving Instruct,$126.50
48,J.F. Drake State,30003171,"Egson, Ronald E.",Feb,19,2015,Out-of-State-Commercl Trans,Title III-Act 2 Improving Instruct,$37.00
48,J.F. Drake State,10003531,Fastenal Company,Feb,19,2015,Materials and Supplies,General Operating Fund,$440.38
48,J.F. Drake State,30003172,Fastenal Company,Feb,19,2015,Materials and Supplies,CARCAM-AMP IT UP FY 15,$12.34
48,J.F. Drake State,30003172,Fastenal Company,Feb,19,2015,Freight,CARCAM-AMP IT UP FY 15,$500.00
48,J.F. Drake State,30003172,Fastenal Company,Feb,19,2015,Non-capitalized Equipment,CARCAM-AMP IT UP FY 15,$530.00
48,J.F. Drake State,30003172,Fastenal Company,Feb,19,2015,Materials and Supplies,CARCAM-AMP IT UP FY 15,$324.60
48,J.F. Drake State,30003172,Fastenal Company,Feb,19,2015,Materials and Supplies,CARCAM-AMP IT UP FY 15,$8.89
48,J.F. Drake State,30003172,Fastenal Company,Feb,19,2015,Materials and Supplies,CARCAM-AMP IT UP FY 15,$61.08
48,J.F. Drake State,30003172,Fastenal Company,Feb,19,2015,Materials and Supplies,CARCAM-AMP IT UP FY 15,$7.49
48,J.F. Drake State,30003172,Fastenal Company,Feb,19,2015,Materials and Supplies,CARCAM-AMP IT UP FY 15,$144.37
48,J.F. Drake State,30003172,Fastenal Company,Feb,19,2015,Non-capitalized Equipment,CARCAM-AMP IT UP FY 15,"$4,060.00"
48,J.F. Drake State,10003531,Fastenal Company,Feb,19,2015,Materials and Supplies,General Operating Fund,$215.95
48,J.F. Drake State,30003172,Fastenal Company,Feb,19,2015,Materials and Supplies,CARCAM-AMP IT UP FY 15,$1.58
48,J.F. Drake State,30003172,Fastenal Company,Feb,19,2015,Materials and Supplies,CARCAM-AMP IT UP FY 15,$7.29
48,J.F. Drake State,30003172,Fastenal Company,Feb,19,2015,Materials and Supplies,CARCAM-AMP IT UP FY 15,$11.92
48,J.F. Drake State,10003531,Fastenal Company,Feb,19,2015,Materials and Supplies,General Operating Fund,"$1,423.89"
48,J.F. Drake State,10003531,Fastenal Company,Feb,19,2015,Materials and Supplies,General Operating Fund,$615.00
48,J.F. Drake State,30003172,Fastenal Company,Feb,19,2015,Materials and Supplies,CARCAM-AMP IT UP FY 15,$122.80
48,J.F. Drake State,30003172,Fastenal Company,Feb,19,2015,Materials and Supplies,CARCAM-AMP IT UP FY 15,$2.43
48,J.F. Drake State,30003172,Fastenal Company,Feb,19,2015,"Furniture & Equip $25,000 or Less",CARCAM-AMP IT UP FY 15,"$6,995.00"
48,J.F. Drake State,30003172,Fastenal Company,Feb,19,2015,Materials and Supplies,CARCAM-AMP IT UP FY 15,$10.02
48,J.F. Drake State,10003531,Fastenal Company,Feb,19,2015,Materials and Supplies,General Operating Fund,$216.53
48,J.F. Drake State,30003173,Hyatt Regency San Antonio,Feb,19,2015,Out-of-State-Subsist & Lodging,Title III-Act 2 Improving Instruct,"$1,253.90"
48,J.F. Drake State,30003173,Hyatt Regency San Antonio,Feb,19,2015,Out-of-State-Subsist & Lodging,Title III-Act 2 Improving Instruct,$718.01
48,J.F. Drake State,10003532,In10sity Interactive,Feb,19,2015,Advertising & Promotions,General Operating Fund,$125.00
48,J.F. Drake State,30003174,Klean Sweep,Feb,19,2015,Maintenance & Repairs,Title III,$600.00
48,J.F. Drake State,10003533,Labor Ready,Feb,19,2015,Other Contractual Services,General Operating Fund,$321.12
48,J.F. Drake State,10003534,"McAlpine, Helen T.",Feb,19,2015,Materials and Supplies,General Operating Fund,$43.98
48,J.F. Drake State,30003175,Moore Medical Corp,Feb,19,2015,Materials and Supplies,SAFRA-Activity 1 Allied Health,$63.20
48,J.F. Drake State,30003175,Moore Medical Corp,Feb,19,2015,Materials and Supplies,Allied Health,$188.00
48,J.F. Drake State,10003535,NAAACC,Feb,19,2015,Memberships,General Operating Fund,$450.00
48,J.F. Drake State,30003176,National Association of HBCU Title ,Feb,19,2015,Out-of-State-Registration,Title III-Act 2 Improving Instruct,$800.00
48,J.F. Drake State,30003177,"Nola Van Peursem Architects, PC",Feb,19,2015,Other Contractual Services,Title III,"$14,887.50"
48,J.F. Drake State,30003178,Nosotros Education Center,Feb,19,2015,Other Contractual Services,Trio-SSS Grant,"$2,000.00"
48,J.F. Drake State,10003536,"Office Depot, Inc",Feb,19,2015,Materials and Supplies,General Operating Fund,$7.99
48,J.F. Drake State,10003536,"Office Depot, Inc",Feb,19,2015,Materials and Supplies,General Operating Fund,$136.04
48,J.F. Drake State,10003536,"Office Depot, Inc",Feb,19,2015,Materials and Supplies,General Operating Fund,$39.85
48,J.F. Drake State,10003536,"Office Depot, Inc",Feb,19,2015,Materials and Supplies,General Operating Fund,$15.44
48,J.F. Drake State,30003179,"Office Depot, Inc",Feb,19,2015,Materials and Supplies,Title III-Act A Program Admin,$54.82
48,J.F. Drake State,30003179,"Office Depot, Inc",Feb,19,2015,Materials and Supplies,Title III-Act A Program Admin,$16.98
48,J.F. Drake State,30003179,"Office Depot, Inc",Feb,19,2015,Materials and Supplies,Title III-Act A Program Admin,$3.29
48,J.F. Drake State,10003536,"Office Depot, Inc",Feb,19,2015,Materials and Supplies,General Operating Fund,$19.96
48,J.F. Drake State,10003536,"Office Depot, Inc",Feb,19,2015,Materials and Supplies,General Operating Fund,$89.97
48,J.F. Drake State,10003536,"Office Depot, Inc",Feb,19,2015,Materials and Supplies,General Operating Fund,$10.13
48,J.F. Drake State,30003179,"Office Depot, Inc",Feb,19,2015,Materials and Supplies,Title III-Act A Program Admin,$6.47
48,J.F. Drake State,10003536,"Office Depot, Inc",Feb,19,2015,Materials and Supplies,General Operating Fund,$489.72
48,J.F. Drake State,30003179,"Office Depot, Inc",Feb,19,2015,Materials and Supplies,Title III-Act 2 Improving Instruct,$265.08
48,J.F. Drake State,30003179,"Office Depot, Inc",Feb,19,2015,Materials and Supplies,Title III-Act A Program Admin,$373.42
48,J.F. Drake State,30003179,"Office Depot, Inc",Feb,19,2015,Materials and Supplies,Title III-Act A Program Admin,$23.99
48,J.F. Drake State,10003536,"Office Depot, Inc",Feb,19,2015,Materials and Supplies,General Operating Fund,$21.60
48,J.F. Drake State,30003179,"Office Depot, Inc",Feb,19,2015,Materials and Supplies,Title III-Act A Program Admin,$5.88
48,J.F. Drake State,10003536,"Office Depot, Inc",Feb,19,2015,Materials and Supplies,General Operating Fund,$127.45
48,J.F. Drake State,30003180,"Scrip-Safe Security Products, Inc.",Feb,19,2015,Other Contractual Services,Title III-Act 3 Student Services,$537.00
48,J.F. Drake State,30003185,National Association for Developmen,Feb,20,2015,Out-of-State-Registration,Title III-Act 2 Improving Instruct,$405.00
48,J.F. Drake State,30003186,Westin Poinsett Hotel,Feb,20,2015,Out-of-State-Subsist & Lodging,Title III-Act 2 Improving Instruct,"$1,514.24"
48,J.F. Drake State,10003546,AT&T,Mar,2,2015,Communications,General Operating Fund,$53.09
48,J.F. Drake State,10003556,Alabama Child Support,Mar,2,2015,Misc Deductions Payable,Payroll Clearing Fund,"$2,584.24"
48,J.F. Drake State,10003538,Alabama PBL,Mar,2,2015,In State-Registration,Auxiliary - Copier/Vend Commissions,$375.00
48,J.F. Drake State,10003538,Alabama PBL,Mar,2,2015,In State-Registration,Auxiliary - Copier Commissions,$375.00
48,J.F. Drake State,10003557,Allstate Insurance,Mar,2,2015,Misc Deductions Payable,Payroll Clearing Fund,$54.80
48,J.F. Drake State,10003558,American Family Life,Mar,2,2015,Misc Deductions Payable,Payroll Clearing Fund,$125.68
48,J.F. Drake State,30003187,"Banks, Debra I.",Mar,2,2015,In State-Mileage,Title III-Act 2 Improving Instruct,$411.31
48,J.F. Drake State,10003547,Berney Office Solutions,Mar,2,2015,Other Contractual Services,General Operating Fund,$815.46
48,J.F. Drake State,10003547,Berney Office Solutions,Mar,2,2015,Other Contractual Services,General Operating Fund,"$2,115.00"
48,J.F. Drake State,10003539,"Burmax Company, INC",Mar,2,2015,Materials and Supplies,General Operating Fund,"$1,358.60"
48,J.F. Drake State,10003559,Colonial Life Insurance,Mar,2,2015,Misc Deductions Payable,Payroll Clearing Fund,$39.65
48,J.F. Drake State,10003560,Drake State Foundation,Mar,2,2015,Misc Deductions Payable,Payroll Clearing Fund,$420.42
48,J.F. Drake State,10003540,"Dynamic Security, Inc.",Mar,2,2015,Other Contractual Services,General Operating Fund,"$4,665.60"
48,J.F. Drake State,10003548,Earthlink,Mar,2,2015,Communications,General Operating Fund,"$11,536.17"
48,J.F. Drake State,10003561,Educators Benefit,Mar,2,2015,Misc Deductions Payable,Payroll Clearing Fund,$549.92
48,J.F. Drake State,10003549,Ellucian Company L.P.,Mar,2,2015,Other Contractual Services,General Operating Fund,"$11,978.00"
48,J.F. Drake State,10003541,Faronics Technologies USA,Mar,2,2015,Computer Software-Non Cap,General Operating Fund,"$1,615.85"
48,J.F. Drake State,10003550,FedEx,Mar,2,2015,Freight,General Operating Fund,$71.26
48,J.F. Drake State,30003188,Graybar,Mar,2,2015,Materials and Supplies,Title III-Act 4 Improve Facilities,$980.50
48,J.F. Drake State,10003551,Huntsville Utilities,Mar,2,2015,Electricity,General Operating Fund,"$21,186.75"
48,J.F. Drake State,10003551,Huntsville Utilities,Mar,2,2015,Water & Sewer,General Operating Fund,$45.41
48,J.F. Drake State,10003551,Huntsville Utilities,Mar,2,2015,Electricity,General Operating Fund,$196.08
48,J.F. Drake State,10003551,Huntsville Utilities,Mar,2,2015,Water & Sewer,General Operating Fund,"$3,262.14"
48,J.F. Drake State,10003551,Huntsville Utilities,Mar,2,2015,Gas & Heating Fuel,General Operating Fund,"$4,821.51"
48,J.F. Drake State,10003551,Huntsville Utilities,Mar,2,2015,Electricity,General Operating Fund,$864.98
48,J.F. Drake State,30003189,"KI, Pallas Textiles",Mar,2,2015,Non-capitalized Equipment,Title III,"$19,528.80"
48,J.F. Drake State,10003542,"KI, Pallas Textiles",Mar,2,2015,Non-capitalized Equipment,General Operating Fund,"$7,248.20"
48,J.F. Drake State,10003562,Metropolitan Life Insurance Company,Mar,2,2015,Misc Deductions Payable,Payroll Clearing Fund,$100.00
48,J.F. Drake State,10003563,"Michael Ford, Chapter 13 Trustee",Mar,2,2015,Misc Deductions Payable,Payroll Clearing Fund,"$2,423.82"
48,J.F. Drake State,10003552,Mr. Rootor,Mar,2,2015,Maintenance & Repairs,General Operating Fund,$112.50
48,J.F. Drake State,10003564,NAECU,Mar,2,2015,Misc Deductions Payable,Payroll Clearing Fund,"$3,036.00"
48,J.F. Drake State,10003543,National Document Solutions,Mar,2,2015,Materials and Supplies,General Operating Fund,$390.00
48,J.F. Drake State,30003190,New Readers Press,Mar,2,2015,Materials and Supplies,Federal - Adult Ed,$908.70
48,J.F. Drake State,10003565,New York Life Insurance,Mar,2,2015,Misc Deductions Payable,Payroll Clearing Fund,$215.25
48,J.F. Drake State,10003566,PEEHIP,Mar,2,2015,PEEHIP Payable,Payroll Clearing Fund,"$84,610.17"
48,J.F. Drake State,10003544,"Pope, Gwendolyn M.",Mar,2,2015,In State-Other Travel Exp,Auxiliary - Copier Commissions,$150.00
48,J.F. Drake State,10003544,"Pope, Gwendolyn M.",Mar,2,2015,Stipend,Auxiliary - Copier/Vend Commissions,$120.00
48,J.F. Drake State,10003544,"Pope, Gwendolyn M.",Mar,2,2015,Stipend,Auxiliary - Copier Commissions,$120.00
48,J.F. Drake State,10003544,"Pope, Gwendolyn M.",Mar,2,2015,In State-Other Travel Exp,Auxiliary - Copier/Vend Commissions,$150.00
48,J.F. Drake State,10003567,RSA-1 Deferred Compensation,Mar,2,2015,Misc Deductions Payable,Payroll Clearing Fund,$724.54
48,J.F. Drake State,10003545,Safety Kleen,Mar,2,2015,Other Contractual Services,General Operating Fund,$715.27
48,J.F. Drake State,10003553,Schrimsher Properties,Mar,2,2015,Rent - Facilities,General Operating Fund,"$6,715.00"
48,J.F. Drake State,10003568,Security Benefit Life Insurance Com,Mar,2,2015,Misc Deductions Payable,Payroll Clearing Fund,$525.00
48,J.F. Drake State,30003191,"Stericycle, Inc.",Mar,2,2015,Other Contractual Services,SAFRA-Activity 1 Allied Health,$182.58
48,J.F. Drake State,10003569,Teachers Retirement System,Mar,2,2015,Alabama Teachers Retirement Payable,Payroll Clearing Fund,"$75,976.59"
48,J.F. Drake State,10003570,"United Way of Madison County, Inc.",Mar,2,2015,Misc Deductions Payable,Payroll Clearing Fund,$454.10
48,J.F. Drake State,10003571,Variable Annuity Life Insurance,Mar,2,2015,Misc Deductions Payable,Payroll Clearing Fund,$757.50
48,J.F. Drake State,10003572,"Verified Credentials, Inc",Mar,2,2015,Background Checks,Payroll Clearing Fund,$191.40
48,J.F. Drake State,10003555,WOW! Business,Mar,2,2015,Communications,General Operating Fund,$193.61
48,J.F. Drake State,10003554,Waste Management,Mar,2,2015,Other Contractual Services,General Operating Fund,$812.09
48,J.F. Drake State,10003554,Waste Management,Mar,2,2015,Other Contractual Services,General Operating Fund,$809.18
48,J.F. Drake State,E1101031,Alabama Department of Revenue,Mar,3,2015,Sales Tax Payable,Payroll Clearing Fund,$1.72
48,J.F. Drake State,E1101031,Alabama Department of Revenue,Mar,3,2015,Sales Tax Payable,Payroll Clearing Fund,$15.49
48,J.F. Drake State,E1101031,Alabama Department of Revenue,Mar,3,2015,Sales Tax Payable,Payroll Clearing Fund,$13.77
48,J.F. Drake State,E1101032,Department of Revenue,Mar,3,2015,State Income Tax Payable,Payroll Clearing Fund,"$17,160.96"
48,J.F. Drake State,10003573,Educators Benefit,Mar,3,2015,Misc Deductions Payable,Payroll Clearing Fund,$489.11
48,J.F. Drake State,E1101033,Internal Revenue Service,Mar,3,2015,FICA Payable,Payroll Clearing Fund,"$73,554.12"
48,J.F. Drake State,E1101033,Internal Revenue Service,Mar,3,2015,Federal Income Taxes Payable,Payroll Clearing Fund,"$47,017.21"
48,J.F. Drake State,10003574,Chevron and Texaco,Mar,4,2015,Gasoline & Oil-Motor Vehicle,General Operating Fund,$14.61
48,J.F. Drake State,10003574,Chevron and Texaco,Mar,4,2015,Gasoline & Oil-Motor Vehicle,General Operating Fund,$13.69
48,J.F. Drake State,10003574,Chevron and Texaco,Mar,4,2015,Gasoline & Oil-Motor Vehicle,General Operating Fund,$0.73
48,J.F. Drake State,10003574,Chevron and Texaco,Mar,4,2015,Gasoline & Oil-Motor Vehicle,General Operating Fund,$17.48
48,J.F. Drake State,10003574,Chevron and Texaco,Mar,4,2015,Gasoline & Oil-Motor Vehicle,General Operating Fund,$27.38
48,J.F. Drake State,10003575,Cooks Pest Control,Mar,4,2015,Other Contractual Services,General Operating Fund,$70.00
48,J.F. Drake State,10003575,Cooks Pest Control,Mar,4,2015,Other Contractual Services,General Operating Fund,$249.00
48,J.F. Drake State,10003576,Huntsville Utilities,Mar,4,2015,Water & Sewer,General Operating Fund,$9.11
48,J.F. Drake State,10003577,Progressive Specialty Insurance Com,Mar,4,2015,Insurance & Bonding,General Operating Fund,"$1,347.00"
48,J.F. Drake State,30003205,WEX Bank,Mar,4,2015,In State-Other Travel Exp,Title III,$31.99
48,J.F. Drake State,10003579,WEX Bank,Mar,4,2015,Gasoline & Oil-Motor Vehicle,General Operating Fund,$24.34
48,J.F. Drake State,30003204,WEX Bank,Mar,4,2015,In State-Other Travel Exp,Title III,$30.97
48,J.F. Drake State,30003204,WEX Bank,Mar,4,2015,In State-Other Travel Exp,Title III,$34.92
48,J.F. Drake State,30003205,WEX Bank,Mar,4,2015,In State-Other Travel Exp,Title III,$31.75
48,J.F. Drake State,30003205,WEX Bank,Mar,4,2015,In State-Other Travel Exp,Title III,$34.92
48,J.F. Drake State,10003579,WEX Bank,Mar,4,2015,In State-Mileage,State - Adult Ed,$18.32
48,J.F. Drake State,30003205,WEX Bank,Mar,4,2015,In State-Other Travel Exp,Allied Health,$25.86
48,J.F. Drake State,10003578,WEX Bank,Mar,4,2015,Gasoline & Oil-Motor Vehicle,General Operating Fund,$24.34
48,J.F. Drake State,10003578,WEX Bank,Mar,4,2015,Gasoline & Oil-Motor Vehicle,General Operating Fund,$59.05
48,J.F. Drake State,10003579,WEX Bank,Mar,4,2015,Gasoline & Oil-Motor Vehicle,General Operating Fund,$13.28
48,J.F. Drake State,10003579,WEX Bank,Mar,4,2015,Gasoline & Oil-Motor Vehicle,General Operating Fund,$59.05
48,J.F. Drake State,30003204,WEX Bank,Mar,4,2015,In State-Other Travel Exp,Title III,$31.99
48,J.F. Drake State,30003204,WEX Bank,Mar,4,2015,In State-Mileage,Title III,$18.00
48,J.F. Drake State,30003205,WEX Bank,Mar,4,2015,In State-Mileage,Title III,$18.00
48,J.F. Drake State,30003205,WEX Bank,Mar,4,2015,In State-Mileage,Title III,$26.58
48,J.F. Drake State,10003578,WEX Bank,Mar,4,2015,In State-Mileage,State - Adult Ed,$18.32
48,J.F. Drake State,10003578,WEX Bank,Mar,4,2015,In State-Mileage,State - Adult Ed,$12.53
48,J.F. Drake State,10003579,WEX Bank,Mar,4,2015,Gasoline & Oil-Motor Vehicle,General Operating Fund,$56.68
48,J.F. Drake State,30003205,WEX Bank,Mar,4,2015,Out-of-State-Mileage,Title III,$29.65
48,J.F. Drake State,30003204,WEX Bank,Mar,4,2015,Out-of-State-Mileage,Title III,$29.65
48,J.F. Drake State,10003578,WEX Bank,Mar,4,2015,Gasoline & Oil-Motor Vehicle,General Operating Fund,$56.68
48,J.F. Drake State,10003578,WEX Bank,Mar,4,2015,Gasoline & Oil-Motor Vehicle,General Operating Fund,$13.28
48,J.F. Drake State,30003204,WEX Bank,Mar,4,2015,In State-Other Travel Exp,Allied Health,$25.86
48,J.F. Drake State,30003204,WEX Bank,Mar,4,2015,In State-Mileage,Title III,$26.58
48,J.F. Drake State,30003205,WEX Bank,Mar,4,2015,In State-Other Travel Exp,Title III,$30.97
48,J.F. Drake State,30003205,WEX Bank,Mar,4,2015,Out-of-State-Mileage,Title III,$23.06
48,J.F. Drake State,30003204,WEX Bank,Mar,4,2015,Out-of-State-Mileage,Title III,$23.06
48,J.F. Drake State,30003204,WEX Bank,Mar,4,2015,In State-Other Travel Exp,Title III,$31.75
48,J.F. Drake State,10003579,WEX Bank,Mar,4,2015,In State-Mileage,State - Adult Ed,$12.53
48,J.F. Drake State,30003206,ACCA,Mar,9,2015,In State-Registration,Title III-Act 2 Improving Instruct,$150.00
48,J.F. Drake State,30003207,ACCSFMA,Mar,9,2015,In State-Ovrnite Per diem,Title III-Activity 1 Fiscal Managem,$300.00
48,J.F. Drake State,10003580,Alabama Lawnmaster Inc,Mar,9,2015,Other Contractual Services,General Operating Fund,"$3,045.00"
48,J.F. Drake State,10003581,"Burmax Company, INC",Mar,9,2015,Materials and Supplies,General Operating Fund,$119.80
48,J.F. Drake State,10003582,"Capra Optical, Inc",Mar,9,2015,Materials and Supplies,General Operating Fund,$753.34
48,J.F. Drake State,30003208,Carolina Biological Supply Company,Mar,9,2015,Materials and Supplies,GA-AL LSAMP NSF HRD 1305041,$285.07
48,J.F. Drake State,10003583,Chamber of Commerce of Huntsville/M,Mar,9,2015,In State-Registration,General Operating Fund,$325.00
48,J.F. Drake State,10003584,"Dynamic Security, Inc.",Mar,9,2015,Other Contractual Services,General Operating Fund,"$4,519.80"
48,J.F. Drake State,10003584,"Dynamic Security, Inc.",Mar,9,2015,Other Contractual Services,General Operating Fund,"$4,665.60"
48,J.F. Drake State,30003209,Graybar,Mar,9,2015,Materials and Supplies,Title III,"$1,462.70"
48,J.F. Drake State,30003209,Graybar,Mar,9,2015,Materials and Supplies,Title III,$625.38
48,J.F. Drake State,10003585,"Henry, Karl W.",Mar,9,2015,Materials and Supplies,General Operating Fund,$304.51
48,J.F. Drake State,10003586,Holiday Inn Express,Mar,9,2015,In State-Other Travel Exp,Auxiliary - Copier Commissions,$125.43
48,J.F. Drake State,10003586,Holiday Inn Express,Mar,9,2015,In State-Other Travel Exp,Auxiliary - Copier/Vend Commissions,$125.43
48,J.F. Drake State,10003587,Holiday Inn Express Cullman,Mar,9,2015,In State-Other Travel Exp,Auxiliary - Copier Commissions,$83.00
48,J.F. Drake State,10003587,Holiday Inn Express Cullman,Mar,9,2015,In State-Other Travel Exp,Auxiliary - Copier/Vend Commissions,$83.00
48,J.F. Drake State,10003588,"Ivey, Neoka J.",Mar,9,2015,Stipend,Auxiliary - Copier/Vend Commissions,$987.50
48,J.F. Drake State,10003588,"Ivey, Neoka J.",Mar,9,2015,Stipend,Auxiliary - Copier Commissions,$987.50
48,J.F. Drake State,10003589,J.R. Enterprises,Mar,9,2015,Materials and Supplies,General Operating Fund,"$5,047.50"
48,J.F. Drake State,30003210,"Koorsen Security Technology, Inc",Mar,9,2015,Other Contractual Services,Title III,$675.00
48,J.F. Drake State,10003590,"Lanier, Ford, Shaver & Payne PC",Mar,9,2015,Legal Services,General Operating Fund,$350.00
48,J.F. Drake State,10003590,"Lanier, Ford, Shaver & Payne PC",Mar,9,2015,Legal Services,General Operating Fund,"$4,335.00"
48,J.F. Drake State,10003590,"Lanier, Ford, Shaver & Payne PC",Mar,9,2015,Legal Services,General Operating Fund,$440.00
48,J.F. Drake State,30003211,"Office Depot, Inc",Mar,9,2015,Materials and Supplies,Title III-Activity 1 Fiscal Managem,$326.49
48,J.F. Drake State,30003211,"Office Depot, Inc",Mar,9,2015,Materials and Supplies,Ready To Work Grant,$4.76
48,J.F. Drake State,10003591,"Office Depot, Inc",Mar,9,2015,Materials and Supplies,Auxiliary - Copier Commissions,$354.43
48,J.F. Drake State,30003211,"Office Depot, Inc",Mar,9,2015,Materials and Supplies,Title III-Activity 1 Fiscal Managem,$341.00
48,J.F. Drake State,30003211,"Office Depot, Inc",Mar,9,2015,Materials and Supplies,Ready To Work Grant,$51.95
48,J.F. Drake State,10003591,"Office Depot, Inc",Mar,9,2015,Materials and Supplies,Auxiliary - Copier/Vend Commissions,$354.43
48,J.F. Drake State,30003211,"Office Depot, Inc",Mar,9,2015,Materials and Supplies,Ready To Work Grant,$48.15
48,J.F. Drake State,30003211,"Office Depot, Inc",Mar,9,2015,Materials and Supplies,Ready To Work Grant,$36.44
48,J.F. Drake State,30003211,"Office Depot, Inc",Mar,9,2015,Materials and Supplies,Ready To Work Grant,$234.40
48,J.F. Drake State,30003212,"PODS Enterprises, Inc.",Mar,9,2015,Other Contractual Services,SAFRA-Activity 1 Allied Health,$159.00
48,J.F. Drake State,10003592,Sam's Club/Walmart,Mar,9,2015,Memberships,General Operating Fund,$45.00
48,J.F. Drake State,10003593,Skills USA,Mar,9,2015,Deposit Liabilities,Skills USA Dues,$42.00
48,J.F. Drake State,10003593,Skills USA,Mar,9,2015,Deposit Liabilities,Skills USA Dues,$141.00
48,J.F. Drake State,10003593,Skills USA,Mar,9,2015,Deposit Liabilities,Skills USA Dues,$15.00
48,J.F. Drake State,10003593,Skills USA,Mar,9,2015,Deposit Liabilities,Skills USA Dues,$321.00
48,J.F. Drake State,10003593,Skills USA,Mar,9,2015,Memberships,Auxiliary - Copier Commissions,$126.00
48,J.F. Drake State,10003593,Skills USA,Mar,9,2015,Memberships,Auxiliary - Copier/Vend Commissions,$126.00
48,J.F. Drake State,10003593,Skills USA,Mar,9,2015,Deposit Liabilities,Skills USA Dues,$120.00
48,J.F. Drake State,30003213,"Slay, Jody L.",Mar,9,2015,In State-Mileage,APEX,$143.18
48,J.F. Drake State,30003214,Texas Book Company,Mar,9,2015,Books,Title III,"$4,010.72"
48,J.F. Drake State,10003594,"Wholesale Trophies, Inc",Mar,9,2015,Graduation Expense,General Operating Fund,$60.00
48,J.F. Drake State,10003621,AT&T,Mar,12,2015,Communications,General Operating Fund,$1.69
48,J.F. Drake State,10003621,AT&T,Mar,12,2015,Communications,General Operating Fund,$101.99
48,J.F. Drake State,10003621,AT&T,Mar,12,2015,Communications,General Operating Fund,$98.17
48,J.F. Drake State,10003621,AT&T,Mar,12,2015,Communications,General Operating Fund,$260.93
48,J.F. Drake State,10003622,Berney Office Solutions,Mar,12,2015,Other Contractual Services,General Operating Fund,$45.66
48,J.F. Drake State,10003623,Cobbs Allen,Mar,12,2015,Insurance & Bonding,General Operating Fund,"$5,550.24"
48,J.F. Drake State,10003624,Comcast Cable,Mar,12,2015,Communications,General Operating Fund,$180.02
48,J.F. Drake State,10003625,Department of Finance,Mar,12,2015,Communications,General Operating Fund,$45.78
48,J.F. Drake State,10003626,FedEx,Mar,12,2015,Freight,General Operating Fund,$29.79
48,J.F. Drake State,10003627,Loomis,Mar,12,2015,Other Contractual Services,General Operating Fund,$138.16
48,J.F. Drake State,10003628,PEEHIP,Mar,12,2015,Health Insurance-Institution Share,General Operating Fund,$780.00
48,J.F. Drake State,10003628,PEEHIP,Mar,12,2015,Health Insurance-Institution Share,General Operating Fund,$676.00
48,J.F. Drake State,10003629,Verizon Wireless,Mar,12,2015,Communications,General Operating Fund,"$1,591.59"
48,J.F. Drake State,30003215,American Association for the Advanc,Mar,17,2015,Out-of-State-Registration,Spin Up,$400.00
48,J.F. Drake State,30003215,American Association for the Advanc,Mar,17,2015,Out-of-State-Registration,DigiTec,$400.00
48,J.F. Drake State,10003630,Aramark Corporation,Mar,17,2015,Other Contractual Services,General Operating Fund,$637.20
48,J.F. Drake State,30003216,"Banks, Terrell G.",Mar,17,2015,Participant Costs-Stipends,GA-AL LSAMP NSF HRD 1305041,$500.00
48,J.F. Drake State,10003631,"Burmax Company, INC",Mar,17,2015,Materials and Supplies,General Operating Fund,"$2,265.30"
48,J.F. Drake State,10003632,Carolina Biological Supply Company,Mar,17,2015,Materials and Supplies,General Operating Fund,"$2,008.80"
48,J.F. Drake State,10003632,Carolina Biological Supply Company,Mar,17,2015,Materials and Supplies,General Operating Fund,$682.90
48,J.F. Drake State,10003633,"Dynamic Security, Inc.",Mar,17,2015,Other Contractual Services,General Operating Fund,"$4,354.32"
48,J.F. Drake State,30003217,"Glasgow, Gezelle B.",Mar,17,2015,Participant Costs-Stipends,GA-AL LSAMP NSF HRD 1305041,$500.00
48,J.F. Drake State,10003634,Holiday Inn Express,Mar,17,2015,In State-Other Travel Exp,Auxiliary - Copier Commissions,$123.17
48,J.F. Drake State,10003634,Holiday Inn Express,Mar,17,2015,In State-Other Travel Exp,Auxiliary - Copier/Vend Commissions,$123.17
48,J.F. Drake State,10003635,Holiday Inn Express Cullman,Mar,17,2015,In State-Other Travel Exp,Auxiliary - Copier/Vend Commissions,$93.17
48,J.F. Drake State,10003635,Holiday Inn Express Cullman,Mar,17,2015,In State-Other Travel Exp,Auxiliary - Copier Commissions,$93.17
48,J.F. Drake State,10003638,MSC Industrial Supply Co.,Mar,17,2015,Materials and Supplies,General Operating Fund,$902.10
48,J.F. Drake State,10003638,MSC Industrial Supply Co.,Mar,17,2015,Materials and Supplies,General Operating Fund,$50.80
48,J.F. Drake State,30003218,McCrary Supply,Mar,17,2015,Maintenance & Repairs,Title III,$74.90
48,J.F. Drake State,10003636,"Mobile Mini, Inc",Mar,17,2015,Other Contractual Services,General Operating Fund,$114.99
48,J.F. Drake State,10003637,"Morris Greenhouses, Inc",Mar,17,2015,Graduation Expense,General Operating Fund,$162.50
48,J.F. Drake State,30003219,"Perryman, Shaun D.",Mar,17,2015,Participant Costs-Stipends,GA-AL LSAMP NSF HRD 1305041,$500.00
48,J.F. Drake State,30003220,"Pickett, Courtney A.",Mar,17,2015,Participant Costs-Stipends,GA-AL LSAMP NSF HRD 1305041,$500.00
48,J.F. Drake State,30003221,"Powell, Miguel K.",Mar,17,2015,Participant Costs-Stipends,GA-AL LSAMP NSF HRD 1305041,$500.00
48,J.F. Drake State,10003639,Public Affairs Research Council of ,Mar,17,2015,In State-Registration,General Operating Fund,$70.00
48,J.F. Drake State,30003222,"Roberts, Wendy L.",Mar,17,2015,In State-Ovrnite Per diem,State - Adult Ed,$150.00
48,J.F. Drake State,10003640,Sally Beauty Supply #3177,Mar,17,2015,Materials and Supplies,General Operating Fund,$412.19
48,J.F. Drake State,10003641,Sheraton Birmingham Hotel,Mar,17,2015,In State-Other Travel Exp,Auxiliary - Copier/Vend Commissions,$454.74
48,J.F. Drake State,10003641,Sheraton Birmingham Hotel,Mar,17,2015,In State-Other Travel Exp,Auxiliary - Copier Commissions,$454.74
48,J.F. Drake State,10003642,Skills USA,Mar,17,2015,Memberships,Auxiliary - Copier Commissions,$21.00
48,J.F. Drake State,10003642,Skills USA,Mar,17,2015,Deposit Liabilities,Skills USA Dues,$300.00
48,J.F. Drake State,10003642,Skills USA,Mar,17,2015,Memberships,Auxiliary - Copier/Vend Commissions,$42.00
48,J.F. Drake State,10003642,Skills USA,Mar,17,2015,Deposit Liabilities,Skills USA Dues,$120.00
48,J.F. Drake State,10003642,Skills USA,Mar,17,2015,Memberships,Auxiliary - Copier Commissions,$42.00
48,J.F. Drake State,10003642,Skills USA,Mar,17,2015,Memberships,Auxiliary - Copier/Vend Commissions,$21.00
48,J.F. Drake State,10003642,Skills USA,Mar,17,2015,Deposit Liabilities,Skills USA Dues,$15.00
48,J.F. Drake State,10003643,Chamber of Commerce of Huntsville/M,Mar,18,2015,In State-Registration,General Operating Fund,$300.00
48,J.F. Drake State,30003223,Domino's Pizza,Mar,18,2015,Participant Costs-Subsistence,DigiTec,$552.04
48,J.F. Drake State,30003224,Sam's Club/Walmart,Mar,18,2015,Participant Costs-Subsistence,Spin Up,$252.02
48,J.F. Drake State,10003661,AT&T,Mar,25,2015,Communications,General Operating Fund,$324.43
48,J.F. Drake State,10003662,Berney Office Solutions,Mar,25,2015,Other Contractual Services,General Operating Fund,"$1,789.74"
48,J.F. Drake State,10003644,"Brooks Lock & Key, Inc",Mar,25,2015,Maintenance & Repairs,General Operating Fund,$222.50
48,J.F. Drake State,10003645,"Castle Branch, Inc.",Mar,25,2015,Purchases for Re-Sale,Auxiliary - Nursing Fees,$391.50
48,J.F. Drake State,10003646,"Caylor, Mary J.",Mar,25,2015,Materials and Supplies,General Operating Fund,$61.20
48,J.F. Drake State,30003225,"Chance, Katie E.",Mar,25,2015,In State-Other Travel Exp,Title III-Act 2 Improving Instruct,$15.00
48,J.F. Drake State,30003225,"Chance, Katie E.",Mar,25,2015,In State-Mileage,Title III-Act 2 Improving Instruct,$220.80
48,J.F. Drake State,30003225,"Chance, Katie E.",Mar,25,2015,In State-Ovrnite Per diem,Title III-Act 2 Improving Instruct,$150.00
48,J.F. Drake State,30003226,"Clark, Taska S.",Mar,25,2015,In State-Ovrnite Per diem,Title III-Act 2 Improving Instruct,$150.00
48,J.F. Drake State,30003226,"Clark, Taska S.",Mar,25,2015,In State-Mileage,Title III-Act 2 Improving Instruct,$220.62
48,J.F. Drake State,10003647,Copeland Cleaners,Mar,25,2015,Other Contractual Services,General Operating Fund,$33.99
48,J.F. Drake State,10003648,"Daley, Monika D.",Mar,25,2015,Materials and Supplies,General Operating Fund,$37.32
48,J.F. Drake State,10003663,Earthlink,Mar,25,2015,Communications,General Operating Fund,"$11,549.05"
48,J.F. Drake State,10003649,Education To Go,Mar,25,2015,Other Contractual Services,General Operating Fund,$345.00
48,J.F. Drake State,10003649,Education To Go,Mar,25,2015,Other Contractual Services,General Operating Fund,$11.25
48,J.F. Drake State,10003664,FedEx,Mar,25,2015,Freight,General Operating Fund,$29.79
48,J.F. Drake State,10003650,First Impressions,Mar,25,2015,Other Contractual Services,General Operating Fund,$224.64
48,J.F. Drake State,30003227,"Henry, Dexter R.",Mar,25,2015,In State-Mileage,Title III-Act 2 Improving Instruct,$220.80
48,J.F. Drake State,30003227,"Henry, Dexter R.",Mar,25,2015,In State-Ovrnite Per diem,Title III-Act 2 Improving Instruct,$150.00
48,J.F. Drake State,10003651,Huntsville Beautification Board,Mar,25,2015,Advertising & Promotions,General Operating Fund,$25.00
48,J.F. Drake State,10003665,Huntsville Utilities,Mar,25,2015,Water & Sewer,General Operating Fund,$47.42
48,J.F. Drake State,10003665,Huntsville Utilities,Mar,25,2015,Water & Sewer,General Operating Fund,"$1,423.33"
48,J.F. Drake State,30003228,"Koorsen Security Technology, Inc",Mar,25,2015,Other Contractual Services,Title III,$963.70
48,J.F. Drake State,30003228,"Koorsen Security Technology, Inc",Mar,25,2015,Other Contractual Services,Title III,$315.00
48,J.F. Drake State,10003652,"Mobile Mini, Inc",Mar,25,2015,Other Contractual Services,General Operating Fund,$132.24
48,J.F. Drake State,10003653,NASPA,Mar,25,2015,Memberships,General Operating Fund,$242.00
48,J.F. Drake State,30003229,National Association of HBCU Title ,Mar,25,2015,Out-of-State-Registration,Title III-Act 2 Improving Instruct,$525.00
48,J.F. Drake State,30003230,New Readers Press,Mar,25,2015,Materials and Supplies,Federal - Adult Ed,$613.20
48,J.F. Drake State,30003231,"Office Depot, Inc",Mar,25,2015,Materials and Supplies,Title III-Act A Program Admin,$37.98
48,J.F. Drake State,30003231,"Office Depot, Inc",Mar,25,2015,Materials and Supplies,Title III-Act A Program Admin,$68.85
48,J.F. Drake State,30003231,"Office Depot, Inc",Mar,25,2015,Materials and Supplies,Title III-Act A Program Admin,$477.82
48,J.F. Drake State,10003654,"Office Depot, Inc",Mar,25,2015,Materials and Supplies,General Operating Fund,"$1,157.91"
48,J.F. Drake State,30003231,"Office Depot, Inc",Mar,25,2015,Materials and Supplies,Title III-Act A Program Admin,$13.19
48,J.F. Drake State,30003231,"Office Depot, Inc",Mar,25,2015,Materials and Supplies,Title III-Act A Program Admin,$127.00
48,J.F. Drake State,10003654,"Office Depot, Inc",Mar,25,2015,Materials and Supplies,General Operating Fund,$58.39
48,J.F. Drake State,10003654,"Office Depot, Inc",Mar,25,2015,Materials and Supplies,General Operating Fund,$37.99
48,J.F. Drake State,30003231,"Office Depot, Inc",Mar,25,2015,Materials and Supplies,Title III-Act A Program Admin,$7.98
48,J.F. Drake State,10003654,"Office Depot, Inc",Mar,25,2015,Materials and Supplies,General Operating Fund,$43.64
48,J.F. Drake State,10003666,Purchase Power,Mar,25,2015,Postage,General Operating Fund,$630.00
48,J.F. Drake State,30003232,"Rentz, Joyce L.",Mar,25,2015,Out-of-State-Subsist & Lodging,Title III-Act 2 Improving Instruct,$79.99
48,J.F. Drake State,30003232,"Rentz, Joyce L.",Mar,25,2015,Out-of-State-Other Travel Expenses,Title III-Act 2 Improving Instruct,$50.00
48,J.F. Drake State,30003232,"Rentz, Joyce L.",Mar,25,2015,Out-of-State-Subsist & Lodging,Title III-Act 2 Improving Instruct,$421.36
48,J.F. Drake State,30003233,"S&ME, Inc",Mar,25,2015,Other Professional Fees,Title III,"$2,200.00"
48,J.F. Drake State,10003655,Safety Kleen,Mar,25,2015,Other Contractual Services,General Operating Fund,$193.58
48,J.F. Drake State,10003656,Sheraton Birmingham Hotel,Mar,25,2015,In State-Other Travel Exp,Auxiliary - Copier/Vend Commissions,"$2,093.85"
48,J.F. Drake State,10003656,Sheraton Birmingham Hotel,Mar,25,2015,In State-Other Travel Exp,Auxiliary - Copier Commissions,"$2,093.85"
48,J.F. Drake State,10003667,The All Alabama Academic Team Found,Mar,25,2015,Participant Costs-Travel,General Operating Fund,"$1,800.00"
48,J.F. Drake State,10003668,"The Solutions Team, Inc.",Mar,25,2015,Computer Software-Non Cap,General Operating Fund,$200.00
48,J.F. Drake State,30003234,United States Plastic Corp,Mar,25,2015,Materials and Supplies,APEX,$341.27
48,J.F. Drake State,10003669,"WALLACE, RACHAEL E.",Mar,25,2015,Contract Clearing Account,General Operating Fund,$100.00
48,J.F. Drake State,10003658,WHDF,Mar,25,2015,Advertising & Promotions,General Operating Fund,$970.00
48,J.F. Drake State,10003670,"WINDSOR, LALAA",Mar,25,2015,Contract Clearing Account,General Operating Fund,$115.00
48,J.F. Drake State,10003671,WOW! Business,Mar,25,2015,Communications,General Operating Fund,$193.61
48,J.F. Drake State,30003235,Ward's Science,Mar,25,2015,Materials and Supplies,APEX,$984.51
48,J.F. Drake State,10003657,"Warren Averett, LLC",Mar,25,2015,Other Contractual Services,General Operating Fund,"$5,100.00"
48,J.F. Drake State,10003672,Chamber of Commerce of Huntsville/M,Mar,27,2015,Advertising & Promotions,General Operating Fund,$400.00
48,J.F. Drake State,30003271,AACRAO,Mar,31,2015,Other Contractual Services,Title III-Act 3 Student Services,"$4,300.00"
48,J.F. Drake State,30003272,ACCSHRMA,Mar,31,2015,In State-Registration,Title III-Act 2 Improving Instruct,$125.00
48,J.F. Drake State,10003673,Alabama A&M Foundation,Mar,31,2015,Advertising & Promotions,General Operating Fund,"$1,000.00"
48,J.F. Drake State,30003273,Alabama Automotive MFG Association,Mar,31,2015,Memberships,SAFRA-Activity A Administration,$300.00
48,J.F. Drake State,10003674,Alabama Constitution Village Founda,Mar,31,2015,Advertising & Promotions,General Operating Fund,"$1,500.00"
48,J.F. Drake State,10003675,Alabama Skills USA,Mar,31,2015,In State-Registration,Auxiliary - Copier Commissions,$780.00
48,J.F. Drake State,10003675,Alabama Skills USA,Mar,31,2015,In State-Registration,Auxiliary - Copier/Vend Commissions,$780.00
48,J.F. Drake State,30003274,"Burden, Frank E.",Mar,31,2015,Participant Costs-Stipends,GA-AL LSAMP NSF HRD 1305041,$500.00
48,J.F. Drake State,10003677,CDW-G Government,Mar,31,2015,Non-capitalized Equipment,Perkins Funds,$379.00
48,J.F. Drake State,10003677,CDW-G Government,Mar,31,2015,Non-capitalized Equipment,Carl Perkins Career & Tech Ed Grant,$379.00
48,J.F. Drake State,10003676,Carolina Biological Supply Company,Mar,31,2015,Materials and Supplies,General Operating Fund,$18.30
48,J.F. Drake State,10003678,"Dynamic Security, Inc.",Mar,31,2015,Other Contractual Services,General Operating Fund,"$4,641.30"
48,J.F. Drake State,10003678,"Dynamic Security, Inc.",Mar,31,2015,Other Contractual Services,General Operating Fund,"$4,519.80"
48,J.F. Drake State,10003679,First Impressions,Mar,31,2015,Other Contractual Services,General Operating Fund,$318.00
48,J.F. Drake State,10003679,First Impressions,Mar,31,2015,Other Contractual Services,General Operating Fund,$480.00
48,J.F. Drake State,10003679,First Impressions,Mar,31,2015,Other Contractual Services,General Operating Fund,$216.00
48,J.F. Drake State,30003275,"Gaymon, Denise C.",Mar,31,2015,In State-Mileage,Title III-Act 2 Improving Instruct,$220.80
48,J.F. Drake State,30003275,"Gaymon, Denise C.",Mar,31,2015,In State-Ovrnite Per diem,Title III-Act 2 Improving Instruct,$150.00
48,J.F. Drake State,30003276,"Graham, Ajiah D.",Mar,31,2015,Participant Costs-Stipends,GA-AL LSAMP NSF HRD 1305041,$500.00
48,J.F. Drake State,30003277,"Henderson, Carolyn",Mar,31,2015,Out-of-State-Other Travel Expenses,Title III-Act 2 Improving Instruct,$14.50
48,J.F. Drake State,30003277,"Henderson, Carolyn",Mar,31,2015,Out-of-State-Subsist & Lodging,Title III-Act 2 Improving Instruct,$135.44
48,J.F. Drake State,30003278,"Hill, Teresa A.",Mar,31,2015,In State-Mileage,Title III-Activity 1 Fiscal Managem,$127.31
48,J.F. Drake State,30003279,Hyatt Regency San Antonio,Mar,31,2015,Out-of-State-Subsist & Lodging,Title III-Act 2 Improving Instruct,$767.05
48,J.F. Drake State,30003280,"Jackson, Antoinette Y.",Mar,31,2015,Participant Costs-Stipends,GA-AL LSAMP NSF HRD 1305041,$500.00
48,J.F. Drake State,30003281,"Johnson, Nina M.",Mar,31,2015,Participant Costs-Stipends,GA-AL LSAMP NSF HRD 1305041,$500.00
48,J.F. Drake State,30003282,Maricopa County Community Colleges ,Mar,31,2015,Subcontracts,DigiTec,"$14,713.89"
48,J.F. Drake State,10003680,"McAlpine, Helen T.",Mar,31,2015,Materials and Supplies,General Operating Fund,$39.28
48,J.F. Drake State,30003283,Moore Medical Corp,Mar,31,2015,Materials and Supplies,SAFRA-Activity 1 Allied Health,$13.32
48,J.F. Drake State,30003283,Moore Medical Corp,Mar,31,2015,Materials and Supplies,SAFRA-Activity 1 Allied Health,$109.00
48,J.F. Drake State,30003283,Moore Medical Corp,Mar,31,2015,Materials and Supplies,SAFRA-Activity 1 Allied Health,$190.00
48,J.F. Drake State,30003283,Moore Medical Corp,Mar,31,2015,Materials and Supplies,SAFRA-Activity 1 Allied Health,$16.49
48,J.F. Drake State,30003283,Moore Medical Corp,Mar,31,2015,Materials and Supplies,SAFRA-Activity 1 Allied Health,$340.98
48,J.F. Drake State,30003283,Moore Medical Corp,Mar,31,2015,Materials and Supplies,SAFRA-Activity 1 Allied Health,$76.20
48,J.F. Drake State,30003283,Moore Medical Corp,Mar,31,2015,Materials and Supplies,SAFRA-Activity 1 Allied Health,"$4,684.23"
48,J.F. Drake State,30003283,Moore Medical Corp,Mar,31,2015,Materials and Supplies,SAFRA-Activity 1 Allied Health,$122.20
48,J.F. Drake State,10003681,Mr. Rootor,Mar,31,2015,Maintenance & Repairs,General Operating Fund,"$1,875.00"
48,J.F. Drake State,10003682,Oakwood University,Mar,31,2015,Advertising & Promotions,General Operating Fund,"$1,000.00"
48,J.F. Drake State,10003683,"Rousseau's Sporting Goods & Awards,",Mar,31,2015,Materials and Supplies,General Operating Fund,$45.00
48,J.F. Drake State,30003284,Scantron Corporation,Mar,31,2015,Other Contractual Services,SAFRA-Activity 1 Allied Health,"$2,102.00"
48,J.F. Drake State,30003285,"Training Consultants, Inc",Mar,31,2015,"Furniture & Equip $25,000 or Less",Carl Perkins Career & Tech Ed Grant,"$14,898.00"
48,J.F. Drake State,30003286,"Vongsaphay, Rasanary B.",Mar,31,2015,Participant Costs-Stipends,GA-AL LSAMP NSF HRD 1305041,$500.00
48,J.F. Drake State,10003684,Alabama Child Support,Apr,2,2015,Misc Deductions Payable,Payroll Clearing Fund,"$2,300.81"
48,J.F. Drake State,10003685,Allstate Insurance,Apr,2,2015,Misc Deductions Payable,Payroll Clearing Fund,$54.80
48,J.F. Drake State,10003686,American Family Life,Apr,2,2015,Misc Deductions Payable,Payroll Clearing Fund,$125.68
48,J.F. Drake State,10003701,Berney Office Solutions,Apr,2,2015,Other Contractual Services,General Operating Fund,"$2,115.00"
48,J.F. Drake State,10003701,Berney Office Solutions,Apr,2,2015,Other Contractual Services,General Operating Fund,$128.35
48,J.F. Drake State,10003687,Colonial Life Insurance,Apr,2,2015,Misc Deductions Payable,Payroll Clearing Fund,$39.65
48,J.F. Drake State,10003688,Drake State Foundation,Apr,2,2015,Misc Deductions Payable,Payroll Clearing Fund,$415.42
48,J.F. Drake State,10003689,Educators Benefit,Apr,2,2015,Misc Deductions Payable,Payroll Clearing Fund,"$1,039.03"
48,J.F. Drake State,10003702,Ellucian Company L.P.,Apr,2,2015,Construction in Progress,Renewal and Repacement Funds,"$5,135.00"
48,J.F. Drake State,10003690,Metropolitan Life Insurance Company,Apr,2,2015,Misc Deductions Payable,Payroll Clearing Fund,$100.00
48,J.F. Drake State,10003691,"Michael Ford, Chapter 13 Trustee",Apr,2,2015,Misc Deductions Payable,Payroll Clearing Fund,"$2,430.19"
48,J.F. Drake State,10003692,NAECU,Apr,2,2015,Misc Deductions Payable,Payroll Clearing Fund,"$3,036.00"
48,J.F. Drake State,10003693,New York Life Insurance,Apr,2,2015,Misc Deductions Payable,Payroll Clearing Fund,$215.25
48,J.F. Drake State,10003694,PEEHIP,Apr,2,2015,PEEHIP Payable,Payroll Clearing Fund,"$86,198.17"
48,J.F. Drake State,10003703,Progressive Specialty Insurance Com,Apr,2,2015,Insurance & Bonding,General Operating Fund,"$17,664.00"
48,J.F. Drake State,10003695,RSA-1 Deferred Compensation,Apr,2,2015,Misc Deductions Payable,Payroll Clearing Fund,$724.54
48,J.F. Drake State,10003704,Schrimsher Properties,Apr,2,2015,Rent - Facilities,General Operating Fund,"$6,715.00"
48,J.F. Drake State,10003696,Security Benefit Life Insurance Com,Apr,2,2015,Misc Deductions Payable,Payroll Clearing Fund,$525.00
48,J.F. Drake State,10003697,Teachers Retirement System,Apr,2,2015,Alabama Teachers Retirement Payable,Payroll Clearing Fund,"$79,374.15"
48,J.F. Drake State,10003698,"United Way of Madison County, Inc.",Apr,2,2015,Misc Deductions Payable,Payroll Clearing Fund,$454.10
48,J.F. Drake State,10003699,Variable Annuity Life Insurance,Apr,2,2015,Misc Deductions Payable,Payroll Clearing Fund,$657.50
48,J.F. Drake State,10003700,"Verified Credentials, Inc",Apr,2,2015,Background Checks,Payroll Clearing Fund,$34.80
48,J.F. Drake State,10003705,WEX Bank,Apr,2,2015,Gasoline & Oil-Motor Vehicle,General Operating Fund,$68.93
48,J.F. Drake State,30003291,WEX Bank,Apr,2,2015,In State-Mileage,Title III,$21.95
48,J.F. Drake State,30003291,WEX Bank,Apr,2,2015,In State-Mileage,Title III-Act 2 Improving Instruct,$18.60
48,J.F. Drake State,10003705,WEX Bank,Apr,2,2015,Gasoline & Oil-Motor Vehicle,General Operating Fund,$69.68
48,J.F. Drake State,30003291,WEX Bank,Apr,2,2015,In State-Other Travel Exp,Title III,$16.66
48,J.F. Drake State,10003705,WEX Bank,Apr,2,2015,Gasoline & Oil-Motor Vehicle,General Operating Fund,$16.23
48,J.F. Drake State,10003705,WEX Bank,Apr,2,2015,Gasoline & Oil-Motor Vehicle,General Operating Fund,$18.08
48,J.F. Drake State,10003705,WEX Bank,Apr,2,2015,In State-Other Travel Exp,General Operating Fund,$21.27
48,J.F. Drake State,10003705,WEX Bank,Apr,2,2015,Gasoline & Oil-Motor Vehicle,General Operating Fund,$25.98
48,J.F. Drake State,10003705,WEX Bank,Apr,2,2015,In State-Other Travel Exp,General Operating Fund,$14.70
48,J.F. Drake State,30003291,WEX Bank,Apr,2,2015,Out-of-State-Mileage,Title III,$26.92
48,J.F. Drake State,10003705,WEX Bank,Apr,2,2015,Gasoline & Oil-Motor Vehicle,General Operating Fund,$26.57
48,J.F. Drake State,10003706,Chevron and Texaco,Apr,3,2015,Gasoline & Oil-Motor Vehicle,General Operating Fund,$20.15
48,J.F. Drake State,10003706,Chevron and Texaco,Apr,3,2015,Gasoline & Oil-Motor Vehicle,General Operating Fund,$26.91
48,J.F. Drake State,10003706,Chevron and Texaco,Apr,3,2015,Gasoline & Oil-Motor Vehicle,General Operating Fund,$0.98
48,J.F. Drake State,10003706,Chevron and Texaco,Apr,3,2015,Gasoline & Oil-Motor Vehicle,General Operating Fund,$13.07
48,J.F. Drake State,10003706,Chevron and Texaco,Apr,3,2015,Gasoline & Oil-Motor Vehicle,General Operating Fund,$21.09
48,J.F. Drake State,10003706,Chevron and Texaco,Apr,3,2015,Gasoline & Oil-Motor Vehicle,General Operating Fund,$16.54
48,J.F. Drake State,10003707,Alabama Lawnmaster Inc,Apr,7,2015,Other Contractual Services,General Operating Fund,"$3,045.00"
48,J.F. Drake State,30003292,"Burden, Frank E.",Apr,7,2015,Participant Costs-Travel,GA-AL LSAMP NSF HRD 1305041,$100.00
48,J.F. Drake State,30003293,"Curry, Leo",Apr,7,2015,Participant Costs-Travel,GA-AL LSAMP NSF HRD 1305041,$100.00
48,J.F. Drake State,10003708,Domino's Pizza,Apr,7,2015,Materials and Supplies,General Operating Fund,$59.94
48,J.F. Drake State,10003709,"Garner, LeKeisha B.",Apr,7,2015,In State-Ovrnite Per diem,General Operating Fund,$225.00
48,J.F. Drake State,10003710,"Gaymon, Denise C.",Apr,7,2015,Materials and Supplies,General Operating Fund,$500.00
48,J.F. Drake State,30003294,"Glasgow, Gezelle B.",Apr,7,2015,Participant Costs-Travel,GA-AL LSAMP NSF HRD 1305041,$100.00
48,J.F. Drake State,30003295,"Graham, Ajiah D.",Apr,7,2015,Participant Costs-Travel,GA-AL LSAMP NSF HRD 1305041,$100.00
48,J.F. Drake State,10003711,Grand Hyatt San Antonio Convention ,Apr,7,2015,Out-of-State-Subsist & Lodging,General Operating Fund,$976.03
48,J.F. Drake State,10003712,"Harris, Katrina J.",Apr,7,2015,In State-Ovrnite Per diem,General Operating Fund,$225.00
48,J.F. Drake State,10003713,"Hill, Teresa A.",Apr,7,2015,In State-Ovrnite Per diem,General Operating Fund,$225.00
48,J.F. Drake State,30003296,"Jackson, Antoinette Y.",Apr,7,2015,Participant Costs-Travel,GA-AL LSAMP NSF HRD 1305041,$100.00
48,J.F. Drake State,30003297,"Johnson, Nina M.",Apr,7,2015,Participant Costs-Travel,GA-AL LSAMP NSF HRD 1305041,$100.00
48,J.F. Drake State,30003298,"KI, Pallas Textiles",Apr,7,2015,"Furniture & Equip Exceeding $25,000",Title III,"$42,936.48"
48,J.F. Drake State,30003299,Lowe's Home Centers,Apr,7,2015,Materials and Supplies,Title III,$94.97
48,J.F. Drake State,30003299,Lowe's Home Centers,Apr,7,2015,Materials and Supplies,Title III,$39.88
48,J.F. Drake State,10003714,"Office Depot, Inc",Apr,7,2015,Materials and Supplies,General Operating Fund,$174.57
48,J.F. Drake State,10003714,"Office Depot, Inc",Apr,7,2015,Materials and Supplies,General Operating Fund,$43.89
48,J.F. Drake State,30003302,"PODS Enterprises, Inc.",Apr,7,2015,Other Contractual Services,SAFRA-Activity 1 Allied Health,$159.00
48,J.F. Drake State,30003300,"Perryman, Shaun D.",Apr,7,2015,Participant Costs-Travel,GA-AL LSAMP NSF HRD 1305041,$100.00
48,J.F. Drake State,30003301,"Pickett, Courtney A.",Apr,7,2015,Participant Costs-Travel,GA-AL LSAMP NSF HRD 1305041,$100.00
